Service Delivery Area(T),Service Delivery Team(T),ExpenditureGroup(T),Account(T),Supplier Name(T),Trans Date,Amount
Adult Social Care,ASC Prevention & Enablement,Employees,Agency Supply Costs,Reed Talent Solutions Ltd,02/09/2022,"2,160.00"
Adult Social Care,ASC Prevention & Enablement,Employees,Agency Supply Costs,Reed Talent Solutions Ltd,02/09/2022,"4,680.00"
Adult Social Care,ASC Prevention & Enablement,Employees,Agency Supply Costs,Reed Talent Solutions Ltd,02/09/2022,"2,160.00"
Adult Social Care,ASC Prevention & Enablement,Employees,Agency Supply Costs,Reed Talent Solutions Ltd,02/09/2022,"2,160.00"
Adult Social Care,ASC Prevention & Enablement,Employees,Agency Supply Costs,Reed Talent Solutions Ltd,02/09/2022,"3,600.00"
Adult Social Care,ASC Prevention & Enablement,Employees,Agency Supply Costs,Reed Talent Solutions Ltd,02/09/2022,"2,520.00"
Adult Social Care,ASC Prevention & Enablement,Employees,Agency Supply Costs,Reed Talent Solutions Ltd,28/09/2022,"2,520.00"
Adult Social Care,ASC Prevention & Enablement,Supplies & Services,Mobile Phones,EE LTD EQUIPMENT ,06/09/2022,142.00
Adult Social Care,"Commissioning, Procurement & Brokerage",Supplies & Services,Mobile Phones,EE LTD EQUIPMENT,07/09/2022,142.00
Adult Social Care,"Commissioning, Procurement & Brokerage",Supplies & Services,Grants To Voluntary Organis,Doro Care Uk,16/09/2022,"5,217.17"
Adult Social Care,"Commissioning, Procurement & Brokerage",Supplies & Services,Other Grants (Expenses),Doro Care Uk,16/09/2022,"3,815.12"
Adult Social Care,"Commissioning, Procurement & Brokerage",Supplies & Services,Other Grants (Expenses),Doro Care Uk,16/09/2022,"2,132.03"
Adult Social Care,"Commissioning, Procurement & Brokerage",Supplies & Services,Other Grants (Expenses),TELFORD CHRISTIAN COUNCIL SUPPORTED HOUS,01/09/2022,"36,401.83"
Adult Social Care,"Commissioning, Procurement & Brokerage",Supplies & Services,Other Grants (Expenses),WREKIN HOUSING TRUST ,01/09/2022,"25,568.33"
Adult Social Care,"Commissioning, Procurement & Brokerage",Supplies & Services,Other Grants (Expenses),BROMFORD HOUSING ASSOCIATION LIMITED,01/09/2022,"36,666.67"
Adult Social Care,"Commissioning, Procurement & Brokerage",Supplies & Services,Other Grants (Expenses),SANCTUARY HOUSING ASSOCIATION ,01/09/2022,610.70
Adult Social Care,"Commissioning, Procurement & Brokerage",Supplies & Services,Other Grants (Expenses),OLD BEN HOMES,01/09/2022,433.33
Adult Social Care,"Commissioning, Procurement & Brokerage",Supplies & Services,Other Grants (Expenses),HANOVER HOUSING ASSOCIATION,01/09/2022,750.00
Adult Social Care,"Commissioning, Procurement & Brokerage",Supplies & Services,Other Grants (Expenses),ANCHOR HOUSING TRUST,01/09/2022,133.33
Adult Social Care,"Commissioning, Procurement & Brokerage",Third Party Payments,Interpreters Fees,EXPRESS INTERPRETING & TRANSLATION,16/09/2022,"5,163.75"
Adult Social Care,"Commissioning, Procurement & Brokerage",Third Party Payments,Private Contractors,POHWER,16/09/2022,"18,750.00"
Adult Social Care,Community Social Work & Adult Safeguarding,Supplies & Services,Mobile Phones,EE LTD EQUIPMENT ,02/09/2022,142.00
Adult Social Care,Community Social Work & Adult Safeguarding,Supplies & Services,Other Grants (Expenses),POHWER,27/09/2022,"2,500.00"
Adult Social Care,Community Social Work & Adult Safeguarding,Supplies & Services,Legal Expenses,WEIGHMANS,09/09/2022,110.00
Adult Social Care,Community Social Work & Adult Safeguarding,Supplies & Services,Legal Expenses,Kings Chambers,09/09/2022,"1,000.00"
Adult Social Care,Community Social Work & Adult Safeguarding,Supplies & Services,Legal Expenses,39 Essex Chambers,09/09/2022,"1,250.00"
Adult Social Care,Community Social Work & Adult Safeguarding,Supplies & Services,Legal Expenses,WEIGHMANS,09/09/2022,156.50
Adult Social Care,Community Social Work & Adult Safeguarding,Supplies & Services,Legal Expenses,Kings Chambers,09/09/2022,500.00
Adult Social Care,Community Social Work & Adult Safeguarding,Supplies & Services,Legal Expenses,Kings Chambers,09/09/2022,"1,075.00"
Adult Social Care,Community Social Work & Adult Safeguarding,Supplies & Services,Legal Expenses,39 Essex Chambers,09/09/2022,"2,087.50"
Adult Social Care,Community Social Work & Adult Safeguarding,Supplies & Services,Mobile Phones,EE LTD EQUIPMENT ,06/09/2022,142.00
Adult Social Care,Community Social Work & Adult Safeguarding,Supplies & Services,Mobile Phones,EE LTD EQUIPMENT ,02/09/2022,142.00
Adult Social Care,Community Social Work (Principal Social Worker),Premises-Related Expenditure,General Rents,First Choice Housing Association LTD,08/09/2022,"3,212.08"
Adult Social Care,Community Social Work (Principal Social Worker),Premises-Related Expenditure,General Rents,Inclusion Housing CIC Ltd,13/09/2022,526.74
Adult Social Care,Community Social Work (Principal Social Worker),Premises-Related Expenditure,General Rents,Inclusion Housing CIC Ltd,13/09/2022,526.74
Adult Social Care,Community Social Work (Principal Social Worker),Premises-Related Expenditure,General Rents,Inclusion Housing CIC Ltd,13/09/2022,511.10
Adult Social Care,My Options,Employees,Agency Supply Costs,Safehands Recruitment,02/09/2022,"1,449.25"
Adult Social Care,My Options,Employees,Other Employee Costs,SHROPSHIRE COMMUNITY HEALTH NHS TRUST,27/09/2022,"4,641.17"
Adult Social Care,My Options,Employees,Agency Supply Costs,Safehands Recruitment,21/09/2022,"1,863.00"
Adult Social Care,My Options,Employees,Agency Supply Costs,Nurse Plus and Carer Plus (UK) Limited,21/09/2022,"2,047.23"
Adult Social Care,My Options,Employees,Agency Supply Costs,Safehands Recruitment,02/09/2022,"1,835.00"
Adult Social Care,My Options,Employees,Agency Supply Costs,Nurse Plus and Carer Plus (UK) Limited,02/09/2022,"2,155.37"
Adult Social Care,My Options,Employees,Agency Supply Costs,Nurse Plus and Carer Plus (UK) Limited,27/09/2022,"2,304.30"
Adult Social Care,My Options,Employees,Agency Supply Costs,Nurse Plus and Carer Plus (UK) Limited,27/09/2022,"1,929.50"
Adult Social Care,My Options,Employees,Agency Supply Costs,Safehands Recruitment,27/09/2022,"1,380.00"
Adult Social Care,My Options,Employees,Agency Supply Costs,Safehands Recruitment,27/09/2022,"3,020.50"
Adult Social Care,My Options,Employees,Agency Supply Costs,Nurse Plus and Carer Plus (UK) Limited,12/09/2022,345.50
Adult Social Care,My Options,Employees,Agency Supply Costs,Nurse Plus and Carer Plus (UK) Limited,12/09/2022,"1,718.60"
Adult Social Care,My Options,Employees,Agency Supply Costs,Nurse Plus and Carer Plus (UK) Limited,12/09/2022,"5,723.03"
Adult Social Care,My Options,Employees,Agency Supply Costs,Safehands Recruitment,12/09/2022,628.00
Adult Social Care,My Options,Employees,Agency Supply Costs,Safehands Recruitment,12/09/2022,270.00
Adult Social Care,My Options,Employees,Agency Supply Costs,Safehands Recruitment,12/09/2022,603.50
Adult Social Care,My Options,Employees,Agency Supply Costs,Safehands Recruitment,12/09/2022,536.00
Adult Social Care,My Options,Employees,Agency Supply Costs,Safehands Recruitment,12/09/2022,"1,928.76"
Adult Social Care,My Options,Employees,Agency Supply Costs,Safehands Recruitment,12/09/2022,"1,012.00"
Adult Social Care,My Options,Employees,Agency Supply Costs,Safehands Recruitment,12/09/2022,408.50
Adult Social Care,My Options,Employees,Agency Supply Costs,Safehands Recruitment,02/09/2022,643.83
Adult Social Care,My Options,Employees,Agency Supply Costs,Safehands Recruitment,02/09/2022,400.11
Adult Social Care,My Options,Employees,Agency Supply Costs,Safehands Recruitment,02/09/2022,394.50
Adult Social Care,My Options,Employees,Agency Supply Costs,Nurse Plus and Carer Plus (UK) Limited,02/09/2022,"1,629.46"
Adult Social Care,My Options,Employees,Agency Supply Costs,Nurse Plus and Carer Plus (UK) Limited,02/09/2022,"2,824.43"
Adult Social Care,My Options,Employees,Agency Supply Costs,Nurse Plus and Carer Plus (UK) Limited,02/09/2022,201.44
Adult Social Care,My Options,Employees,Agency Supply Costs,Safehands Recruitment,02/09/2022,"1,574.71"
Adult Social Care,My Options,Employees,Agency Supply Costs,Safehands Recruitment,02/09/2022,527.50
Adult Social Care,My Options,Employees,Agency Supply Costs,JN Recruitment,02/09/2022,565.14
Adult Social Care,My Options,Employees,Agency Supply Costs,Iconic Care Limited,12/09/2022,"1,410.76"
Adult Social Care,My Options,Employees,Agency Supply Costs,Nurse Plus and Carer Plus (UK) Limited,27/09/2022,"4,048.65"
Adult Social Care,My Options,Employees,Agency Supply Costs,Nurse Plus and Carer Plus (UK) Limited,27/09/2022,390.00
Adult Social Care,My Options,Employees,Agency Supply Costs,Nurse Plus and Carer Plus (UK) Limited,27/09/2022,822.95
Adult Social Care,My Options,Employees,Agency Supply Costs,Nurse Plus and Carer Plus (UK) Limited,27/09/2022,118.11
Adult Social Care,My Options,Employees,Agency Supply Costs,Nurse Plus and Carer Plus (UK) Limited,27/09/2022,540.50
Adult Social Care,My Options,Employees,Agency Supply Costs,Nurse Plus and Carer Plus (UK) Limited,27/09/2022,"2,187.64"
Adult Social Care,My Options,Employees,Agency Supply Costs,Safehands Recruitment,27/09/2022,"1,092.39"
Adult Social Care,My Options,Employees,Agency Supply Costs,Safehands Recruitment,27/09/2022,"1,708.89"
Adult Social Care,My Options,Employees,Agency Supply Costs,Safehands Recruitment,27/09/2022,355.50
Adult Social Care,My Options,Employees,Agency Supply Costs,Nurse Plus and Carer Plus (UK) Limited,27/09/2022,"2,003.60"
Adult Social Care,My Options,Employees,Agency Supply Costs,Nurse Plus and Carer Plus (UK) Limited,27/09/2022,"4,401.55"
Adult Social Care,My Options,Employees,Agency Supply Costs,Nurse Plus and Carer Plus (UK) Limited,27/09/2022,218.75
Adult Social Care,My Options,Employees,Agency Supply Costs,Safehands Recruitment,27/09/2022,599.00
Adult Social Care,My Options,Employees,Agency Supply Costs,Safehands Recruitment,27/09/2022,252.00
Adult Social Care,My Options,Employees,Agency Supply Costs,Safehands Recruitment,27/09/2022,498.50
Adult Social Care,My Options,Employees,Agency Supply Costs,Safehands Recruitment,27/09/2022,898.00
Adult Social Care,My Options,Employees,Agency Supply Costs,Safehands Recruitment,27/09/2022,898.10
Adult Social Care,My Options,Employees,Agency Supply Costs,Safehands Recruitment,27/09/2022,551.00
Adult Social Care,My Options,Employees,Agency Supply Costs,Iconic Care Limited,21/09/2022,"1,434.00"
Adult Social Care,My Options,Employees,Agency Supply Costs,Iconic Care Limited,21/09/2022,"14,169.95"
Adult Social Care,My Options,Employees,Agency Supply Costs,Iconic Care Limited,21/09/2022,"7,802.50"
Adult Social Care,My Options,Employees,Agency Supply Costs,Safehands Recruitment,21/09/2022,255.00
Adult Social Care,My Options,Employees,Agency Supply Costs,Iconic Care Limited,21/09/2022,"1,428.00"
Adult Social Care,My Options,Employees,Agency Supply Costs,Iconic Care Limited,21/09/2022,"4,749.50"
Adult Social Care,My Options,Employees,Agency Supply Costs,Iconic Care Limited,21/09/2022,"7,322.00"
Adult Social Care,My Options,Employees,Agency Supply Costs,Iconic Care Limited,21/09/2022,720.00
Adult Social Care,My Options,Employees,Agency Supply Costs,Iconic Care Limited,21/09/2022,534.00
Adult Social Care,My Options,Employees,Agency Supply Costs,Safehands Recruitment,21/09/2022,"17,549.25"
Adult Social Care,My Options,Employees,Agency Supply Costs,Safehands Recruitment,27/09/2022,612.00
Adult Social Care,My Options,Employees,Agency Supply Costs,Safehands Recruitment,27/09/2022,408.00
Adult Social Care,My Options,Employees,Agency Supply Costs,Iconic Care Limited,23/09/2022,174.00
Adult Social Care,My Options,Premises-Related Expenditure,Clean Mats & Toilet Requisites,PHS GROUP,21/09/2022,125.22
Adult Social Care,My Options,Premises-Related Expenditure,Hire Of Rooms,Dawley Baptist Church,21/09/2022,250.00
Adult Social Care,My Options,Premises-Related Expenditure,R&M -Buildings DLO Charge,JCE & SONS LTD,21/09/2022,128.31
Adult Social Care,My Options,Premises-Related Expenditure,R&M -Buildings DLO Charge,A E C & Co Ltd,21/09/2022,150.40
Adult Social Care,My Options,Premises-Related Expenditure,R&M -Buildings DLO Charge,A E C & Co Ltd,21/09/2022,131.59
Adult Social Care,My Options,Premises-Related Expenditure,Clean Mats & Toilet Requisites,BERWICK CARE EQUIPMENT LTD,27/09/2022,272.50
Adult Social Care,My Options,Supplies & Services,Mobile Phones,EE LTD EQUIPMENT ,06/09/2022,284.00
Adult Social Care,My Options,Supplies & Services,Comp Hardware (Purch / Hire),CCS MEDIA LIMITED,02/09/2022,645.00
Adult Social Care,My Options,Supplies & Services,Computer Software (Maint),Access UK Ltd,12/09/2022,644.40
Adult Social Care,My Options,Supplies & Services,Mobile Phones,EE LTD EQUIPMENT,06/09/2022,"1,704.00"
Adult Social Care,My Options,Supplies & Services,Mobile Phones,EE LTD EQUIPMENT,02/09/2022,142.00
Adult Social Care,My Options,Supplies & Services,Adult Flexi / Day Care,REDACTED PERSONAL INFORMATION,14/09/2022,480.60
Adult Social Care,My Options,Supplies & Services,Adult Flexi / Day Care,REDACTED PERSONAL INFORMATION,14/09/2022,480.60
Adult Social Care,My Options,Supplies & Services,Adult Flexi / Day Care,REDACTED PERSONAL INFORMATION,14/09/2022,213.60
Adult Social Care,My Options,Supplies & Services,Adult Flexi / Day Care,REDACTED PERSONAL INFORMATION,22/09/2022,907.80
Adult Social Care,My Options,Supplies & Services,Other Travel,REDACTED PERSONAL INFORMATION,22/09/2022,216.00
Adult Social Care,My Options,Supplies & Services,Respite Care,REDACTED PERSONAL INFORMATION,20/09/2022,"1,559.24"
Adult Social Care,My Options,Supplies & Services,Respite Care,REDACTED PERSONAL INFORMATION,20/09/2022,953.08
Adult Social Care,My Options,Supplies & Services,Respite Care,REDACTED PERSONAL INFORMATION,20/09/2022,"1,265.60"
Adult Social Care,My Options,Supplies & Services,Respite Care,REDACTED PERSONAL INFORMATION,14/09/2022,480.60
Adult Social Care,My Options,Supplies & Services,Respite Care,REDACTED PERSONAL INFORMATION,22/09/2022,747.60
Adult Social Care,My Options,Supplies & Services,Equipment - Hire,PHS GROUP,21/09/2022,191.10
Adult Social Care,Prevention & Independence - Older Adults & Disability,Employees,Agency Supply Costs,Reed Talent Solutions Ltd,16/09/2022,147.06
Adult Social Care,Prevention & Independence - Older Adults & Disability,Employees,Agency Supply Costs,Reed Talent Solutions Ltd,01/09/2022,136.12
Adult Social Care,Prevention & Independence - Older Adults & Disability,Employees,Agency Supply Costs,Reed Talent Solutions Ltd,02/09/2022,"3,600.00"
Adult Social Care,Prevention & Independence - Older Adults & Disability,Employees,Agency Supply Costs,Reed Talent Solutions Ltd,02/09/2022,"3,960.00"
Adult Social Care,Prevention & Independence - Older Adults & Disability,Employees,Agency Supply Costs,Reed Talent Solutions Ltd,02/09/2022,"1,980.00"
Adult Social Care,Prevention & Independence - Older Adults & Disability,Employees,Agency Supply Costs,Reed Talent Solutions Ltd,02/09/2022,"1,800.00"
Adult Social Care,Prevention & Independence - Older Adults & Disability,Employees,Agency Supply Costs,Reed Talent Solutions Ltd,02/09/2022,"1,980.00"
Adult Social Care,Prevention & Independence - Older Adults & Disability,Employees,Agency Supply Costs,Reed Talent Solutions Ltd,02/09/2022,"1,800.00"
Adult Social Care,Prevention & Independence - Older Adults & Disability,Employees,Agency Supply Costs,Reed Talent Solutions Ltd,02/09/2022,"3,240.00"
Adult Social Care,Prevention & Independence - Older Adults & Disability,Employees,Agency Supply Costs,Reed Talent Solutions Ltd,02/09/2022,"3,960.00"
Adult Social Care,Prevention & Independence - Older Adults & Disability,Employees,Agency Supply Costs,Reed Talent Solutions Ltd,29/09/2022,"1,800.00"
Adult Social Care,Prevention & Independence - Older Adults & Disability,Employees,Agency Supply Costs,Reed Talent Solutions Ltd,29/09/2022,"1,800.00"
Adult Social Care,Prevention & Independence - Older Adults & Disability,Employees,Agency Supply Costs,Reed Talent Solutions Ltd,29/09/2022,"2,160.00"
Adult Social Care,Prevention & Independence - Older Adults & Disability,Employees,Agency Supply Costs,Reed Talent Solutions Ltd,28/09/2022,"1,800.00"
Adult Social Care,Prevention & Independence - Older Adults & Disability,Employees,Agency Supply Costs,Reed Talent Solutions Ltd,28/09/2022,"1,800.00"
Adult Social Care,Prevention & Independence - Older Adults & Disability,Employees,Agency Supply Costs,Reed Talent Solutions Ltd,29/09/2022,"1,800.00"
Adult Social Care,Prevention & Independence - Older Adults & Disability,Employees,Agency Supply Costs,Reed Talent Solutions Ltd,29/09/2022,"1,800.00"
Adult Social Care,Prevention & Independence - Older Adults & Disability,Supplies & Services,Aids & Appliances,Techsixtyfour Limited,06/09/2022,107.50
Adult Social Care,Prevention & Independence - Older Adults & Disability,Supplies & Services,Equipment - Repair,STANNAH LIFT SERVICES LTD,15/09/2022,280.00
Adult Social Care,Prevention & Independence - Older Adults & Disability,Supplies & Services,Equipment - Repair,STANNAH LIFT SERVICES LTD,20/09/2022,"1,638.25"
Adult Social Care,Prevention & Independence - Older Adults & Disability,Supplies & Services,Aids & Appliances,SHROPSHIRE & WREKIN FIRE AUTHORITY,29/09/2022,"1,538.00"
Adult Social Care,Prevention & Independence - Older Adults & Disability,Supplies & Services,Aids & Appliances,Medequip,29/09/2022,256.42
Adult Social Care,Prevention & Independence - Older Adults & Disability,Supplies & Services,Aids & Appliances,Medequip,29/09/2022,129.70
Adult Social Care,Prevention & Independence - Older Adults & Disability,Supplies & Services,Aids & Appliances,Easylink,13/09/2022,160.65
Adult Social Care,Prevention & Independence - Older Adults & Disability,Supplies & Services,Aids & Appliances,Easylink,27/09/2022,242.87
Adult Social Care,Prevention & Independence - Older Adults & Disability,Supplies & Services,Aids & Appliances,Easylink,23/09/2022,160.65
Adult Social Care,Prevention & Independence - Older Adults & Disability,Supplies & Services,Aids & Appliances,Canary Care Global Limited,26/09/2022,"1,449.00"
Adult Social Care,Prevention & Independence - Older Adults & Disability,Supplies & Services,Aids & Appliances,Medequip,28/09/2022,204.75
Adult Social Care,Prevention & Independence - Older Adults & Disability,Supplies & Services,Mobile Phones,EE LTD EQUIPMENT ,02/09/2022,284.00
Adult Social Care,Prevention & Independence - Older Adults & Disability,Supplies & Services,Sampling & Analysis,PRISM MEDICAL WESTHOLME DIVISION,21/09/2022,990.10
Adult Social Care,Prevention & Independence - Older Adults & Disability,Supplies & Services,Carriage/Delivery Charge,Accora,12/09/2022,150.00
Adult Social Care,Prevention & Independence - Older Adults & Disability,Supplies & Services,Aids & Appliances,Accora,12/09/2022,"1,690.00"
Adult Social Care,Prevention & Independence - Older Adults & Disability,Supplies & Services,Aids & Appliances,Nottingham Rehab Ltd,06/09/2022,113.98
Adult Social Care,Prevention & Independence - Older Adults & Disability,Supplies & Services,Carriage/Delivery Charge,OSPREY HEALTHCARE LTD,13/09/2022,192.00
Adult Social Care,Prevention & Independence - Older Adults & Disability,Supplies & Services,Aids & Appliances,OSPREY HEALTHCARE LTD,13/09/2022,"1,256.00"
Adult Social Care,Prevention & Independence - Older Adults & Disability,Supplies & Services,Aids & Appliances,OSPREY HEALTHCARE LTD,13/09/2022,"2,849.00"
Adult Social Care,Prevention & Independence - Older Adults & Disability,Supplies & Services,Funeral Services,P and P LTD,23/09/2022,"4,366.76"
Adult Social Care,Prevention & Independence - Older Adults & Disability,Supplies & Services,Mobile Phones,EE LTD EQUIPMENT,07/09/2022,142.00
Adult Social Care,Prevention & Independence - Older Adults & Disability,Transport-Related Expenditure,Taxi Costs,Cartello Ambulance,02/09/2022,182.00
Adult Social Care,Prevention & Independence - Older Adults & Disability,Transport-Related Expenditure,Taxi Costs,Cartello Ambulance,02/09/2022,156.00
Adult Social Care,Prevention & Independence - Older Adults & Disability,Transport-Related Expenditure,Taxi Costs,Cartello Ambulance,02/09/2022,182.00
Adult Social Care,Prevention & Independence - Older Adults & Disability,Transport-Related Expenditure,Taxi Costs,Cartello Ambulance,02/09/2022,182.00
Adult Social Care,Prevention & Independence - Older Adults & Disability,Transport-Related Expenditure,Taxi Costs,Cartello Ambulance,02/09/2022,156.00
Adult Social Care,Prevention & Independence - Older Adults & Disability,Transport-Related Expenditure,Taxi Costs,Cartello Ambulance,02/09/2022,156.00
Adult Social Care,Prevention & Independence - Older Adults & Disability,Transport-Related Expenditure,Taxi Costs,Cartello Ambulance,02/09/2022,156.00
Adult Social Care,Prevention & Independence - Older Adults & Disability,Transport-Related Expenditure,Taxi Costs,Cartello Ambulance,02/09/2022,182.00
Adult Social Care,Service Improvement & Efficiency,Supplies & Services,Systems Procurement,Prepaid Financial Services Limited,27/09/2022,"2,000.00"
Children�s Safeguarding & Family Support,Child Protection & Family Support,Employees,Agency Supply Costs,Xyla Health & Social Services,15/09/2022,357.44
Children�s Safeguarding & Family Support,Child Protection & Family Support,Employees,Agency Supply Costs,Xyla Health & Social Services,13/09/2022,"15,593.00"
Children�s Safeguarding & Family Support,Child Protection & Family Support,Employees,Agency Supply Costs,Xyla Health & Social Services,13/09/2022,409.95
Children�s Safeguarding & Family Support,Child Protection & Family Support,Employees,Agency Supply Costs,Xyla Health & Social Services,13/09/2022,345.69
Children�s Safeguarding & Family Support,Child Protection & Family Support,Employees,Agency Supply Costs,Xyla Health & Social Services,13/09/2022,"13,056.00"
Children�s Safeguarding & Family Support,Child Protection & Family Support,Employees,Agency Supply Costs,Xyla Health & Social Services,13/09/2022,"15,593.00"
Children�s Safeguarding & Family Support,Child Protection & Family Support,Employees,Agency Supply Costs,Xyla Health & Social Services,13/09/2022,"15,593.00"
Children�s Safeguarding & Family Support,Child Protection & Family Support,Employees,Agency Supply Costs,Xyla Health & Social Services,13/09/2022,"5,603.00"
Children�s Safeguarding & Family Support,Child Protection & Family Support,Employees,Agency Supply Costs,Xyla Health & Social Services,13/09/2022,"19,091.00"
Children�s Safeguarding & Family Support,Child Protection & Family Support,Employees,Agency Supply Costs,Xyla Health & Social Services,13/09/2022,"19,091.00"
Children�s Safeguarding & Family Support,Child Protection & Family Support,Employees,Agency Supply Costs,Xyla Health & Social Services,26/09/2022,"11,417.14"
Children�s Safeguarding & Family Support,Child Protection & Family Support,Employees,Agency Supply Costs,Xyla Health & Social Services,13/09/2022,"10,889.00"
Children�s Safeguarding & Family Support,Child Protection & Family Support,Employees,Agency Supply Costs,Xyla Health & Social Services,13/09/2022,"13,532.00"
Children�s Safeguarding & Family Support,Child Protection & Family Support,Employees,Agency Supply Costs,Xyla Health & Social Services,13/09/2022,"13,532.00"
Children�s Safeguarding & Family Support,Child Protection & Family Support,Employees,Agency Supply Costs,Xyla Health & Social Services,13/09/2022,"19,091.00"
Children�s Safeguarding & Family Support,Child Protection & Family Support,Employees,Agency Supply Costs,Xyla Health & Social Services,13/09/2022,"19,091.00"
Children�s Safeguarding & Family Support,Child Protection & Family Support,Employees,Staff Training,Strengthening Practice,12/09/2022,"1,650.00"
Children�s Safeguarding & Family Support,Child Protection & Family Support,Employees,Staff Training,Collective Space Limited,12/09/2022,"2,700.00"
Children�s Safeguarding & Family Support,Child Protection & Family Support,Employees,Staff Training,Collective Space Limited,12/09/2022,"4,500.00"
Children�s Safeguarding & Family Support,Child Protection & Family Support,Premises-Related Expenditure,Hire Of Rooms,MEETING POINT TRUST LTD,01/09/2022,230.00
Children�s Safeguarding & Family Support,Child Protection & Family Support,Supplies & Services,Mobile Phones,EE LTD EQUIPMENT ,27/09/2022,426.00
Children�s Safeguarding & Family Support,Child Protection & Family Support,Supplies & Services,Mobile Phones,EE LTD EQUIPMENT,06/09/2022,142.00
Children�s Safeguarding & Family Support,Child Protection & Family Support,Supplies & Services,Mobile Phones,EE LTD EQUIPMENT ,05/09/2022,142.00
Children�s Safeguarding & Family Support,Child Protection & Family Support,Supplies & Services,Mobile Phones,EE LTD EQUIPMENT,29/09/2022,142.00
Children�s Safeguarding & Family Support,Child Protection & Family Support,Supplies & Services,Other Services,BASE 25,12/09/2022,"2,000.00"
Children�s Safeguarding & Family Support,Child Protection & Family Support,Supplies & Services,Other Services,BASE 25,12/09/2022,530.00
Children�s Safeguarding & Family Support,Child Protection & Family Support,Supplies & Services,Other Services,Health Assured Ltd,12/09/2022,850.00
Children�s Safeguarding & Family Support,Child Protection & Family Support,Supplies & Services,Other Services,Signis Limited,12/09/2022,"1,500.00"
Children�s Safeguarding & Family Support,Child Protection & Family Support,Supplies & Services,Other Services,Medical Expert Witness Alliance LLP,08/09/2022,121.50
Children�s Safeguarding & Family Support,Child Protection & Family Support,Supplies & Services,Other Services,Medical Expert Witness Alliance LLP,08/09/2022,238.00
Children�s Safeguarding & Family Support,Child Protection & Family Support,Supplies & Services,Other Services,CARTER BROWN LIMITED,12/09/2022,"2,100.00"
Children�s Safeguarding & Family Support,Child Protection & Family Support,Supplies & Services,Comp Software (Purch / Hire),PHOENIX SOFTWARE LTD,07/09/2022,180.00
Children�s Safeguarding & Family Support,Child Protection & Family Support,Supplies & Services,Comp Hardware (Purch / Hire),CCS MEDIA LIMITED,07/09/2022,115.00
Children�s Safeguarding & Family Support,Family Connect & Childrens Centres,Premises-Related Expenditure,Hire Of Rooms,MEETING POINT TRUST LTD,01/09/2022,208.00
Children�s Safeguarding & Family Support,Family Connect & Childrens Centres,Premises-Related Expenditure,Hire Of Rooms,MEETING POINT TRUST LTD,01/09/2022,208.00
Children�s Safeguarding & Family Support,Family Connect & Childrens Centres,Premises-Related Expenditure,Hire Of Rooms,MEETING POINT TRUST LTD,01/09/2022,104.00
Children�s Safeguarding & Family Support,Family Connect & Childrens Centres,Supplies & Services,Comp Hardware (Purch / Hire),CCS MEDIA LIMITED,07/09/2022,502.35
Children�s Safeguarding & Family Support,Family Connect & Childrens Centres,Supplies & Services,Mobile Phones,EE LTD EQUIPMENT ,06/09/2022,284.00
Children�s Safeguarding & Family Support,Family Connect & Childrens Centres,Supplies & Services,Mobile Phones,EE LTD EQUIPMENT ,06/09/2022,142.00
Children�s Safeguarding & Family Support,Family Connect & Childrens Centres,Third Party Payments,Childminders,K H C,08/09/2022,210.00
Children�s Safeguarding & Family Support,"Family Placements, Children in Care, Leaving Care & Emergency Duty Team",Employees,Staff Training,SHROPSHIRE COUNCIL ,20/09/2022,400.00
Children�s Safeguarding & Family Support,"Family Placements, Children in Care, Leaving Care & Emergency Duty Team",Supplies & Services,Form F Assessments,Flex360 LTD,20/09/2022,841.00
Children�s Safeguarding & Family Support,"Family Placements, Children in Care, Leaving Care & Emergency Duty Team",Supplies & Services,Legal Expenses,WMB Law Ltd,01/09/2022,109.80
Children�s Safeguarding & Family Support,"Family Placements, Children in Care, Leaving Care & Emergency Duty Team",Supplies & Services,Mobile Phones,EE LTD EQUIPMENT,02/09/2022,142.00
Children�s Safeguarding & Family Support,"Family Placements, Children in Care, Leaving Care & Emergency Duty Team",Supplies & Services,Registration / Licence Fees,Coram Academy Limited,22/09/2022,"2,443.75"
Children�s Safeguarding & Family Support,"Family Placements, Children in Care, Leaving Care & Emergency Duty Team",Supplies & Services,Other Services,POST ROOM,26/09/2022,101.15
Children�s Safeguarding & Family Support,"Family Placements, Children in Care, Leaving Care & Emergency Duty Team",Supplies & Services,Form F Assessments,ES-PBS Services,21/09/2022,"1,500.00"
Children�s Safeguarding & Family Support,"Family Placements, Children in Care, Leaving Care & Emergency Duty Team",Supplies & Services,Mobile Phones,EE LTD EQUIPMENT,06/09/2022,142.00
Children�s Safeguarding & Family Support,"Family Placements, Children in Care, Leaving Care & Emergency Duty Team",Supplies & Services,Aids & Appliances,Jiraffe,06/09/2022,"1,889.00"
Children�s Safeguarding & Family Support,"Family Placements, Children in Care, Leaving Care & Emergency Duty Team",Supplies & Services,Aids & Appliances,Schuchmann LLP,06/09/2022,"1,162.00"
Children�s Safeguarding & Family Support,"Family Placements, Children in Care, Leaving Care & Emergency Duty Team",Supplies & Services,Form F Assessments,ES-PBS Services,20/09/2022,"1,000.00"
Children�s Safeguarding & Family Support,"Family Placements, Children in Care, Leaving Care & Emergency Duty Team",Supplies & Services,Equipment - Repair,STANNAH LIFT SERVICES LTD,20/09/2022,408.25
Children�s Safeguarding & Family Support,"Family Placements, Children in Care, Leaving Care & Emergency Duty Team",Supplies & Services,Equipment - Repair,ARJO UK LTD,20/09/2022,119.00
Children�s Safeguarding & Family Support,"Family Placements, Children in Care, Leaving Care & Emergency Duty Team",Supplies & Services,Aids & Appliances,Specialised Orthotic Services Ltd,08/09/2022,"1,343.51"
Children�s Safeguarding & Family Support,"Family Placements, Children in Care, Leaving Care & Emergency Duty Team",Supplies & Services,Form F Assessments,ES-PBS Services,20/09/2022,500.00
Children�s Safeguarding & Family Support,"Family Placements, Children in Care, Leaving Care & Emergency Duty Team",Supplies & Services,Form F Assessments,ES-PBS Services,20/09/2022,862.00
Children�s Safeguarding & Family Support,"Family Placements, Children in Care, Leaving Care & Emergency Duty Team",Supplies & Services,Form F Assessments,ES-PBS Services,20/09/2022,"1,000.00"
Children�s Safeguarding & Family Support,"Family Placements, Children in Care, Leaving Care & Emergency Duty Team",Supplies & Services,Mobile Phones,EE LTD EQUIPMENT,02/09/2022,142.00
Children�s Safeguarding & Family Support,"Family Placements, Children in Care, Leaving Care & Emergency Duty Team",Supplies & Services,Aids & Appliances,OSPREY HEALTHCARE LTD,29/09/2022,349.00
Children�s Safeguarding & Family Support,"Family Placements, Children in Care, Leaving Care & Emergency Duty Team",Supplies & Services,Aids & Appliances,MIDSHIRES MOBILITY GROUP,29/09/2022,"2,805.75"
Children�s Safeguarding & Family Support,"Family Placements, Children in Care, Leaving Care & Emergency Duty Team",Supplies & Services,Aids & Appliances,Nottingham Rehab Ltd,28/09/2022,352.29
Children�s Safeguarding & Family Support,"Family Placements, Children in Care, Leaving Care & Emergency Duty Team",Supplies & Services,Mobile Phones,EE LTD EQUIPMENT ,27/09/2022,426.00
Children�s Safeguarding & Family Support,"Family Placements, Children in Care, Leaving Care & Emergency Duty Team",Supplies & Services,Provisions,The Madula Project,26/09/2022,"5,000.00"
Children�s Safeguarding & Family Support,"Family Placements, Children in Care, Leaving Care & Emergency Duty Team",Supplies & Services,Mobile Phones,EE LTD EQUIPMENT,27/09/2022,142.00
Children�s Safeguarding & Family Support,"Family Placements, Children in Care, Leaving Care & Emergency Duty Team",Third Party Payments,Private Contractors,Shared Services Connected Limited,01/09/2022,"9,210.00"
Children�s Safeguarding & Family Support,"Family Placements, Children in Care, Leaving Care & Emergency Duty Team",Third Party Payments,Private Contractors,Shared Services Connected Limited,01/09/2022,"9,210.00"
Children�s Safeguarding & Family Support,"Family Placements, Children in Care, Leaving Care & Emergency Duty Team",Transport-Related Expenditure,Season Tickets,ARRIVA MIDLANDS LTD,30/09/2022,570.00
Children�s Safeguarding & Family Support,Safeguarding Advisory,Employees,Staff Training,VSC Plus Ltd,08/09/2022,675.75
Children�s Safeguarding & Family Support,Safeguarding Advisory,Premises-Related Expenditure,Hire Of Rooms,Mercure Telford Centre Hotel,28/09/2022,379.00
Children�s Safeguarding & Family Support,Safeguarding Advisory,Supplies & Services,Mobile Phones,EE LTD EQUIPMENT ,27/09/2022,142.00
Children�s Safeguarding & Family Support,Safeguarding Advisory,Supplies & Services,Mobile Phones,EE LTD EQUIPMENT,27/09/2022,142.00
Children�s Safeguarding & Family Support,Safeguarding Advisory,Supplies & Services,Public Transport Subsidy,RAMADA TELFORD IRONBRIDGE,28/09/2022,169.17
Children�s Safeguarding & Family Support,Safeguarding Advisory,Third Party Payments,Private Contractors,Change Grow Live Ltd,01/09/2022,"4,022.98"
Children's Safeguarding,Child Protection & Family Support,contribution to provision,legal,HM Courts and Tribunal service,16/09/2022," 6,712.00 "
"Communities, Customer & Commercial Services",Community Services,Capital Expenditure,Other Capital Expenditure,Minibus Options Limited,08/09/2022,"52,739.00"
"Communities, Customer & Commercial Services",Community Services,Capital Expenditure,Other Capital Expenditure,Minibus Options Limited,08/09/2022,"50,444.00"
"Communities, Customer & Commercial Services",Community Services,Premises-Related Expenditure,Electricity,West Mercia Energy (WME),26/09/2022,578.95
"Communities, Customer & Commercial Services",Community Services,Supplies & Services,Grants To Voluntary Organis,CEIA,05/09/2022,500.00
"Communities, Customer & Commercial Services",Community Services,Supplies & Services,Grants To Voluntary Organis,CEIA,05/09/2022,500.00
"Communities, Customer & Commercial Services",Community Services,Supplies & Services,Grants To Voluntary Organis,Telford Crisis Support,16/09/2022,500.00
"Communities, Customer & Commercial Services",Community Services,Supplies & Services,Grants To Voluntary Organis,Telford Crisis Support,16/09/2022,"1,000.00"
"Communities, Customer & Commercial Services",Community Services,Supplies & Services,Grants To Voluntary Organis,Friends of Apley Woods,07/09/2022,"2,000.00"
"Communities, Customer & Commercial Services",Community Services,Supplies & Services,Grants To Voluntary Organis,Telford Crisis Support,16/09/2022,200.00
"Communities, Customer & Commercial Services",Community Services,Supplies & Services,Grants To Voluntary Organis,Telford Crisis Support,16/09/2022,"1,000.00"
"Communities, Customer & Commercial Services",Community Services,Supplies & Services,Grants To Voluntary Organis,Telford Crisis Support,16/09/2022,750.00
"Communities, Customer & Commercial Services",Community Services,Supplies & Services,Grants To Voluntary Organis,Telford and Wrekin Interfaith Council,07/09/2022,500.00
"Communities, Customer & Commercial Services",Community Services,Supplies & Services,Grants To Voluntary Organis,Telford and Wrekin Interfaith Council,08/09/2022,500.00
"Communities, Customer & Commercial Services",Community Services,Supplies & Services,Grants To Voluntary Organis,Telford and Wrekin Interfaith Council,08/09/2022,250.00
"Communities, Customer & Commercial Services",Community Services,Supplies & Services,Grants To Voluntary Organis,GREAT DAWLEY PARISH COUNCIL,15/09/2022,"4,000.00"
"Communities, Customer & Commercial Services",Community Services,Supplies & Services,Grants To Voluntary Organis,LAWLEY & OVERDALE P/C PRECEPT ,15/09/2022,"1,000.00"
"Communities, Customer & Commercial Services",Community Services,Supplies & Services,Grants To Voluntary Organis,LAWLEY & OVERDALE P/C PRECEPT ,15/09/2022,670.00
"Communities, Customer & Commercial Services",Community Services,Supplies & Services,Grants To Voluntary Organis,LAWLEY & OVERDALE PARISH COUNCIL,15/09/2022,"2,000.00"
"Communities, Customer & Commercial Services",Community Services,Supplies & Services,Grants To Voluntary Organis,LAWLEY & OVERDALE PARISH COUNCIL,15/09/2022,600.00
"Communities, Customer & Commercial Services",Community Services,Supplies & Services,Grants To Voluntary Organis,LAWLEY & OVERDALE PARISH COUNCIL,15/09/2022,550.00
"Communities, Customer & Commercial Services",Community Services,Supplies & Services,Grants To Voluntary Organis,LAWLEY & OVERDALE PARISH COUNCIL,15/09/2022,900.00
"Communities, Customer & Commercial Services",Community Services,Supplies & Services,Grants To Voluntary Organis,Telford and Wrekin Interfaith Council,15/09/2022,"1,000.00"
"Communities, Customer & Commercial Services",Community Services,Supplies & Services,Grants To Voluntary Organis,Friends of Cockshutt,15/09/2022,500.00
"Communities, Customer & Commercial Services",Community Services,Supplies & Services,Grants To Voluntary Organis,HOME-START TELFORD & WREKIN,26/09/2022,"1,000.00"
"Communities, Customer & Commercial Services",Community Services,Supplies & Services,Grants To Voluntary Organis,LAWLEY & OVERDALE PARISH COUNCIL,05/09/2022,"1,000.00"
"Communities, Customer & Commercial Services",Community Services,Supplies & Services,Grants To Voluntary Organis,A Better Tomorrow C.I.C.,09/09/2022,"3,000.00"
"Communities, Customer & Commercial Services",Community Services,Supplies & Services,Grants To Voluntary Organis,SHROPSHIRE CRICKET BOARD,09/09/2022,700.00
"Communities, Customer & Commercial Services",Community Services,Supplies & Services,Grants To Voluntary Organis,Telford Crisis Support,28/09/2022,"1,000.00"
"Communities, Customer & Commercial Services",Community Services,Supplies & Services,Fees,IRONBRIDGE GORGE TRADING CO LTD,02/09/2022,"1,281.25"
"Communities, Customer & Commercial Services",Community Services,Supplies & Services,Grants To Voluntary Organis,Grange Park Primary School - Community Academies Trust,22/09/2022,"4,000.00"
"Communities, Customer & Commercial Services",Community Services,Supplies & Services,Grants To Voluntary Organis,Ladygrove Primary School Fund,22/09/2022,"1,000.00"
"Communities, Customer & Commercial Services",Community Services,Supplies & Services,Grants To Voluntary Organis,ST GEORGES & PRIORSLEE PARISH COUNCIL,22/09/2022,"1,400.00"
"Communities, Customer & Commercial Services",Community Services,Supplies & Services,Grants To Voluntary Organis,WROCKWARDINE WOOD & TRENCH PC ,13/09/2022,"5,990.00"
"Communities, Customer & Commercial Services",Community Services,Supplies & Services,Grants To Voluntary Organis,Telford and Wrekin Interfaith Council,13/09/2022,200.00
"Communities, Customer & Commercial Services",Community Services,Supplies & Services,Grants To Voluntary Organis,Telford and Wrekin Interfaith Council,13/09/2022,500.00
"Communities, Customer & Commercial Services",Community Services,Supplies & Services,Grants To Voluntary Organis,Telford and Wrekin Interfaith Council,13/09/2022,250.00
"Communities, Customer & Commercial Services",Community Services,Supplies & Services,Grants To Voluntary Organis,WROCKWARDINE WOOD & TRENCH PC ,13/09/2022,"1,200.00"
"Communities, Customer & Commercial Services",Community Services,Supplies & Services,Grants To Voluntary Organis,WROCKWARDINE WOOD & TRENCH PC ,13/09/2022,"1,200.00"
"Communities, Customer & Commercial Services",Community Services,Supplies & Services,Grants To Voluntary Organis,Brookside Central,13/09/2022,"1,965.00"
"Communities, Customer & Commercial Services",Community Services,Supplies & Services,Grants To Voluntary Organis,HOME-START TELFORD & WREKIN,23/09/2022,500.00
"Communities, Customer & Commercial Services",Community Services,Supplies & Services,Grants To Voluntary Organis,ST GEORGES & PRIORSLEE PARISH COUNCIL,29/09/2022,"8,000.00"
"Communities, Customer & Commercial Services",Community Services,Supplies & Services,Grants To Voluntary Organis,Telford and Wrekin Interfaith Council,27/09/2022,250.00
"Communities, Customer & Commercial Services",Community Services,Supplies & Services,Grants To Voluntary Organis,LITTLE DRAGONS PRE-SCHOOL,27/09/2022,500.00
"Communities, Customer & Commercial Services",Community Services,Supplies & Services,Materials,SETON LIMITED,02/09/2022,114.60
"Communities, Customer & Commercial Services",Culture & Events,Premises-Related Expenditure,Service Contracts,Churches Fire Security Ltd,15/09/2022,200.65
"Communities, Customer & Commercial Services",Culture & Events,Supplies & Services,Marketing & Publicity,The Curiuous Way,16/09/2022,"1,100.00"
"Communities, Customer & Commercial Services",Culture & Events,Supplies & Services,Marketing & Publicity,The Curiuous Way,14/09/2022,825.00
"Communities, Customer & Commercial Services",Culture & Events,Supplies & Services,Marketing & Publicity,Simpleview Europe,12/09/2022,"1,725.00"
"Communities, Customer & Commercial Services",Culture & Events,Supplies & Services,Marketing & Publicity,Simpleview Europe,12/09/2022,345.00
"Communities, Customer & Commercial Services",Culture & Events,Supplies & Services,Marketing & Publicity,BRIGHTER BUSINESS SOLUTIONS (UK) LTD,26/09/2022,"2,225.00"
"Communities, Customer & Commercial Services",Culture & Events,Supplies & Services,Artistes Fees,D M Productions Ltd,05/09/2022,"2,250.00"
"Communities, Customer & Commercial Services",Culture & Events,Supplies & Services,Artistes Fees,ShowStoppers,01/09/2022,805.00
"Communities, Customer & Commercial Services",Culture & Events,Supplies & Services,Fees,KERNOCK PARK PLANTS,07/09/2022,"1,250.00"
"Communities, Customer & Commercial Services",Culture & Events,Supplies & Services,Artistes Fees,D O�Dare Ltd,12/09/2022,"1,070.00"
"Communities, Customer & Commercial Services",Culture & Events,Supplies & Services,Fees,KERNOCK PARK PLANTS,15/09/2022,"6,985.00"
"Communities, Customer & Commercial Services",Culture & Events,Supplies & Services,Fees,KERNOCK PARK PLANTS,15/09/2022,"16,450.00"
"Communities, Customer & Commercial Services",Culture & Events,Supplies & Services,Fees,Kernock Park Plants Ltd,15/09/2022,"6,985.00"
"Communities, Customer & Commercial Services",Culture & Events,Supplies & Services,Materials,The Severn Sign & Print Company Ltd,08/09/2022,180.00
"Communities, Customer & Commercial Services",Culture & Events,Supplies & Services,Artistes Fees,Gorge Film Club,02/09/2022,250.00
"Communities, Customer & Commercial Services",Culture & Events,Supplies & Services,Equipment - Hire,PG Skips Ltd,15/09/2022,334.20
"Communities, Customer & Commercial Services",Culture & Events,Supplies & Services,Equipment - Hire,PG Skips Ltd,15/09/2022,241.50
"Communities, Customer & Commercial Services",Culture & Events,Supplies & Services,First Aid,MW MEDICS LTD,09/09/2022,"3,988.00"
"Communities, Customer & Commercial Services",Culture & Events,Supplies & Services,Equipment - Hire,Envisage Promotions Ltd,30/09/2022,628.00
"Communities, Customer & Commercial Services",Culture & Events,Supplies & Services,Advertising,THE MIDLAND NEWS ASSOCIATION LTD,06/09/2022,550.03
"Communities, Customer & Commercial Services",Culture & Events,Supplies & Services,Artistes Fees,Celestial Labs Ltd,10/09/2022,"29,600.00"
"Communities, Customer & Commercial Services",Culture & Events,Supplies & Services,Artistes Fees,Van Rosmalen Spiegeltenten BV,30/09/2022,"13,588.15"
"Communities, Customer & Commercial Services",Culture & Events,Supplies & Services,Materials,Silk Group,14/09/2022,934.20
"Communities, Customer & Commercial Services",Culture & Events,Supplies & Services,Equipment - Hire,Event Cup Solutions Ltd,22/09/2022,-233.10
"Communities, Customer & Commercial Services",Culture & Events,Supplies & Services,Artistes Fees,Fools Paradise Ltd,08/09/2022,"4,172.00"
"Communities, Customer & Commercial Services",Culture & Events,Supplies & Services,Artistes Fees,AC Lasers Ltd,08/09/2022,"6,829.00"
"Communities, Customer & Commercial Services",Culture & Events,Supplies & Services,Artistes Fees,PS PROMOTIONS LTD,08/09/2022,500.00
"Communities, Customer & Commercial Services",Culture & Events,Supplies & Services,Artistes Fees,Van Rosmalen Spiegeltenten BV,02/09/2022,"7,185.77"
"Communities, Customer & Commercial Services",Culture & Events,Supplies & Services,Equipment - Hire,Stage and Studios Services Limited,13/09/2022,"5,743.00"
"Communities, Customer & Commercial Services",Culture & Events,Supplies & Services,Artistes Fees,Fools Paradise Ltd,29/09/2022,832.00
"Communities, Customer & Commercial Services",Culture & Events,Supplies & Services,Photography,R F PHOTOGRAPHY,29/09/2022,"1,100.00"
"Communities, Customer & Commercial Services",Culture & Events,Supplies & Services,Equipment - Hire,PG Skips Ltd,29/09/2022,637.50
"Communities, Customer & Commercial Services",Culture & Events,Supplies & Services,Artistes Fees,Sound Intervention Ltd,14/09/2022,650.00
"Communities, Customer & Commercial Services",Culture & Events,Supplies & Services,Equipment - Hire,Event Cup Solutions Ltd,28/09/2022,"-1,651.50"
"Communities, Customer & Commercial Services",Culture & Events,Supplies & Services,Equipment - Hire,Stage and Studios Services Limited,27/09/2022,"4,000.00"
"Communities, Customer & Commercial Services",Culture & Events,Supplies & Services,Equipment - Hire,Envisage Promotions Ltd,13/09/2022,-786.00
"Communities, Customer & Commercial Services",Culture & Events,Supplies & Services,Equipment - Hire,TELFORD TOILET HIRE,12/09/2022,"3,500.00"
"Communities, Customer & Commercial Services",Culture & Events,Supplies & Services,Advertising,THE MIDLAND NEWS ASSOCIATION LTD,12/09/2022,"1,650.00"
"Communities, Customer & Commercial Services",Culture & Events,Supplies & Services,Web Services,YARRINGTON LIMITED,12/09/2022,240.00
"Communities, Customer & Commercial Services",Culture & Events,Supplies & Services,Artistes Fees,Wilkins Management Ltd,12/09/2022,"1,190.00"
"Communities, Customer & Commercial Services",Culture & Events,Supplies & Services,Artistes Fees,Wilkins Management Ltd,12/09/2022,"1,680.00"
"Communities, Customer & Commercial Services",Culture & Events,Supplies & Services,Advertising,DLM DISTRIBUTIONS LTD,24/09/2022,470.36
"Communities, Customer & Commercial Services",Culture & Events,Supplies & Services,Advertising,DLM DISTRIBUTIONS LTD,24/09/2022,167.00
"Communities, Customer & Commercial Services",Culture & Events,Supplies & Services,Artistes Fees,Teagues Pianos Ltd,23/09/2022,700.00
"Communities, Customer & Commercial Services",Culture & Events,Supplies & Services,Artistes Fees,Historical Promotions,26/09/2022,"3,590.00"
"Communities, Customer & Commercial Services",Culture & Events,Supplies & Services,Equipment - Hire,Stage and Studios Services Limited,26/09/2022,"2,342.25"
"Communities, Customer & Commercial Services",Culture & Events,Supplies & Services,Equipment - Hire,Event Cup Solutions Ltd,28/09/2022,"1,056.30"
"Communities, Customer & Commercial Services",Culture & Events,Supplies & Services,Equipment - Purchase,JUST PROJECTORS,22/09/2022,483.33
"Communities, Customer & Commercial Services",Culture & Events,Supplies & Services,Equipment - Purchase,JUST PROJECTORS,22/09/2022,163.50
"Communities, Customer & Commercial Services",Culture & Events,Supplies & Services,Equipment - Purchase,JUST PROJECTORS,22/09/2022,222.79
"Communities, Customer & Commercial Services",Culture & Events,Supplies & Services,Equipment - Purchase,RAP SERVICES LTD T/A TELFORD TOILET HIRE,23/09/2022,320.00
"Communities, Customer & Commercial Services",Culture & Events,Supplies & Services,Equipment - Purchase,J.E.F Scaffolding Ltd,26/09/2022,"1,965.00"
"Communities, Customer & Commercial Services",Culture & Events,Supplies & Services,Advertising,WHATS ON MAGAZINES LTD,01/09/2022,275.00
"Communities, Customer & Commercial Services",Culture & Events,Supplies & Services,Advertising,WHATS ON MAGAZINES LTD,23/09/2022,275.00
"Communities, Customer & Commercial Services",Culture & Events,Supplies & Services,Advertising,Sure Digital Limited,02/09/2022,130.00
"Communities, Customer & Commercial Services",Culture & Events,Supplies & Services,Advertising,Sure Digital Limited,02/09/2022,288.00
"Communities, Customer & Commercial Services",Culture & Events,Supplies & Services,Service Contracts,FREELANCE BUSINESS ASSOCIATES,13/09/2022,120.00
"Communities, Customer & Commercial Services",Culture & Events,Supplies & Services,Promotion Expenses,Engage Limited,12/09/2022,263.92
"Communities, Customer & Commercial Services",Culture & Events,Supplies & Services,Artistes Fees,Impatient Productions Limited,01/09/2022,"1,704.30"
"Communities, Customer & Commercial Services",Culture & Events,Supplies & Services,Promotion Expenses,Spektrix Limited,23/09/2022,"2,063.13"
"Communities, Customer & Commercial Services",Culture & Events,Supplies & Services,Artistes Fees,Telford Tigers Limited,09/09/2022,"3,849.96"
"Communities, Customer & Commercial Services",Culture & Events,Supplies & Services,Advertising,THE MIDLAND NEWS ASSOCIATION LTD,12/09/2022,"1,650.00"
"Communities, Customer & Commercial Services",Culture & Events,Supplies & Services,Artistes Fees,Phoenix Theatre School Limited,12/09/2022,"1,090.23"
"Communities, Customer & Commercial Services",Culture & Events,Supplies & Services,Artistes Fees,MRC Enterprises Ltd,27/09/2022,"5,992.53"
"Communities, Customer & Commercial Services",Culture & Events,Supplies & Services,Artistes Fees,Soul Street Productions Ltd,27/09/2022,"3,159.03"
"Communities, Customer & Commercial Services",Culture & Events,Supplies & Services,Crockery/Hardware/Light Equip,GAS DIRECT LTD,20/09/2022,101.32
"Communities, Customer & Commercial Services",Culture & Events,Supplies & Services,Wet Resale Provision,MOLSON COORS BREWING COMPANY UK LTD,05/09/2022,436.97
"Communities, Customer & Commercial Services",Culture & Events,Supplies & Services,Wet Resale Provision,MOLSON COORS BREWING COMPANY UK LTD,07/09/2022,314.73
"Communities, Customer & Commercial Services",Culture & Events,Supplies & Services,Wet Resale Provision,MOLSON COORS BREWING COMPANY UK LTD,07/09/2022,106.85
"Communities, Customer & Commercial Services",Culture & Events,Supplies & Services,Wet Resale Provision,MOLSON COORS BREWING COMPANY UK LTD,07/09/2022,314.73
"Communities, Customer & Commercial Services",Culture & Events,Supplies & Services,Wet Resale Provision,MOLSON COORS BREWING COMPANY UK LTD,07/09/2022,377.01
"Communities, Customer & Commercial Services",Culture & Events,Supplies & Services,Wet Resale Provision,MOLSON COORS BREWING COMPANY UK LTD,07/09/2022,251.34
"Communities, Customer & Commercial Services",Culture & Events,Supplies & Services,Wet Resale Provision,MOLSON COORS BREWING COMPANY UK LTD,07/09/2022,179.48
"Communities, Customer & Commercial Services",Culture & Events,Supplies & Services,Wet Resale Provision,MOLSON COORS BREWING COMPANY UK LTD,07/09/2022,106.85
"Communities, Customer & Commercial Services",Culture & Events,Supplies & Services,Wet Resale Provision,MOLSON COORS BREWING COMPANY UK LTD,07/09/2022,314.73
"Communities, Customer & Commercial Services",Culture & Events,Supplies & Services,Wet Resale Provision,MOLSON COORS BREWING COMPANY UK LTD,07/09/2022,264.72
"Communities, Customer & Commercial Services",Culture & Events,Supplies & Services,Wet Resale Provision,MOLSON COORS BREWING COMPANY UK LTD,22/09/2022,617.02
"Communities, Customer & Commercial Services",Culture & Events,Supplies & Services,Wet Resale Provision,MOLSON COORS BREWING COMPANY UK LTD,22/09/2022,"1,202.00"
"Communities, Customer & Commercial Services",Culture & Events,Supplies & Services,Wet Resale Provision,MOLSON COORS BREWING COMPANY UK LTD,22/09/2022,854.80
"Communities, Customer & Commercial Services",Culture & Events,Supplies & Services,Wet Resale Provision,MOLSON COORS BREWING COMPANY UK LTD,22/09/2022,705.92
"Communities, Customer & Commercial Services",Culture & Events,Supplies & Services,Wet Resale Provision,MOLSON COORS BREWING COMPANY UK LTD,22/09/2022,199.65
"Communities, Customer & Commercial Services",Culture & Events,Supplies & Services,Wet Resale Provision,MOLSON COORS BREWING COMPANY UK LTD,22/09/2022,114.40
"Communities, Customer & Commercial Services",Culture & Events,Supplies & Services,Wet Resale Provision,MOLSON COORS BREWING COMPANY UK LTD,22/09/2022,126.00
"Communities, Customer & Commercial Services",Culture & Events,Supplies & Services,Wet Resale Provision,MOLSON COORS BREWING COMPANY UK LTD,22/09/2022,109.90
"Communities, Customer & Commercial Services",Culture & Events,Supplies & Services,Wet Resale Provision,MOLSON COORS BREWING COMPANY UK LTD,08/09/2022,480.80
"Communities, Customer & Commercial Services",Culture & Events,Supplies & Services,Wet Resale Provision,MOLSON COORS BREWING COMPANY UK LTD,08/09/2022,213.70
"Communities, Customer & Commercial Services",Culture & Events,Supplies & Services,Wet Resale Provision,MOLSON COORS BREWING COMPANY UK LTD,08/09/2022,176.48
"Communities, Customer & Commercial Services",Culture & Events,Supplies & Services,Wet Resale Provision,MOLSON COORS BREWING COMPANY UK LTD,08/09/2022,480.80
"Communities, Customer & Commercial Services",Culture & Events,Supplies & Services,Wet Resale Provision,MOLSON COORS BREWING COMPANY UK LTD,08/09/2022,213.70
"Communities, Customer & Commercial Services",Culture & Events,Supplies & Services,Wet Resale Provision,MOLSON COORS BREWING COMPANY UK LTD,08/09/2022,176.48
"Communities, Customer & Commercial Services",Culture & Events,Supplies & Services,Wet Resale Provision,MOLSON COORS BREWING COMPANY UK LTD,08/09/2022,209.82
"Communities, Customer & Commercial Services",Culture & Events,Supplies & Services,Wet Resale Provision,MOLSON COORS BREWING COMPANY UK LTD,08/09/2022,480.80
"Communities, Customer & Commercial Services",Culture & Events,Supplies & Services,Wet Resale Provision,MOLSON COORS BREWING COMPANY UK LTD,13/09/2022,314.73
"Communities, Customer & Commercial Services",Culture & Events,Supplies & Services,Crockery/Hardware/Light Equip,GAS DIRECT LTD,27/09/2022,135.23
"Communities, Customer & Commercial Services",Culture & Events,Supplies & Services,Wet Resale Provision,MOLSON COORS BREWING COMPANY UK LTD,27/09/2022,209.82
"Communities, Customer & Commercial Services",Culture & Events,Supplies & Services,Wet Resale Provision,MOLSON COORS BREWING COMPANY UK LTD,27/09/2022,251.34
"Communities, Customer & Commercial Services",Culture & Events,Supplies & Services,Wet Resale Provision,MOLSON COORS BREWING COMPANY UK LTD,27/09/2022,360.60
"Communities, Customer & Commercial Services",Culture & Events,Supplies & Services,Wet Resale Provision,MOLSON COORS BREWING COMPANY UK LTD,27/09/2022,176.48
"Communities, Customer & Commercial Services",Culture & Events,Supplies & Services,Wet Resale Provision,MOLSON COORS BREWING COMPANY UK LTD,15/09/2022,106.85
"Communities, Customer & Commercial Services",Culture & Events,Supplies & Services,Wet Resale Provision,MOLSON COORS BREWING COMPANY UK LTD,15/09/2022,199.65
"Communities, Customer & Commercial Services",Culture & Events,Supplies & Services,Wet Resale Provision,MOLSON COORS BREWING COMPANY UK LTD,14/09/2022,106.74
"Communities, Customer & Commercial Services",Culture & Events,Supplies & Services,Wet Resale Provision,MOLSON COORS BREWING COMPANY UK LTD,14/09/2022,209.82
"Communities, Customer & Commercial Services",Culture & Events,Supplies & Services,Wet Resale Provision,MOLSON COORS BREWING COMPANY UK LTD,14/09/2022,112.72
"Communities, Customer & Commercial Services",Culture & Events,Transport-Related Expenditure,Outside Hire,Promarco Promotions Ltd,21/09/2022,895.00
"Communities, Customer & Commercial Services",Culture & Events,Transport-Related Expenditure,Outside Hire,BORLAND ROADLINER LTD,14/09/2022,395.00
"Communities, Customer & Commercial Services",Customer Relationships & Welfare Services,Employees,Professional Subs,LOCAL REGISTRATION SERVICES ASSOCIATION,20/09/2022,400.00
"Communities, Customer & Commercial Services",Customer Relationships & Welfare Services,Premises-Related Expenditure,Grounds Maintenance - Other,OASIS PLANTS LIMITED,01/09/2022,434.99
"Communities, Customer & Commercial Services",Customer Relationships & Welfare Services,Supplies & Services,Mobile Phones,EE LTD EQUIPMENT ,06/09/2022,142.00
"Communities, Customer & Commercial Services",Customer Relationships & Welfare Services,Supplies & Services,Permit Production - Blue Badge,Valtech Limited,05/09/2022,598.92
"Communities, Customer & Commercial Services",Customer Relationships & Welfare Services,Supplies & Services,Permit Production - Blue Badge,APS Group,06/09/2022,"1,295.89"
"Communities, Customer & Commercial Services",Customer Relationships & Welfare Services,Supplies & Services,Bus Pass Production,Unicard Ltd,05/09/2022,521.66
"Communities, Customer & Commercial Services",Customer Relationships & Welfare Services,Supplies & Services,Other Grants (Expenses),Discretionary Household Support,05/09/2022,822.72
"Communities, Customer & Commercial Services",Customer Relationships & Welfare Services,Supplies & Services,Other Grants (Expenses),Discretionary Household Support,05/09/2022,"1,643.15"
"Communities, Customer & Commercial Services",Customer Relationships & Welfare Services,Supplies & Services,Other Grants (Expenses),Discretionary Household Support,05/09/2022,"1,000.00"
"Communities, Customer & Commercial Services",Customer Relationships & Welfare Services,Supplies & Services,Other Grants (Expenses),Discretionary Household Support,16/09/2022,500.00
"Communities, Customer & Commercial Services",Customer Relationships & Welfare Services,Supplies & Services,Other Grants (Expenses),Hawk Incentives Ltd ,26/09/2022,"19,744.00"
"Communities, Customer & Commercial Services",Customer Relationships & Welfare Services,Supplies & Services,Other Grants (Expenses),Discretionary Household Support,14/09/2022,669.11
"Communities, Customer & Commercial Services",Customer Relationships & Welfare Services,Supplies & Services,Other Grants (Expenses),Discretionary Household Support,14/09/2022,567.22
"Communities, Customer & Commercial Services",Customer Relationships & Welfare Services,Supplies & Services,Other Grants (Expenses),Discretionary Household Support,14/09/2022,250.00
"Communities, Customer & Commercial Services",Customer Relationships & Welfare Services,Supplies & Services,Other Grants (Expenses),Discretionary Household Support,08/09/2022,304.80
"Communities, Customer & Commercial Services",Customer Relationships & Welfare Services,Supplies & Services,Consultancy,Airey Consultancy Services Ltd.,02/09/2022,650.00
"Communities, Customer & Commercial Services",Customer Relationships & Welfare Services,Supplies & Services,Other Grants (Expenses),Discretionary Household Support,23/09/2022,352.00
"Communities, Customer & Commercial Services",Customer Relationships & Welfare Services,Supplies & Services,Other Grants (Expenses),Discretionary Household Support,27/09/2022,320.00
"Communities, Customer & Commercial Services",Customer Relationships & Welfare Services,Supplies & Services,Other Grants (Expenses),Discretionary Household Support,27/09/2022,684.00
"Communities, Customer & Commercial Services",Customer Relationships & Welfare Services,Supplies & Services,Computer Software (Maint),NEC Software Solutions UK Ltd,06/09/2022,349.23
"Communities, Customer & Commercial Services",Customer Relationships & Welfare Services,Supplies & Services,Comp Software (Purch / Hire),NEC Software Solutions UK Ltd,06/09/2022,"4,248.00"
"Communities, Customer & Commercial Services",Customer Relationships & Welfare Services,Supplies & Services,IT Services,NEC Software Solutions UK Ltd,06/09/2022,"1,875.00"
"Communities, Customer & Commercial Services",Customer Relationships & Welfare Services,Supplies & Services,Postages,Financial Data Management plc,06/09/2022,128.63
"Communities, Customer & Commercial Services",Customer Relationships & Welfare Services,Supplies & Services,Postages,Financial Data Management plc,22/09/2022,191.21
"Communities, Customer & Commercial Services",Customer Relationships & Welfare Services,Supplies & Services,Mobile Phones,EE LTD EQUIPMENT ,02/09/2022,142.00
"Communities, Customer & Commercial Services",Customer Relationships & Welfare Services,Transfer Payments,Crisis Assistance Awards,Kings of the Road,12/09/2022,425.00
"Communities, Customer & Commercial Services",Customer Relationships & Welfare Services,Transfer Payments,Crisis Assistance Awards,Kings of the Road,15/09/2022,345.00
"Communities, Customer & Commercial Services",Customer Relationships & Welfare Services,Transfer Payments,Crisis Assistance Awards,Kings of the Road,06/09/2022,595.00
"Communities, Customer & Commercial Services",Customer Relationships & Welfare Services,Transfer Payments,Crisis Assistance Awards,Kings of the Road,06/09/2022,445.00
"Communities, Customer & Commercial Services",Customer Relationships & Welfare Services,Transfer Payments,Crisis Assistance Awards,Kings of the Road,14/09/2022,345.00
"Communities, Customer & Commercial Services",Customer Relationships & Welfare Services,Transfer Payments,Crisis Assistance Awards,Kings of the Road,28/09/2022,345.00
"Communities, Customer & Commercial Services",Customer Relationships & Welfare Services,Transfer Payments,Crisis Assistance Awards,PayPoint Network Limited,21/09/2022,928.00
"Communities, Customer & Commercial Services",Customer Relationships & Welfare Services,Transfer Payments,Crisis Assistance Awards,PayPoint Network Limited,15/09/2022,957.00
"Communities, Customer & Commercial Services",Customer Relationships & Welfare Services,Transfer Payments,Crisis Assistance Awards,PayPoint Network Limited,15/09/2022,890.00
"Communities, Customer & Commercial Services",Customer Relationships & Welfare Services,Transport-Related Expenditure,Outside Hire,ELCOCK REISEN,28/09/2022,500.00
"Communities, Customer & Commercial Services",ICT,Capital Expenditure,Computer Hardware,CCS MEDIA LIMITED,01/09/2022,"2,100.00"
"Communities, Customer & Commercial Services",ICT,Capital Expenditure,Computer Hardware,CCS MEDIA LIMITED,01/09/2022,170.00
"Communities, Customer & Commercial Services",ICT,Capital Expenditure,Computer Hardware,CCS MEDIA LIMITED,01/09/2022,394.50
"Communities, Customer & Commercial Services",ICT,Capital Expenditure,Computer Hardware,CCS MEDIA LIMITED,01/09/2022,422.62
"Communities, Customer & Commercial Services",ICT,Capital Expenditure,Computer Software,CIVICA UK LIMITED ,05/09/2022,"2,500.00"
"Communities, Customer & Commercial Services",ICT,Capital Expenditure,Computer Hardware,CCS MEDIA LIMITED,07/09/2022,"1,276.56"
"Communities, Customer & Commercial Services",ICT,Capital Expenditure,Computer Hardware,CCS MEDIA LIMITED,07/09/2022,109.26
"Communities, Customer & Commercial Services",ICT,Capital Expenditure,Payments to Contractor,FarrPoint Ltd,07/09/2022,131.25
"Communities, Customer & Commercial Services",ICT,Capital Expenditure,Computer Hardware,CCS MEDIA LIMITED,07/09/2022,"1,100.00"
"Communities, Customer & Commercial Services",ICT,Capital Expenditure,Computer Hardware,Daisy Corporate Services Trading Limited,13/09/2022,"269,965.23"
"Communities, Customer & Commercial Services",ICT,Capital Expenditure,Computer Hardware,Daisy Corporate Services Trading Limited,06/09/2022,"269,965.13"
"Communities, Customer & Commercial Services",ICT,Capital Expenditure,Computer Software,LIQUIDLOGIC LIMITED,14/09/2022,"28,650.00"
"Communities, Customer & Commercial Services",ICT,Capital Expenditure,Payments to Contractor,PHOENIX SOFTWARE LTD,08/09/2022,"11,160.00"
"Communities, Customer & Commercial Services",ICT,Capital Expenditure,Computer Hardware,CCS MEDIA LIMITED,02/09/2022,130.00
"Communities, Customer & Commercial Services",ICT,Capital Expenditure,Computer Hardware,CCS MEDIA LIMITED,12/09/2022,444.88
"Communities, Customer & Commercial Services",ICT,Capital Expenditure,Computer Hardware,Daisy Corporate Services Trading Limited,20/09/2022,"-269,965.13"
"Communities, Customer & Commercial Services",ICT,Capital Expenditure,Computer Hardware,CCS MEDIA LIMITED,27/09/2022,"5,400.00"
"Communities, Customer & Commercial Services",ICT,Capital Expenditure,Computer Hardware,CCS MEDIA LIMITED,27/09/2022,"1,180.00"
"Communities, Customer & Commercial Services",ICT,Capital Expenditure,Computer Hardware,CCS MEDIA LIMITED,27/09/2022,126.24
"Communities, Customer & Commercial Services",ICT,Capital Expenditure,Computer Hardware,CCS MEDIA LIMITED,27/09/2022,"3,886.36"
"Communities, Customer & Commercial Services",ICT,Capital Expenditure,Computer Software,Orange Cyberdefense UK Limited,28/09/2022,"5,483.33"
"Communities, Customer & Commercial Services",ICT,Supplies & Services,Mobile Phones,EE LTD AIRTIME ,07/09/2022,"11,907.91"
"Communities, Customer & Commercial Services",ICT,Supplies & Services,Telecomms,Airband Community Internet,07/09/2022,125.00
"Communities, Customer & Commercial Services",ICT,Supplies & Services,Telephones,BRITISH TELECOMMUNICATIONS PLC ,20/09/2022,"2,958.81"
"Communities, Customer & Commercial Services",ICT,Supplies & Services,Telecomms,Airband Community Internet,02/09/2022,294.99
"Communities, Customer & Commercial Services",ICT,Supplies & Services,Telecomms,Airband Community Internet,02/09/2022,299.99
"Communities, Customer & Commercial Services",ICT,Supplies & Services,Text Messages,PROCESS FLOWS UK LTD,12/09/2022,189.57
"Communities, Customer & Commercial Services",ICT,Supplies & Services,Computer Software (Maint),Salamandersoft Limited,01/09/2022,"1,000.00"
"Communities, Customer & Commercial Services",ICT,Supplies & Services,Comp Software (Purch / Hire),Salamandersoft Limited,01/09/2022,"12,641.00"
"Communities, Customer & Commercial Services",ICT,Supplies & Services,Telephones,BRITISH TELECOMMUNICATIONS PLC ,07/09/2022,561.54
"Communities, Customer & Commercial Services",ICT,Supplies & Services,Comp Software (Purch / Hire),Jadu Creative Limited,22/09/2022,"7,000.00"
"Communities, Customer & Commercial Services",ICT,Supplies & Services,Telecomms,CCS MEDIA LIMITED,01/09/2022,"7,030.00"
"Communities, Customer & Commercial Services",ICT,Supplies & Services,Computer Hardware (Maint),D Corporate Services Trading Limited,13/09/2022,"95,788.00"
"Communities, Customer & Commercial Services",ICT,Supplies & Services,Computer Hardware (Maint),D Corporate Services Trading Limited,06/09/2022,"85,902.25"
"Communities, Customer & Commercial Services",ICT,Supplies & Services,Telecomms,VIRGIN MEDIA BUSINESS ,02/09/2022,"4,267.00"
"Communities, Customer & Commercial Services",ICT,Supplies & Services,Comp Software (Purch / Hire),Bronze Software Labs Ltd,12/09/2022,"8,800.00"
"Communities, Customer & Commercial Services",ICT,Supplies & Services,Computer Hardware (Maint),Daisy Corporate Services Trading Limited,20/09/2022,"-85,902.25"
"Communities, Customer & Commercial Services",ICT,Supplies & Services,Comp Software (Purch / Hire),Zellis UK Ltd,20/09/2022,"100,000.00"
"Communities, Customer & Commercial Services",ICT,Supplies & Services,Comp Software (Purch / Hire),Zellis UK Ltd,28/09/2022,"1,200.00"
"Communities, Customer & Commercial Services",ICT,Supplies & Services,Stationery,Colour Data UK Ltd,07/09/2022,189.00
"Communities, Customer & Commercial Services",ICT,Supplies & Services,Stationery,Antalis Limited,01/09/2022,150.00
"Communities, Customer & Commercial Services",ICT,Supplies & Services,Stationery,Antalis Limited,01/09/2022,186.50
"Communities, Customer & Commercial Services",ICT,Supplies & Services,Comp Software (Purch / Hire),PHOENIX SOFTWARE LTD,23/09/2022,"1,026.95"
"Communities, Customer & Commercial Services",ICT,Supplies & Services,Comp Hardware (Purch / Hire),CCS MEDIA LIMITED,02/09/2022,"1,316.00"
"Communities, Customer & Commercial Services",ICT,Supplies & Services,Comp Software (Purch / Hire),PHOENIX SOFTWARE LTD,02/09/2022,"2,361.00"
"Communities, Customer & Commercial Services",ICT,Supplies & Services,Comp Software (Purch / Hire),Bromcom Computers Plc,02/09/2022,"12,753.00"
"Communities, Customer & Commercial Services",ICT,Supplies & Services,Telephones,Ghekko LTD,02/09/2022,190.00
"Communities, Customer & Commercial Services",ICT,Supplies & Services,Comp Hardware (Purch / Hire),CCS MEDIA LIMITED,23/09/2022,745.00
"Communities, Customer & Commercial Services",Sport & Leisure,Capital Expenditure,Payments to Contractor,GRANVILLE CONSTRUCTION & MAINTENANCE LTD,07/09/2022,"2,382.56"
"Communities, Customer & Commercial Services",Sport & Leisure,Capital Expenditure,Payments to Contractor,GRANVILLE CONSTRUCTION & MAINTENANCE LTD,05/09/2022,793.04
"Communities, Customer & Commercial Services",Sport & Leisure,Capital Expenditure,Fixtures & Fittings & Equipment,PULSE FITNESS LIMITED,05/09/2022,"7,813.86"
"Communities, Customer & Commercial Services",Sport & Leisure,Capital Expenditure,Payments to Contractor,JCE & SONS LTD,20/09/2022,"72,586.22"
"Communities, Customer & Commercial Services",Sport & Leisure,Capital Expenditure,Fixtures & Fittings & Equipment,PULSE FITNESS LIMITED,08/09/2022,"214,462.33"
"Communities, Customer & Commercial Services",Sport & Leisure,Capital Expenditure,Fixtures & Fittings & Equipment,CMW Equipment Holdings Limited,20/09/2022,249.10
"Communities, Customer & Commercial Services",Sport & Leisure,Capital Expenditure,Payments to Contractor,JCE & SONS LTD,26/09/2022,"10,250.08"
"Communities, Customer & Commercial Services",Sport & Leisure,Capital Expenditure,Payments to Contractor,Countwise Systems Limited,14/09/2022,109.00
"Communities, Customer & Commercial Services",Sport & Leisure,Capital Expenditure,Payments to Contractor,Countwise Systems Limited,14/09/2022,300.00
"Communities, Customer & Commercial Services",Sport & Leisure,Employees,Agency Supply Costs,TOTAL CATERING SOLUTONS RECRUITMENT LTD,30/09/2022,320.00
"Communities, Customer & Commercial Services",Sport & Leisure,Employees,Course Fees,APSE (MANCHESTER),29/09/2022,179.00
"Communities, Customer & Commercial Services",Sport & Leisure,Employees,Course Fees,APSE (MANCHESTER),29/09/2022,179.00
"Communities, Customer & Commercial Services",Sport & Leisure,Employees,Staff Training,INSTITUTE OF SWIMMING ,14/09/2022,598.00
"Communities, Customer & Commercial Services",Sport & Leisure,Employees,Staff Training,INSTITUTE OF SWIMMING ,18/09/2022,897.00
"Communities, Customer & Commercial Services",Sport & Leisure,Employees,Course Fees,INSTITUTE OF SWIMMING ,14/09/2022,"1,196.00"
"Communities, Customer & Commercial Services",Sport & Leisure,Premises-Related Expenditure,Clean Mats & Toilet Requisites,Border Janitorial Supplies Limited,22/09/2022,231.92
"Communities, Customer & Commercial Services",Sport & Leisure,Premises-Related Expenditure,Clean Mats & Toilet Requisites,Border Janitorial Supplies Limited,22/09/2022,321.26
"Communities, Customer & Commercial Services",Sport & Leisure,Premises-Related Expenditure,Clean Mats & Toilet Requisites,Border Janitorial Supplies Limited,22/09/2022,189.60
"Communities, Customer & Commercial Services",Sport & Leisure,Premises-Related Expenditure,Clean Mats & Toilet Requisites,Border Janitorial Supplies Limited,22/09/2022,483.40
"Communities, Customer & Commercial Services",Sport & Leisure,Premises-Related Expenditure,Clean Mats & Toilet Requisites,Border Janitorial Supplies Limited,22/09/2022,124.09
"Communities, Customer & Commercial Services",Sport & Leisure,Premises-Related Expenditure,Clean Mats & Toilet Requisites,Border Janitorial Supplies Limited,22/09/2022,125.37
"Communities, Customer & Commercial Services",Sport & Leisure,Premises-Related Expenditure,Clean Mats & Toilet Requisites,Border Janitorial Supplies Limited,22/09/2022,446.76
"Communities, Customer & Commercial Services",Sport & Leisure,Premises-Related Expenditure,Clean Mats & Toilet Requisites,Border Janitorial Supplies Limited,22/09/2022,401.03
"Communities, Customer & Commercial Services",Sport & Leisure,Premises-Related Expenditure,Clean Mats & Toilet Requisites,Border Janitorial Supplies Limited,22/09/2022,108.57
"Communities, Customer & Commercial Services",Sport & Leisure,Premises-Related Expenditure,Clean Mats & Toilet Requisites,Border Janitorial Supplies Limited,28/09/2022,141.86
"Communities, Customer & Commercial Services",Sport & Leisure,Premises-Related Expenditure,Clean Mats & Toilet Requisites,Border Janitorial Supplies Limited,06/09/2022,307.82
"Communities, Customer & Commercial Services",Sport & Leisure,Premises-Related Expenditure,Clean Mats & Toilet Requisites,Border Janitorial Supplies Limited,22/09/2022,541.82
"Communities, Customer & Commercial Services",Sport & Leisure,Premises-Related Expenditure,Clean Mats & Toilet Requisites,Border Janitorial Supplies Limited,22/09/2022,315.49
"Communities, Customer & Commercial Services",Sport & Leisure,Premises-Related Expenditure,Clean Mats & Toilet Requisites,Border Janitorial Supplies Limited,22/09/2022,300.36
"Communities, Customer & Commercial Services",Sport & Leisure,Premises-Related Expenditure,Clean Mats & Toilet Requisites,Border Janitorial Supplies Limited,28/09/2022,194.72
"Communities, Customer & Commercial Services",Sport & Leisure,Premises-Related Expenditure,Clean Mats & Toilet Requisites,Border Janitorial Supplies Limited,28/09/2022,143.79
"Communities, Customer & Commercial Services",Sport & Leisure,Premises-Related Expenditure,Clean Mats & Toilet Requisites,Border Janitorial Supplies Limited,22/09/2022,114.48
"Communities, Customer & Commercial Services",Sport & Leisure,Premises-Related Expenditure,Electricity,EON next,09/09/2022,143.26
"Communities, Customer & Commercial Services",Sport & Leisure,Premises-Related Expenditure,Trade Refuse,FCC Recycling (UK) Ltd ,14/09/2022,257.14
"Communities, Customer & Commercial Services",Sport & Leisure,Premises-Related Expenditure,Clean Mats & Toilet Requisites,Border Janitorial Supplies Limited,16/09/2022,110.40
"Communities, Customer & Commercial Services",Sport & Leisure,Premises-Related Expenditure,Clean Mats & Toilet Requisites,Border Janitorial Supplies Limited,27/09/2022,120.32
"Communities, Customer & Commercial Services",Sport & Leisure,Premises-Related Expenditure,Clean Mats & Toilet Requisites,Border Janitorial Supplies Limited,16/09/2022,218.63
"Communities, Customer & Commercial Services",Sport & Leisure,Premises-Related Expenditure,R&M -Building Other,B INDUSTRIAL SERVICES,16/09/2022,145.09
"Communities, Customer & Commercial Services",Sport & Leisure,Premises-Related Expenditure,R&M -Building Other,JCE & SONS LTD,06/09/2022,147.32
"Communities, Customer & Commercial Services",Sport & Leisure,Premises-Related Expenditure,R&M -Building Other,COOL SERVICES LTD,14/09/2022,143.66
"Communities, Customer & Commercial Services",Sport & Leisure,Premises-Related Expenditure,Preventative Maintenance,Bearing Man Ltd ,05/09/2022,494.51
"Communities, Customer & Commercial Services",Sport & Leisure,Premises-Related Expenditure,Grounds Maint - Sports Pitches,Technical Surfaces Ltd,05/09/2022,475.00
"Communities, Customer & Commercial Services",Sport & Leisure,Premises-Related Expenditure,R&M WC Planned,Agrovista UK LTD,21/09/2022,"1,659.00"
"Communities, Customer & Commercial Services",Sport & Leisure,Premises-Related Expenditure,R&M -Building Other,Envirosport Maintenance Limited,13/09/2022,495.00
"Communities, Customer & Commercial Services",Sport & Leisure,Supplies & Services,Mobile Phones,EE LTD EQUIPMENT ,07/09/2022,284.00
"Communities, Customer & Commercial Services",Sport & Leisure,Supplies & Services,Equipment - Purchase,S Y Research LTD,22/09/2022,138.00
"Communities, Customer & Commercial Services",Sport & Leisure,Supplies & Services,Equipment - Repair,THE CLEAN MACHINE DIRECT LTD,01/09/2022,162.00
"Communities, Customer & Commercial Services",Sport & Leisure,Supplies & Services,Equipment - Repair,D ELECTRICAL WHOLESALERS LTD,01/09/2022,296.40
"Communities, Customer & Commercial Services",Sport & Leisure,Supplies & Services,Equipment - Repair,THE CLEAN MACHINE DIRECT LTD,28/09/2022,164.88
"Communities, Customer & Commercial Services",Sport & Leisure,Supplies & Services,Equipment - Repair,NUMATIC INTERNATIONAL LTD,28/09/2022,133.28
"Communities, Customer & Commercial Services",Sport & Leisure,Supplies & Services,Crockery/Hardware/Light Equip,PLANGLOW LTD,30/09/2022,740.91
"Communities, Customer & Commercial Services",Sport & Leisure,Supplies & Services,Crockery/Hardware/Light Equip,SICO EUROPE LTD,30/09/2022,"10,387.00"
"Communities, Customer & Commercial Services",Sport & Leisure,Supplies & Services,Computer Hardware (Maint),CIVICA UK LIMITED ,06/09/2022,750.00
"Communities, Customer & Commercial Services",Sport & Leisure,Supplies & Services,Publications,ROYAL MAIL GROUP LTD,06/09/2022,120.27
"Communities, Customer & Commercial Services",Sport & Leisure,Supplies & Services,Provisions,J L DAIRIES,20/09/2022,707.45
"Communities, Customer & Commercial Services",Sport & Leisure,Supplies & Services,Provisions,J L DAIRIES,20/09/2022,"1,454.91"
"Communities, Customer & Commercial Services",Sport & Leisure,Supplies & Services,Provisions,BIKOLD,16/09/2022,107.72
"Communities, Customer & Commercial Services",Sport & Leisure,Supplies & Services,Provisions,BIKOLD,13/09/2022,108.62
"Communities, Customer & Commercial Services",Sport & Leisure,Supplies & Services,Provisions,BIKOLD,13/09/2022,118.06
"Communities, Customer & Commercial Services",Sport & Leisure,Supplies & Services,Crockery/Hardware/Light Equip,Vegware,16/09/2022,232.56
"Communities, Customer & Commercial Services",Sport & Leisure,Supplies & Services,Crockery/Hardware/Light Equip,Harfield Components Ltd,27/09/2022,156.00
"Communities, Customer & Commercial Services",Sport & Leisure,Supplies & Services,Crockery/Hardware/Light Equip,PLANGLOW LTD,27/09/2022,156.25
"Communities, Customer & Commercial Services",Sport & Leisure,Supplies & Services,Crockery/Hardware/Light Equip,E N CATERING EQUIPMENT AND SERVICES  LTD,30/09/2022,158.95
"Communities, Customer & Commercial Services",Sport & Leisure,Supplies & Services,Provisions,R & COMPANY,05/09/2022,389.78
"Communities, Customer & Commercial Services",Sport & Leisure,Supplies & Services,Provisions,BIKOLD,16/09/2022,110.10
"Communities, Customer & Commercial Services",Sport & Leisure,Supplies & Services,Provisions,BIKOLD,16/09/2022,364.61
"Communities, Customer & Commercial Services",Sport & Leisure,Supplies & Services,Provisions,BIKOLD,16/09/2022,216.95
"Communities, Customer & Commercial Services",Sport & Leisure,Supplies & Services,Provisions,BIKOLD,16/09/2022,307.54
"Communities, Customer & Commercial Services",Sport & Leisure,Supplies & Services,Provisions,BIKOLD,16/09/2022,124.18
"Communities, Customer & Commercial Services",Sport & Leisure,Supplies & Services,Provisions,BIKOLD,16/09/2022,198.37
"Communities, Customer & Commercial Services",Sport & Leisure,Supplies & Services,Provisions,BIKOLD,16/09/2022,137.07
"Communities, Customer & Commercial Services",Sport & Leisure,Supplies & Services,Provisions,BIKOLD,16/09/2022,267.59
"Communities, Customer & Commercial Services",Sport & Leisure,Supplies & Services,Provisions,BIKOLD,16/09/2022,434.93
"Communities, Customer & Commercial Services",Sport & Leisure,Supplies & Services,Provisions,BIKOLD,16/09/2022,145.22
"Communities, Customer & Commercial Services",Sport & Leisure,Supplies & Services,Provisions,BIKOLD,16/09/2022,152.63
"Communities, Customer & Commercial Services",Sport & Leisure,Supplies & Services,Provisions,BIKOLD,16/09/2022,211.94
"Communities, Customer & Commercial Services",Sport & Leisure,Supplies & Services,Provisions,BIKOLD,16/09/2022,213.15
"Communities, Customer & Commercial Services",Sport & Leisure,Supplies & Services,Provisions,BIKOLD,16/09/2022,272.99
"Communities, Customer & Commercial Services",Sport & Leisure,Supplies & Services,Provisions,BIKOLD,16/09/2022,339.28
"Communities, Customer & Commercial Services",Sport & Leisure,Supplies & Services,Provisions,BIKOLD,16/09/2022,302.80
"Communities, Customer & Commercial Services",Sport & Leisure,Supplies & Services,Provisions,BIKOLD,16/09/2022,278.20
"Communities, Customer & Commercial Services",Sport & Leisure,Supplies & Services,Provisions,BIKOLD,16/09/2022,117.87
"Communities, Customer & Commercial Services",Sport & Leisure,Supplies & Services,Provisions,BIKOLD,16/09/2022,149.63
"Communities, Customer & Commercial Services",Sport & Leisure,Supplies & Services,Provisions,BIKOLD,16/09/2022,707.20
"Communities, Customer & Commercial Services",Sport & Leisure,Supplies & Services,Provisions,BIKOLD,16/09/2022,209.60
"Communities, Customer & Commercial Services",Sport & Leisure,Supplies & Services,Provisions,BIKOLD,16/09/2022,662.05
"Communities, Customer & Commercial Services",Sport & Leisure,Supplies & Services,Provisions,BIKOLD,16/09/2022,141.61
"Communities, Customer & Commercial Services",Sport & Leisure,Supplies & Services,Provisions,BIKOLD,16/09/2022,201.22
"Communities, Customer & Commercial Services",Sport & Leisure,Supplies & Services,Provisions,BIKOLD,16/09/2022,108.72
"Communities, Customer & Commercial Services",Sport & Leisure,Supplies & Services,Provisions,BIKOLD,16/09/2022,202.01
"Communities, Customer & Commercial Services",Sport & Leisure,Supplies & Services,Provisions,BIKOLD,16/09/2022,105.73
"Communities, Customer & Commercial Services",Sport & Leisure,Supplies & Services,Provisions,BIKOLD,16/09/2022,131.09
"Communities, Customer & Commercial Services",Sport & Leisure,Supplies & Services,Provisions,BIKOLD,16/09/2022,118.07
"Communities, Customer & Commercial Services",Sport & Leisure,Supplies & Services,Provisions,BIKOLD,16/09/2022,103.19
"Communities, Customer & Commercial Services",Sport & Leisure,Supplies & Services,Provisions,BIKOLD,16/09/2022,110.32
"Communities, Customer & Commercial Services",Sport & Leisure,Supplies & Services,Provisions,BIKOLD,16/09/2022,280.35
"Communities, Customer & Commercial Services",Sport & Leisure,Supplies & Services,Provisions,BIKOLD,16/09/2022,166.79
"Communities, Customer & Commercial Services",Sport & Leisure,Supplies & Services,Provisions,BIKOLD,16/09/2022,332.40
"Communities, Customer & Commercial Services",Sport & Leisure,Supplies & Services,Provisions,BIKOLD,16/09/2022,108.02
"Communities, Customer & Commercial Services",Sport & Leisure,Supplies & Services,Provisions,BIKOLD,16/09/2022,166.63
"Communities, Customer & Commercial Services",Sport & Leisure,Supplies & Services,Provisions,BIKOLD,16/09/2022,358.88
"Communities, Customer & Commercial Services",Sport & Leisure,Supplies & Services,Provisions,BIKOLD,16/09/2022,477.43
"Communities, Customer & Commercial Services",Sport & Leisure,Supplies & Services,Provisions,BIKOLD,16/09/2022,237.29
"Communities, Customer & Commercial Services",Sport & Leisure,Supplies & Services,Provisions,BIKOLD,16/09/2022,230.07
"Communities, Customer & Commercial Services",Sport & Leisure,Supplies & Services,Provisions,BIKOLD,16/09/2022,361.02
"Communities, Customer & Commercial Services",Sport & Leisure,Supplies & Services,Provisions,BIKOLD,16/09/2022,223.36
"Communities, Customer & Commercial Services",Sport & Leisure,Supplies & Services,Provisions,BIKOLD,16/09/2022,239.07
"Communities, Customer & Commercial Services",Sport & Leisure,Supplies & Services,Provisions,BIKOLD,16/09/2022,490.77
"Communities, Customer & Commercial Services",Sport & Leisure,Supplies & Services,Provisions,BIKOLD,16/09/2022,110.66
"Communities, Customer & Commercial Services",Sport & Leisure,Supplies & Services,Provisions,BIKOLD,16/09/2022,149.07
"Communities, Customer & Commercial Services",Sport & Leisure,Supplies & Services,Provisions,BIKOLD,16/09/2022,393.37
"Communities, Customer & Commercial Services",Sport & Leisure,Supplies & Services,Provisions,BIKOLD,16/09/2022,-171.59
"Communities, Customer & Commercial Services",Sport & Leisure,Supplies & Services,Provisions,BIKOLD,16/09/2022,234.84
"Communities, Customer & Commercial Services",Sport & Leisure,Supplies & Services,Provisions,BIKOLD,16/09/2022,100.88
"Communities, Customer & Commercial Services",Sport & Leisure,Supplies & Services,Provisions,BIKOLD,16/09/2022,734.21
"Communities, Customer & Commercial Services",Sport & Leisure,Supplies & Services,Provisions,BIKOLD,16/09/2022,135.86
"Communities, Customer & Commercial Services",Sport & Leisure,Supplies & Services,Provisions,BIKOLD,16/09/2022,130.92
"Communities, Customer & Commercial Services",Sport & Leisure,Supplies & Services,Provisions,BIKOLD,16/09/2022,115.31
"Communities, Customer & Commercial Services",Sport & Leisure,Supplies & Services,Provisions,BIKOLD,16/09/2022,135.67
"Communities, Customer & Commercial Services",Sport & Leisure,Supplies & Services,Provisions,BIKOLD,16/09/2022,236.79
"Communities, Customer & Commercial Services",Sport & Leisure,Supplies & Services,Provisions,BIKOLD,16/09/2022,112.75
"Communities, Customer & Commercial Services",Sport & Leisure,Supplies & Services,Provisions,BIKOLD,16/09/2022,219.39
"Communities, Customer & Commercial Services",Sport & Leisure,Supplies & Services,Provisions,BIKOLD,16/09/2022,113.10
"Communities, Customer & Commercial Services",Sport & Leisure,Supplies & Services,Provisions,BIKOLD,16/09/2022,153.09
"Communities, Customer & Commercial Services",Sport & Leisure,Supplies & Services,Provisions,BIKOLD,16/09/2022,338.55
"Communities, Customer & Commercial Services",Sport & Leisure,Supplies & Services,Provisions,BIKOLD,16/09/2022,126.04
"Communities, Customer & Commercial Services",Sport & Leisure,Supplies & Services,Provisions,BIKOLD,16/09/2022,217.96
"Communities, Customer & Commercial Services",Sport & Leisure,Supplies & Services,Provisions,BIKOLD,16/09/2022,130.38
"Communities, Customer & Commercial Services",Sport & Leisure,Supplies & Services,Provisions,BIKOLD,16/09/2022,161.43
"Communities, Customer & Commercial Services",Sport & Leisure,Supplies & Services,Provisions,BIKOLD,16/09/2022,150.50
"Communities, Customer & Commercial Services",Sport & Leisure,Supplies & Services,Provisions,BIKOLD,16/09/2022,161.12
"Communities, Customer & Commercial Services",Sport & Leisure,Supplies & Services,Provisions,BIKOLD,16/09/2022,141.61
"Communities, Customer & Commercial Services",Sport & Leisure,Supplies & Services,Provisions,BIKOLD,16/09/2022,423.45
"Communities, Customer & Commercial Services",Sport & Leisure,Supplies & Services,Provisions,BIKOLD,16/09/2022,140.27
"Communities, Customer & Commercial Services",Sport & Leisure,Supplies & Services,Provisions,BIKOLD,16/09/2022,232.42
"Communities, Customer & Commercial Services",Sport & Leisure,Supplies & Services,Provisions,BIKOLD,16/09/2022,166.38
"Communities, Customer & Commercial Services",Sport & Leisure,Supplies & Services,Provisions,BIKOLD,16/09/2022,314.45
"Communities, Customer & Commercial Services",Sport & Leisure,Supplies & Services,Provisions,BIKOLD,16/09/2022,677.18
"Communities, Customer & Commercial Services",Sport & Leisure,Supplies & Services,Provisions,BIKOLD,16/09/2022,132.61
"Communities, Customer & Commercial Services",Sport & Leisure,Supplies & Services,Provisions,BIKOLD,16/09/2022,163.28
"Communities, Customer & Commercial Services",Sport & Leisure,Supplies & Services,Provisions,BIKOLD,16/09/2022,699.34
"Communities, Customer & Commercial Services",Sport & Leisure,Supplies & Services,Provisions,BIKOLD,16/09/2022,260.93
"Communities, Customer & Commercial Services",Sport & Leisure,Supplies & Services,Provisions,BIKOLD,16/09/2022,-146.44
"Communities, Customer & Commercial Services",Sport & Leisure,Supplies & Services,Provisions,BIKOLD,16/09/2022,169.13
"Communities, Customer & Commercial Services",Sport & Leisure,Supplies & Services,Provisions,BIKOLD,16/09/2022,300.68
"Communities, Customer & Commercial Services",Sport & Leisure,Supplies & Services,Provisions,BIKOLD,16/09/2022,101.40
"Communities, Customer & Commercial Services",Sport & Leisure,Supplies & Services,Provisions,BIKOLD,16/09/2022,172.74
"Communities, Customer & Commercial Services",Sport & Leisure,Supplies & Services,Provisions,BIKOLD,16/09/2022,255.64
"Communities, Customer & Commercial Services",Sport & Leisure,Supplies & Services,Provisions,BIKOLD,16/09/2022,165.99
"Communities, Customer & Commercial Services",Sport & Leisure,Supplies & Services,Provisions,BIKOLD,16/09/2022,306.20
"Communities, Customer & Commercial Services",Sport & Leisure,Supplies & Services,Provisions,BIKOLD,16/09/2022,156.33
"Communities, Customer & Commercial Services",Sport & Leisure,Supplies & Services,Provisions,BIKOLD,16/09/2022,317.03
"Communities, Customer & Commercial Services",Sport & Leisure,Supplies & Services,Provisions,BIKOLD,16/09/2022,117.81
"Communities, Customer & Commercial Services",Sport & Leisure,Supplies & Services,Provisions,BIKOLD,16/09/2022,-123.22
"Communities, Customer & Commercial Services",Sport & Leisure,Supplies & Services,Provisions,BIKOLD,16/09/2022,289.60
"Communities, Customer & Commercial Services",Sport & Leisure,Supplies & Services,Provisions,BIKOLD,16/09/2022,195.10
"Communities, Customer & Commercial Services",Sport & Leisure,Supplies & Services,Provisions,BIKOLD,16/09/2022,510.37
"Communities, Customer & Commercial Services",Sport & Leisure,Supplies & Services,Provisions,BIKOLD,16/09/2022,205.62
"Communities, Customer & Commercial Services",Sport & Leisure,Supplies & Services,Provisions,BIKOLD,16/09/2022,402.54
"Communities, Customer & Commercial Services",Sport & Leisure,Supplies & Services,Provisions,BIKOLD,16/09/2022,285.02
"Communities, Customer & Commercial Services",Sport & Leisure,Supplies & Services,Provisions,BIKOLD,16/09/2022,426.62
"Communities, Customer & Commercial Services",Sport & Leisure,Supplies & Services,Provisions,BIKOLD,16/09/2022,367.93
"Communities, Customer & Commercial Services",Sport & Leisure,Supplies & Services,Provisions,BIKOLD,16/09/2022,263.88
"Communities, Customer & Commercial Services",Sport & Leisure,Supplies & Services,Provisions,BIKOLD,16/09/2022,360.41
"Communities, Customer & Commercial Services",Sport & Leisure,Supplies & Services,Provisions,BIKOLD,16/09/2022,294.92
"Communities, Customer & Commercial Services",Sport & Leisure,Supplies & Services,Provisions,BIKOLD,16/09/2022,100.03
"Communities, Customer & Commercial Services",Sport & Leisure,Supplies & Services,Provisions,BIKOLD,16/09/2022,315.90
"Communities, Customer & Commercial Services",Sport & Leisure,Supplies & Services,Provisions,BIKOLD,16/09/2022,250.33
"Communities, Customer & Commercial Services",Sport & Leisure,Supplies & Services,Provisions,BIKOLD,16/09/2022,265.90
"Communities, Customer & Commercial Services",Sport & Leisure,Supplies & Services,Provisions,BIKOLD,16/09/2022,417.32
"Communities, Customer & Commercial Services",Sport & Leisure,Supplies & Services,Provisions,BIKOLD,16/09/2022,211.60
"Communities, Customer & Commercial Services",Sport & Leisure,Supplies & Services,Provisions,BIKOLD,16/09/2022,155.23
"Communities, Customer & Commercial Services",Sport & Leisure,Supplies & Services,Provisions,BIKOLD,16/09/2022,408.77
"Communities, Customer & Commercial Services",Sport & Leisure,Supplies & Services,Provisions,BIKOLD,16/09/2022,461.83
"Communities, Customer & Commercial Services",Sport & Leisure,Supplies & Services,Provisions,BIKOLD,16/09/2022,171.36
"Communities, Customer & Commercial Services",Sport & Leisure,Supplies & Services,Provisions,BIKOLD,16/09/2022,418.78
"Communities, Customer & Commercial Services",Sport & Leisure,Supplies & Services,Provisions,BIKOLD,30/09/2022,150.13
"Communities, Customer & Commercial Services",Sport & Leisure,Supplies & Services,Provisions,BIKOLD,30/09/2022,174.93
"Communities, Customer & Commercial Services",Sport & Leisure,Supplies & Services,Provisions,BIKOLD,30/09/2022,235.49
"Communities, Customer & Commercial Services",Sport & Leisure,Supplies & Services,Provisions,BIKOLD,30/09/2022,130.97
"Communities, Customer & Commercial Services",Sport & Leisure,Supplies & Services,Provisions,BIKOLD,30/09/2022,175.91
"Communities, Customer & Commercial Services",Sport & Leisure,Supplies & Services,Provisions,BIKOLD,30/09/2022,175.71
"Communities, Customer & Commercial Services",Sport & Leisure,Supplies & Services,Provisions,BIKOLD,30/09/2022,129.24
"Communities, Customer & Commercial Services",Sport & Leisure,Supplies & Services,Provisions,BIKOLD,30/09/2022,174.07
"Communities, Customer & Commercial Services",Sport & Leisure,Supplies & Services,Provisions,BIKOLD,30/09/2022,162.53
"Communities, Customer & Commercial Services",Sport & Leisure,Supplies & Services,Provisions,BIKOLD,30/09/2022,118.03
"Communities, Customer & Commercial Services",Sport & Leisure,Supplies & Services,Provisions,BIKOLD,30/09/2022,190.34
"Communities, Customer & Commercial Services",Sport & Leisure,Supplies & Services,Provisions,BIKOLD,30/09/2022,299.87
"Communities, Customer & Commercial Services",Sport & Leisure,Supplies & Services,Provisions,BIKOLD,30/09/2022,455.86
"Communities, Customer & Commercial Services",Sport & Leisure,Supplies & Services,Provisions,BIKOLD,30/09/2022,104.18
"Communities, Customer & Commercial Services",Sport & Leisure,Supplies & Services,Provisions,BIKOLD,30/09/2022,161.22
"Communities, Customer & Commercial Services",Sport & Leisure,Supplies & Services,Provisions,BIKOLD,30/09/2022,110.65
"Communities, Customer & Commercial Services",Sport & Leisure,Supplies & Services,Provisions,BIKOLD,30/09/2022,184.55
"Communities, Customer & Commercial Services",Sport & Leisure,Supplies & Services,Provisions,BIKOLD,30/09/2022,233.66
"Communities, Customer & Commercial Services",Sport & Leisure,Supplies & Services,Provisions,BIKOLD,30/09/2022,253.21
"Communities, Customer & Commercial Services",Sport & Leisure,Supplies & Services,Provisions,BIKOLD,30/09/2022,168.68
"Communities, Customer & Commercial Services",Sport & Leisure,Supplies & Services,Provisions,BIKOLD,30/09/2022,273.11
"Communities, Customer & Commercial Services",Sport & Leisure,Supplies & Services,Provisions,BIKOLD,30/09/2022,303.43
"Communities, Customer & Commercial Services",Sport & Leisure,Supplies & Services,Provisions,BIKOLD,30/09/2022,169.59
"Communities, Customer & Commercial Services",Sport & Leisure,Supplies & Services,Provisions,BIKOLD,30/09/2022,183.63
"Communities, Customer & Commercial Services",Sport & Leisure,Supplies & Services,Provisions,BIKOLD,30/09/2022,260.62
"Communities, Customer & Commercial Services",Sport & Leisure,Supplies & Services,Provisions,BIKOLD,30/09/2022,288.53
"Communities, Customer & Commercial Services",Sport & Leisure,Supplies & Services,Provisions,BIKOLD,30/09/2022,229.40
"Communities, Customer & Commercial Services",Sport & Leisure,Supplies & Services,Provisions,BIKOLD,30/09/2022,102.21
"Communities, Customer & Commercial Services",Sport & Leisure,Supplies & Services,Provisions,BIKOLD,30/09/2022,289.68
"Communities, Customer & Commercial Services",Sport & Leisure,Supplies & Services,Provisions,BIKOLD,30/09/2022,117.48
"Communities, Customer & Commercial Services",Sport & Leisure,Supplies & Services,Provisions,BIKOLD,30/09/2022,156.03
"Communities, Customer & Commercial Services",Sport & Leisure,Supplies & Services,Provisions,BIKOLD,30/09/2022,209.76
"Communities, Customer & Commercial Services",Sport & Leisure,Supplies & Services,Provisions,BIKOLD,30/09/2022,345.42
"Communities, Customer & Commercial Services",Sport & Leisure,Supplies & Services,Provisions,BIKOLD,30/09/2022,138.46
"Communities, Customer & Commercial Services",Sport & Leisure,Supplies & Services,Provisions,BIKOLD,30/09/2022,211.60
"Communities, Customer & Commercial Services",Sport & Leisure,Supplies & Services,Provisions,BIKOLD,30/09/2022,111.10
"Communities, Customer & Commercial Services",Sport & Leisure,Supplies & Services,Provisions,BIKOLD,30/09/2022,140.31
"Communities, Customer & Commercial Services",Sport & Leisure,Supplies & Services,Provisions,BIKOLD,30/09/2022,122.07
"Communities, Customer & Commercial Services",Sport & Leisure,Supplies & Services,Provisions,BIKOLD,30/09/2022,197.32
"Communities, Customer & Commercial Services",Sport & Leisure,Supplies & Services,Provisions,BIKOLD,30/09/2022,103.22
"Communities, Customer & Commercial Services",Sport & Leisure,Supplies & Services,Provisions,BIKOLD,30/09/2022,331.64
"Communities, Customer & Commercial Services",Sport & Leisure,Supplies & Services,Provisions,BIKOLD,30/09/2022,161.80
"Communities, Customer & Commercial Services",Sport & Leisure,Supplies & Services,Provisions,BIKOLD,30/09/2022,111.08
"Communities, Customer & Commercial Services",Sport & Leisure,Supplies & Services,Provisions,BIKOLD,30/09/2022,-125.09
"Communities, Customer & Commercial Services",Sport & Leisure,Supplies & Services,Provisions,BIKOLD,30/09/2022,390.65
"Communities, Customer & Commercial Services",Sport & Leisure,Supplies & Services,Provisions,BIKOLD,30/09/2022,608.34
"Communities, Customer & Commercial Services",Sport & Leisure,Supplies & Services,Provisions,BIKOLD,30/09/2022,125.09
"Communities, Customer & Commercial Services",Sport & Leisure,Supplies & Services,Provisions,BIKOLD,30/09/2022,102.83
"Communities, Customer & Commercial Services",Sport & Leisure,Supplies & Services,Provisions,BIKOLD,30/09/2022,107.31
"Communities, Customer & Commercial Services",Sport & Leisure,Supplies & Services,Provisions,BIKOLD,30/09/2022,172.56
"Communities, Customer & Commercial Services",Sport & Leisure,Supplies & Services,Provisions,BIKOLD,30/09/2022,197.45
"Communities, Customer & Commercial Services",Sport & Leisure,Supplies & Services,Provisions,BIKOLD,30/09/2022,179.70
"Communities, Customer & Commercial Services",Sport & Leisure,Supplies & Services,Provisions,BIKOLD,30/09/2022,133.17
"Communities, Customer & Commercial Services",Sport & Leisure,Supplies & Services,Provisions,BIKOLD,30/09/2022,166.82
"Communities, Customer & Commercial Services",Sport & Leisure,Supplies & Services,Provisions,BIKOLD,30/09/2022,189.47
"Communities, Customer & Commercial Services",Sport & Leisure,Supplies & Services,Provisions,BIKOLD,30/09/2022,297.28
"Communities, Customer & Commercial Services",Sport & Leisure,Supplies & Services,Provisions,BIKOLD,30/09/2022,280.97
"Communities, Customer & Commercial Services",Sport & Leisure,Supplies & Services,Provisions,BIKOLD,30/09/2022,236.17
"Communities, Customer & Commercial Services",Sport & Leisure,Supplies & Services,Provisions,BIKOLD,30/09/2022,249.23
"Communities, Customer & Commercial Services",Sport & Leisure,Supplies & Services,Provisions,BIKOLD,30/09/2022,160.86
"Communities, Customer & Commercial Services",Sport & Leisure,Supplies & Services,Provisions,BIKOLD,30/09/2022,552.83
"Communities, Customer & Commercial Services",Sport & Leisure,Supplies & Services,Provisions,BIKOLD,30/09/2022,231.17
"Communities, Customer & Commercial Services",Sport & Leisure,Supplies & Services,Provisions,BIKOLD,30/09/2022,212.99
"Communities, Customer & Commercial Services",Sport & Leisure,Supplies & Services,Provisions,BIKOLD,30/09/2022,269.03
"Communities, Customer & Commercial Services",Sport & Leisure,Supplies & Services,Provisions,BIKOLD,30/09/2022,338.33
"Communities, Customer & Commercial Services",Sport & Leisure,Supplies & Services,Provisions,BIKOLD,30/09/2022,177.76
"Communities, Customer & Commercial Services",Sport & Leisure,Supplies & Services,Provisions,BIKOLD,30/09/2022,191.27
"Communities, Customer & Commercial Services",Sport & Leisure,Supplies & Services,Provisions,BIKOLD,30/09/2022,541.39
"Communities, Customer & Commercial Services",Sport & Leisure,Supplies & Services,Provisions,BIKOLD,30/09/2022,392.39
"Communities, Customer & Commercial Services",Sport & Leisure,Supplies & Services,Provisions,BIKOLD,30/09/2022,285.04
"Communities, Customer & Commercial Services",Sport & Leisure,Supplies & Services,Provisions,BIKOLD,30/09/2022,121.18
"Communities, Customer & Commercial Services",Sport & Leisure,Supplies & Services,Provisions,BIKOLD,30/09/2022,187.90
"Communities, Customer & Commercial Services",Sport & Leisure,Supplies & Services,Provisions,BIKOLD,30/09/2022,505.63
"Communities, Customer & Commercial Services",Sport & Leisure,Supplies & Services,Provisions,BIKOLD,30/09/2022,127.63
"Communities, Customer & Commercial Services",Sport & Leisure,Supplies & Services,Provisions,BIKOLD,30/09/2022,127.55
"Communities, Customer & Commercial Services",Sport & Leisure,Supplies & Services,Provisions,BIKOLD,30/09/2022,333.02
"Communities, Customer & Commercial Services",Sport & Leisure,Supplies & Services,Provisions,BIKOLD,30/09/2022,327.31
"Communities, Customer & Commercial Services",Sport & Leisure,Supplies & Services,Provisions,BIKOLD,30/09/2022,234.77
"Communities, Customer & Commercial Services",Sport & Leisure,Supplies & Services,Provisions,BIKOLD,30/09/2022,128.83
"Communities, Customer & Commercial Services",Sport & Leisure,Supplies & Services,Provisions,BIKOLD,30/09/2022,231.65
"Communities, Customer & Commercial Services",Sport & Leisure,Supplies & Services,Provisions,BIKOLD,30/09/2022,301.35
"Communities, Customer & Commercial Services",Sport & Leisure,Supplies & Services,Provisions,BIKOLD,30/09/2022,116.45
"Communities, Customer & Commercial Services",Sport & Leisure,Supplies & Services,Provisions,BIKOLD,30/09/2022,183.00
"Communities, Customer & Commercial Services",Sport & Leisure,Supplies & Services,Provisions,BIKOLD,30/09/2022,213.70
"Communities, Customer & Commercial Services",Sport & Leisure,Supplies & Services,Provisions,BIKOLD,30/09/2022,173.37
"Communities, Customer & Commercial Services",Sport & Leisure,Supplies & Services,Provisions,BIKOLD,30/09/2022,318.97
"Communities, Customer & Commercial Services",Sport & Leisure,Supplies & Services,Provisions,BIKOLD,30/09/2022,116.90
"Communities, Customer & Commercial Services",Sport & Leisure,Supplies & Services,Provisions,BIKOLD,30/09/2022,235.02
"Communities, Customer & Commercial Services",Sport & Leisure,Supplies & Services,Provisions,BIKOLD,30/09/2022,443.75
"Communities, Customer & Commercial Services",Sport & Leisure,Supplies & Services,Provisions,BIKOLD,30/09/2022,185.35
"Communities, Customer & Commercial Services",Sport & Leisure,Supplies & Services,Provisions,BIKOLD,30/09/2022,106.94
"Communities, Customer & Commercial Services",Sport & Leisure,Supplies & Services,Provisions,BIKOLD,30/09/2022,173.38
"Communities, Customer & Commercial Services",Sport & Leisure,Supplies & Services,Provisions,BIKOLD,30/09/2022,304.97
"Communities, Customer & Commercial Services",Sport & Leisure,Supplies & Services,Provisions,BIKOLD,30/09/2022,118.72
"Communities, Customer & Commercial Services",Sport & Leisure,Supplies & Services,Provisions,BIKOLD,30/09/2022,105.00
"Communities, Customer & Commercial Services",Sport & Leisure,Supplies & Services,Provisions,BIKOLD,30/09/2022,135.44
"Communities, Customer & Commercial Services",Sport & Leisure,Supplies & Services,Provisions,BIKOLD,30/09/2022,121.08
"Communities, Customer & Commercial Services",Sport & Leisure,Supplies & Services,Provisions,BIKOLD,30/09/2022,150.68
"Communities, Customer & Commercial Services",Sport & Leisure,Supplies & Services,Provisions,BIKOLD,30/09/2022,112.61
"Communities, Customer & Commercial Services",Sport & Leisure,Supplies & Services,Provisions,BIKOLD,30/09/2022,375.45
"Communities, Customer & Commercial Services",Sport & Leisure,Supplies & Services,Provisions,BIKOLD,30/09/2022,128.63
"Communities, Customer & Commercial Services",Sport & Leisure,Supplies & Services,Provisions,BIKOLD,30/09/2022,178.52
"Communities, Customer & Commercial Services",Sport & Leisure,Supplies & Services,Provisions,BIKOLD,30/09/2022,116.20
"Communities, Customer & Commercial Services",Sport & Leisure,Supplies & Services,Provisions,BIKOLD,30/09/2022,215.63
"Communities, Customer & Commercial Services",Sport & Leisure,Supplies & Services,Provisions,BIKOLD,13/09/2022,320.20
"Communities, Customer & Commercial Services",Sport & Leisure,Supplies & Services,Provisions,BIKOLD,13/09/2022,175.81
"Communities, Customer & Commercial Services",Sport & Leisure,Supplies & Services,Provisions,BIKOLD,13/09/2022,112.27
"Communities, Customer & Commercial Services",Sport & Leisure,Supplies & Services,Provisions,BIKOLD,13/09/2022,108.29
"Communities, Customer & Commercial Services",Sport & Leisure,Supplies & Services,Provisions,BIKOLD,13/09/2022,276.09
"Communities, Customer & Commercial Services",Sport & Leisure,Supplies & Services,Provisions,BIKOLD,13/09/2022,100.50
"Communities, Customer & Commercial Services",Sport & Leisure,Supplies & Services,Provisions,BIKOLD,13/09/2022,369.62
"Communities, Customer & Commercial Services",Sport & Leisure,Supplies & Services,Provisions,BIKOLD,13/09/2022,227.67
"Communities, Customer & Commercial Services",Sport & Leisure,Supplies & Services,Provisions,BIKOLD,13/09/2022,250.44
"Communities, Customer & Commercial Services",Sport & Leisure,Supplies & Services,Provisions,BIKOLD,13/09/2022,373.07
"Communities, Customer & Commercial Services",Sport & Leisure,Supplies & Services,Provisions,BIKOLD,13/09/2022,197.44
"Communities, Customer & Commercial Services",Sport & Leisure,Supplies & Services,Provisions,BIKOLD,13/09/2022,245.06
"Communities, Customer & Commercial Services",Sport & Leisure,Supplies & Services,Provisions,BIKOLD,13/09/2022,160.67
"Communities, Customer & Commercial Services",Sport & Leisure,Supplies & Services,Provisions,BIKOLD,13/09/2022,326.10
"Communities, Customer & Commercial Services",Sport & Leisure,Supplies & Services,Provisions,BIKOLD,13/09/2022,321.08
"Communities, Customer & Commercial Services",Sport & Leisure,Supplies & Services,Provisions,BIKOLD,13/09/2022,352.94
"Communities, Customer & Commercial Services",Sport & Leisure,Supplies & Services,Provisions,BIKOLD,13/09/2022,136.21
"Communities, Customer & Commercial Services",Sport & Leisure,Supplies & Services,Provisions,BIKOLD,13/09/2022,163.70
"Communities, Customer & Commercial Services",Sport & Leisure,Supplies & Services,Provisions,BIKOLD,13/09/2022,290.35
"Communities, Customer & Commercial Services",Sport & Leisure,Supplies & Services,Provisions,BIKOLD,13/09/2022,228.82
"Communities, Customer & Commercial Services",Sport & Leisure,Supplies & Services,Provisions,BIKOLD,13/09/2022,172.51
"Communities, Customer & Commercial Services",Sport & Leisure,Supplies & Services,Provisions,BIKOLD,13/09/2022,299.91
"Communities, Customer & Commercial Services",Sport & Leisure,Supplies & Services,Provisions,BIKOLD,13/09/2022,241.73
"Communities, Customer & Commercial Services",Sport & Leisure,Supplies & Services,Provisions,BIKOLD,13/09/2022,151.62
"Communities, Customer & Commercial Services",Sport & Leisure,Supplies & Services,Provisions,BIKOLD,13/09/2022,237.84
"Communities, Customer & Commercial Services",Sport & Leisure,Supplies & Services,Provisions,BIKOLD,13/09/2022,174.59
"Communities, Customer & Commercial Services",Sport & Leisure,Supplies & Services,Provisions,BIKOLD,13/09/2022,242.64
"Communities, Customer & Commercial Services",Sport & Leisure,Supplies & Services,Provisions,BIKOLD,13/09/2022,379.18
"Communities, Customer & Commercial Services",Sport & Leisure,Supplies & Services,Provisions,BIKOLD,13/09/2022,106.88
"Communities, Customer & Commercial Services",Sport & Leisure,Supplies & Services,Provisions,BIKOLD,13/09/2022,118.55
"Communities, Customer & Commercial Services",Sport & Leisure,Supplies & Services,Provisions,BIKOLD,13/09/2022,115.06
"Communities, Customer & Commercial Services",Sport & Leisure,Supplies & Services,Provisions,BIKOLD,13/09/2022,726.68
"Communities, Customer & Commercial Services",Sport & Leisure,Supplies & Services,Provisions,BIKOLD,13/09/2022,166.81
"Communities, Customer & Commercial Services",Sport & Leisure,Supplies & Services,Provisions,BIKOLD,13/09/2022,606.30
"Communities, Customer & Commercial Services",Sport & Leisure,Supplies & Services,Provisions,BIKOLD,13/09/2022,165.63
"Communities, Customer & Commercial Services",Sport & Leisure,Supplies & Services,Provisions,BIKOLD,13/09/2022,251.90
"Communities, Customer & Commercial Services",Sport & Leisure,Supplies & Services,Provisions,BIKOLD,13/09/2022,107.20
"Communities, Customer & Commercial Services",Sport & Leisure,Supplies & Services,Provisions,BIKOLD,13/09/2022,217.55
"Communities, Customer & Commercial Services",Sport & Leisure,Supplies & Services,Provisions,BIKOLD,13/09/2022,114.17
"Communities, Customer & Commercial Services",Sport & Leisure,Supplies & Services,Provisions,BIKOLD,13/09/2022,132.66
"Communities, Customer & Commercial Services",Sport & Leisure,Supplies & Services,Provisions,BIKOLD,13/09/2022,209.04
"Communities, Customer & Commercial Services",Sport & Leisure,Supplies & Services,Provisions,BIKOLD,13/09/2022,105.27
"Communities, Customer & Commercial Services",Sport & Leisure,Supplies & Services,Provisions,BIKOLD,13/09/2022,136.95
"Communities, Customer & Commercial Services",Sport & Leisure,Supplies & Services,Provisions,BIKOLD,13/09/2022,425.99
"Communities, Customer & Commercial Services",Sport & Leisure,Supplies & Services,Provisions,BIKOLD,13/09/2022,135.65
"Communities, Customer & Commercial Services",Sport & Leisure,Supplies & Services,Provisions,BIKOLD,13/09/2022,506.23
"Communities, Customer & Commercial Services",Sport & Leisure,Supplies & Services,Provisions,BIKOLD,13/09/2022,235.92
"Communities, Customer & Commercial Services",Sport & Leisure,Supplies & Services,Provisions,BIKOLD,13/09/2022,176.06
"Communities, Customer & Commercial Services",Sport & Leisure,Supplies & Services,Provisions,BIKOLD,13/09/2022,399.82
"Communities, Customer & Commercial Services",Sport & Leisure,Supplies & Services,Provisions,BIKOLD,13/09/2022,110.34
"Communities, Customer & Commercial Services",Sport & Leisure,Supplies & Services,Provisions,BIKOLD,13/09/2022,177.06
"Communities, Customer & Commercial Services",Sport & Leisure,Supplies & Services,Provisions,BIKOLD,13/09/2022,212.93
"Communities, Customer & Commercial Services",Sport & Leisure,Supplies & Services,Provisions,BIKOLD,13/09/2022,141.27
"Communities, Customer & Commercial Services",Sport & Leisure,Supplies & Services,Provisions,BIKOLD,13/09/2022,175.56
"Communities, Customer & Commercial Services",Sport & Leisure,Supplies & Services,Provisions,BIKOLD,13/09/2022,215.14
"Communities, Customer & Commercial Services",Sport & Leisure,Supplies & Services,Provisions,BIKOLD,13/09/2022,175.50
"Communities, Customer & Commercial Services",Sport & Leisure,Supplies & Services,Provisions,BIKOLD,13/09/2022,322.57
"Communities, Customer & Commercial Services",Sport & Leisure,Supplies & Services,Provisions,BIKOLD,13/09/2022,284.91
"Communities, Customer & Commercial Services",Sport & Leisure,Supplies & Services,Provisions,BIKOLD,13/09/2022,168.26
"Communities, Customer & Commercial Services",Sport & Leisure,Supplies & Services,Provisions,BIKOLD,13/09/2022,102.28
"Communities, Customer & Commercial Services",Sport & Leisure,Supplies & Services,Provisions,BIKOLD,13/09/2022,131.97
"Communities, Customer & Commercial Services",Sport & Leisure,Supplies & Services,Provisions,BIKOLD,13/09/2022,101.38
"Communities, Customer & Commercial Services",Sport & Leisure,Supplies & Services,Provisions,BIKOLD,13/09/2022,337.36
"Communities, Customer & Commercial Services",Sport & Leisure,Supplies & Services,Provisions,BIKOLD,13/09/2022,165.97
"Communities, Customer & Commercial Services",Sport & Leisure,Supplies & Services,Provisions,BIKOLD,13/09/2022,320.75
"Communities, Customer & Commercial Services",Sport & Leisure,Supplies & Services,Provisions,BIKOLD,13/09/2022,427.11
"Communities, Customer & Commercial Services",Sport & Leisure,Supplies & Services,Provisions,BIKOLD,13/09/2022,406.30
"Communities, Customer & Commercial Services",Sport & Leisure,Supplies & Services,Provisions,BIKOLD,13/09/2022,253.61
"Communities, Customer & Commercial Services",Sport & Leisure,Supplies & Services,Provisions,BIKOLD,13/09/2022,186.18
"Communities, Customer & Commercial Services",Sport & Leisure,Supplies & Services,Provisions,BIKOLD,13/09/2022,104.35
"Communities, Customer & Commercial Services",Sport & Leisure,Supplies & Services,Provisions,BIKOLD,13/09/2022,102.37
"Communities, Customer & Commercial Services",Sport & Leisure,Supplies & Services,Provisions,BIKOLD,13/09/2022,385.63
"Communities, Customer & Commercial Services",Sport & Leisure,Supplies & Services,Provisions,BIKOLD,13/09/2022,667.02
"Communities, Customer & Commercial Services",Sport & Leisure,Supplies & Services,Provisions,BIKOLD,13/09/2022,180.71
"Communities, Customer & Commercial Services",Sport & Leisure,Supplies & Services,Provisions,BIKOLD,13/09/2022,265.08
"Communities, Customer & Commercial Services",Sport & Leisure,Supplies & Services,Provisions,BIKOLD,13/09/2022,129.60
"Communities, Customer & Commercial Services",Sport & Leisure,Supplies & Services,Provisions,BIKOLD,13/09/2022,146.44
"Communities, Customer & Commercial Services",Sport & Leisure,Supplies & Services,Provisions,BIKOLD,13/09/2022,206.49
"Communities, Customer & Commercial Services",Sport & Leisure,Supplies & Services,Provisions,BIKOLD,13/09/2022,396.47
"Communities, Customer & Commercial Services",Sport & Leisure,Supplies & Services,Provisions,BIKOLD,13/09/2022,198.91
"Communities, Customer & Commercial Services",Sport & Leisure,Supplies & Services,Provisions,BIKOLD,13/09/2022,243.68
"Communities, Customer & Commercial Services",Sport & Leisure,Supplies & Services,Provisions,BIKOLD,13/09/2022,500.84
"Communities, Customer & Commercial Services",Sport & Leisure,Supplies & Services,Provisions,BIKOLD,13/09/2022,158.22
"Communities, Customer & Commercial Services",Sport & Leisure,Supplies & Services,Provisions,BIKOLD,13/09/2022,231.35
"Communities, Customer & Commercial Services",Sport & Leisure,Supplies & Services,Provisions,BIKOLD,13/09/2022,439.31
"Communities, Customer & Commercial Services",Sport & Leisure,Supplies & Services,Provisions,BIKOLD,13/09/2022,365.80
"Communities, Customer & Commercial Services",Sport & Leisure,Supplies & Services,Provisions,BIKOLD,13/09/2022,214.76
"Communities, Customer & Commercial Services",Sport & Leisure,Supplies & Services,Provisions,BIKOLD,13/09/2022,250.32
"Communities, Customer & Commercial Services",Sport & Leisure,Supplies & Services,Provisions,BIKOLD,13/09/2022,278.46
"Communities, Customer & Commercial Services",Sport & Leisure,Supplies & Services,Provisions,BIKOLD,13/09/2022,157.78
"Communities, Customer & Commercial Services",Sport & Leisure,Supplies & Services,Provisions,BIKOLD,13/09/2022,129.59
"Communities, Customer & Commercial Services",Sport & Leisure,Supplies & Services,Provisions,BIKOLD,13/09/2022,271.25
"Communities, Customer & Commercial Services",Sport & Leisure,Supplies & Services,Provisions,BIKOLD,13/09/2022,154.60
"Communities, Customer & Commercial Services",Sport & Leisure,Supplies & Services,Provisions,BIKOLD,13/09/2022,214.95
"Communities, Customer & Commercial Services",Sport & Leisure,Supplies & Services,Provisions,BIKOLD,13/09/2022,156.46
"Communities, Customer & Commercial Services",Sport & Leisure,Supplies & Services,Provisions,BIKOLD,13/09/2022,105.65
"Communities, Customer & Commercial Services",Sport & Leisure,Supplies & Services,Provisions,BIKOLD,13/09/2022,117.49
"Communities, Customer & Commercial Services",Sport & Leisure,Supplies & Services,Provisions,BIKOLD,13/09/2022,111.96
"Communities, Customer & Commercial Services",Sport & Leisure,Supplies & Services,Provisions,BIKOLD,13/09/2022,280.26
"Communities, Customer & Commercial Services",Sport & Leisure,Supplies & Services,Provisions,BIKOLD,13/09/2022,241.64
"Communities, Customer & Commercial Services",Sport & Leisure,Supplies & Services,Provisions,BIKOLD,13/09/2022,148.26
"Communities, Customer & Commercial Services",Sport & Leisure,Supplies & Services,Provisions,BIKOLD,06/09/2022,317.26
"Communities, Customer & Commercial Services",Sport & Leisure,Supplies & Services,Provisions,BIKOLD,06/09/2022,267.68
"Communities, Customer & Commercial Services",Sport & Leisure,Supplies & Services,Provisions,BIKOLD,23/09/2022,330.26
"Communities, Customer & Commercial Services",Sport & Leisure,Supplies & Services,Provisions,BIKOLD,23/09/2022,370.55
"Communities, Customer & Commercial Services",Sport & Leisure,Supplies & Services,Provisions,BIKOLD,23/09/2022,151.13
"Communities, Customer & Commercial Services",Sport & Leisure,Supplies & Services,Provisions,BIKOLD,23/09/2022,104.32
"Communities, Customer & Commercial Services",Sport & Leisure,Supplies & Services,Provisions,BIKOLD,23/09/2022,227.24
"Communities, Customer & Commercial Services",Sport & Leisure,Supplies & Services,Provisions,BIKOLD,23/09/2022,649.73
"Communities, Customer & Commercial Services",Sport & Leisure,Supplies & Services,Provisions,BIKOLD,23/09/2022,148.66
"Communities, Customer & Commercial Services",Sport & Leisure,Supplies & Services,Provisions,BIKOLD,23/09/2022,114.03
"Communities, Customer & Commercial Services",Sport & Leisure,Supplies & Services,Provisions,BIKOLD,23/09/2022,232.15
"Communities, Customer & Commercial Services",Sport & Leisure,Supplies & Services,Provisions,BIKOLD,23/09/2022,144.41
"Communities, Customer & Commercial Services",Sport & Leisure,Supplies & Services,Provisions,BIKOLD,23/09/2022,108.99
"Communities, Customer & Commercial Services",Sport & Leisure,Supplies & Services,Provisions,BIKOLD,23/09/2022,384.30
"Communities, Customer & Commercial Services",Sport & Leisure,Supplies & Services,Provisions,BIKOLD,23/09/2022,540.56
"Communities, Customer & Commercial Services",Sport & Leisure,Supplies & Services,Provisions,BIKOLD,23/09/2022,237.23
"Communities, Customer & Commercial Services",Sport & Leisure,Supplies & Services,Provisions,BIKOLD,23/09/2022,161.03
"Communities, Customer & Commercial Services",Sport & Leisure,Supplies & Services,Provisions,BIKOLD,23/09/2022,158.77
"Communities, Customer & Commercial Services",Sport & Leisure,Supplies & Services,Provisions,BIKOLD,23/09/2022,132.51
"Communities, Customer & Commercial Services",Sport & Leisure,Supplies & Services,Provisions,BIKOLD,23/09/2022,243.96
"Communities, Customer & Commercial Services",Sport & Leisure,Supplies & Services,Provisions,BIKOLD,23/09/2022,106.37
"Communities, Customer & Commercial Services",Sport & Leisure,Supplies & Services,Provisions,BIKOLD,23/09/2022,120.77
"Communities, Customer & Commercial Services",Sport & Leisure,Supplies & Services,Provisions,BIKOLD,23/09/2022,112.82
"Communities, Customer & Commercial Services",Sport & Leisure,Supplies & Services,Provisions,BIKOLD,23/09/2022,148.50
"Communities, Customer & Commercial Services",Sport & Leisure,Supplies & Services,Provisions,BIKOLD,23/09/2022,141.69
"Communities, Customer & Commercial Services",Sport & Leisure,Supplies & Services,Provisions,BIKOLD,23/09/2022,277.65
"Communities, Customer & Commercial Services",Sport & Leisure,Supplies & Services,Provisions,BIKOLD,23/09/2022,121.11
"Communities, Customer & Commercial Services",Sport & Leisure,Supplies & Services,Provisions,BIKOLD,23/09/2022,157.42
"Communities, Customer & Commercial Services",Sport & Leisure,Supplies & Services,Provisions,BIKOLD,23/09/2022,119.14
"Communities, Customer & Commercial Services",Sport & Leisure,Supplies & Services,Provisions,BIKOLD,23/09/2022,170.28
"Communities, Customer & Commercial Services",Sport & Leisure,Supplies & Services,Provisions,BIKOLD,23/09/2022,106.75
"Communities, Customer & Commercial Services",Sport & Leisure,Supplies & Services,Provisions,BIKOLD,23/09/2022,485.07
"Communities, Customer & Commercial Services",Sport & Leisure,Supplies & Services,Provisions,BIKOLD,23/09/2022,260.30
"Communities, Customer & Commercial Services",Sport & Leisure,Supplies & Services,Provisions,BIKOLD,23/09/2022,168.94
"Communities, Customer & Commercial Services",Sport & Leisure,Supplies & Services,Provisions,BIKOLD,23/09/2022,493.32
"Communities, Customer & Commercial Services",Sport & Leisure,Supplies & Services,Provisions,BIKOLD,23/09/2022,390.33
"Communities, Customer & Commercial Services",Sport & Leisure,Supplies & Services,Provisions,BIKOLD,23/09/2022,279.02
"Communities, Customer & Commercial Services",Sport & Leisure,Supplies & Services,Provisions,BIKOLD,23/09/2022,277.99
"Communities, Customer & Commercial Services",Sport & Leisure,Supplies & Services,Provisions,BIKOLD,23/09/2022,145.01
"Communities, Customer & Commercial Services",Sport & Leisure,Supplies & Services,Provisions,BIKOLD,23/09/2022,100.66
"Communities, Customer & Commercial Services",Sport & Leisure,Supplies & Services,Provisions,BIKOLD,23/09/2022,176.91
"Communities, Customer & Commercial Services",Sport & Leisure,Supplies & Services,Provisions,BIKOLD,23/09/2022,134.71
"Communities, Customer & Commercial Services",Sport & Leisure,Supplies & Services,Provisions,BIKOLD,23/09/2022,341.84
"Communities, Customer & Commercial Services",Sport & Leisure,Supplies & Services,Provisions,BIKOLD,23/09/2022,112.79
"Communities, Customer & Commercial Services",Sport & Leisure,Supplies & Services,Provisions,BIKOLD,23/09/2022,136.55
"Communities, Customer & Commercial Services",Sport & Leisure,Supplies & Services,Provisions,BIKOLD,23/09/2022,332.57
"Communities, Customer & Commercial Services",Sport & Leisure,Supplies & Services,Provisions,BIKOLD,23/09/2022,267.88
"Communities, Customer & Commercial Services",Sport & Leisure,Supplies & Services,Provisions,BIKOLD,23/09/2022,264.84
"Communities, Customer & Commercial Services",Sport & Leisure,Supplies & Services,Provisions,BIKOLD,23/09/2022,265.36
"Communities, Customer & Commercial Services",Sport & Leisure,Supplies & Services,Provisions,BIKOLD,23/09/2022,192.07
"Communities, Customer & Commercial Services",Sport & Leisure,Supplies & Services,Provisions,BIKOLD,23/09/2022,111.40
"Communities, Customer & Commercial Services",Sport & Leisure,Supplies & Services,Provisions,BIKOLD,23/09/2022,226.15
"Communities, Customer & Commercial Services",Sport & Leisure,Supplies & Services,Provisions,BIKOLD,23/09/2022,177.50
"Communities, Customer & Commercial Services",Sport & Leisure,Supplies & Services,Provisions,BIKOLD,23/09/2022,115.52
"Communities, Customer & Commercial Services",Sport & Leisure,Supplies & Services,Provisions,BIKOLD,23/09/2022,216.09
"Communities, Customer & Commercial Services",Sport & Leisure,Supplies & Services,Provisions,BIKOLD,23/09/2022,106.41
"Communities, Customer & Commercial Services",Sport & Leisure,Supplies & Services,Provisions,BIKOLD,23/09/2022,146.58
"Communities, Customer & Commercial Services",Sport & Leisure,Supplies & Services,Provisions,BIKOLD,23/09/2022,171.93
"Communities, Customer & Commercial Services",Sport & Leisure,Supplies & Services,Provisions,BIKOLD,23/09/2022,221.05
"Communities, Customer & Commercial Services",Sport & Leisure,Supplies & Services,Provisions,BIKOLD,23/09/2022,130.42
"Communities, Customer & Commercial Services",Sport & Leisure,Supplies & Services,Provisions,BIKOLD,23/09/2022,482.85
"Communities, Customer & Commercial Services",Sport & Leisure,Supplies & Services,Provisions,BIKOLD,23/09/2022,169.15
"Communities, Customer & Commercial Services",Sport & Leisure,Supplies & Services,Provisions,BIKOLD,23/09/2022,498.86
"Communities, Customer & Commercial Services",Sport & Leisure,Supplies & Services,Provisions,BIKOLD,23/09/2022,207.47
"Communities, Customer & Commercial Services",Sport & Leisure,Supplies & Services,Provisions,BIKOLD,23/09/2022,413.74
"Communities, Customer & Commercial Services",Sport & Leisure,Supplies & Services,Provisions,PASTA KING (UK) LIMITED,16/09/2022,227.64
"Communities, Customer & Commercial Services",Sport & Leisure,Supplies & Services,Provisions,PASTA KING (UK) LIMITED,16/09/2022,329.60
"Communities, Customer & Commercial Services",Sport & Leisure,Supplies & Services,Provisions,Handmade Speciality Products Ltd,16/09/2022,322.42
"Communities, Customer & Commercial Services",Sport & Leisure,Supplies & Services,Provisions,T FOOD SERVICE LTD,06/09/2022,"2,433.80"
"Communities, Customer & Commercial Services",Sport & Leisure,Supplies & Services,Provisions,T FOOD SERVICE LTD,06/09/2022,"1,118.60"
"Communities, Customer & Commercial Services",Sport & Leisure,Supplies & Services,Provisions,BIKOLD,16/09/2022,109.03
"Communities, Customer & Commercial Services",Sport & Leisure,Supplies & Services,Provisions,BIKOLD,16/09/2022,815.92
"Communities, Customer & Commercial Services",Sport & Leisure,Supplies & Services,Provisions,BIKOLD,16/09/2022,167.50
"Communities, Customer & Commercial Services",Sport & Leisure,Supplies & Services,Provisions,BIKOLD,16/09/2022,209.20
"Communities, Customer & Commercial Services",Sport & Leisure,Supplies & Services,Provisions,BIKOLD,16/09/2022,536.12
"Communities, Customer & Commercial Services",Sport & Leisure,Supplies & Services,Provisions,BIKOLD,16/09/2022,113.40
"Communities, Customer & Commercial Services",Sport & Leisure,Supplies & Services,Provisions,BIKOLD,16/09/2022,184.04
"Communities, Customer & Commercial Services",Sport & Leisure,Supplies & Services,Provisions,BIKOLD,16/09/2022,196.86
"Communities, Customer & Commercial Services",Sport & Leisure,Supplies & Services,Provisions,BIKOLD,16/09/2022,330.77
"Communities, Customer & Commercial Services",Sport & Leisure,Supplies & Services,Provisions,BIKOLD,16/09/2022,414.49
"Communities, Customer & Commercial Services",Sport & Leisure,Supplies & Services,Provisions,BIKOLD,16/09/2022,554.51
"Communities, Customer & Commercial Services",Sport & Leisure,Supplies & Services,Provisions,BIKOLD,16/09/2022,252.02
"Communities, Customer & Commercial Services",Sport & Leisure,Supplies & Services,Provisions,BIKOLD,16/09/2022,263.07
"Communities, Customer & Commercial Services",Sport & Leisure,Supplies & Services,Provisions,BIKOLD,16/09/2022,291.20
"Communities, Customer & Commercial Services",Sport & Leisure,Supplies & Services,Provisions,BIKOLD,16/09/2022,"1,366.80"
"Communities, Customer & Commercial Services",Sport & Leisure,Supplies & Services,Provisions,BIKOLD,16/09/2022,111.46
"Communities, Customer & Commercial Services",Sport & Leisure,Supplies & Services,Provisions,BIKOLD,16/09/2022,"-1,287.73"
"Communities, Customer & Commercial Services",Sport & Leisure,Supplies & Services,Provisions,BIKOLD,16/09/2022,231.68
"Communities, Customer & Commercial Services",Sport & Leisure,Supplies & Services,Provisions,BIKOLD,16/09/2022,"1,424.91"
"Communities, Customer & Commercial Services",Sport & Leisure,Supplies & Services,Provisions,BIKOLD,16/09/2022,232.10
"Communities, Customer & Commercial Services",Sport & Leisure,Supplies & Services,Provisions,T FOOD SERVICE LTD,06/09/2022,914.70
"Communities, Customer & Commercial Services",Sport & Leisure,Supplies & Services,Provisions,PASTA KING (UK) LIMITED,06/09/2022,197.76
"Communities, Customer & Commercial Services",Sport & Leisure,Supplies & Services,Computer Hardware (Maint),CIVICA UK LIMITED ,06/09/2022,455.75
"Communities, Customer & Commercial Services",Sport & Leisure,Supplies & Services,Provisions,BIKOLD,30/09/2022,314.58
"Communities, Customer & Commercial Services",Sport & Leisure,Supplies & Services,Provisions,BIKOLD,30/09/2022,705.20
"Communities, Customer & Commercial Services",Sport & Leisure,Supplies & Services,Provisions,BIKOLD,30/09/2022,119.62
"Communities, Customer & Commercial Services",Sport & Leisure,Supplies & Services,Provisions,BIKOLD,30/09/2022,426.08
"Communities, Customer & Commercial Services",Sport & Leisure,Supplies & Services,Provisions,BIKOLD,30/09/2022,673.91
"Communities, Customer & Commercial Services",Sport & Leisure,Supplies & Services,Provisions,BIKOLD,30/09/2022,475.52
"Communities, Customer & Commercial Services",Sport & Leisure,Supplies & Services,Provisions,BIKOLD,30/09/2022,192.57
"Communities, Customer & Commercial Services",Sport & Leisure,Supplies & Services,Provisions,BIKOLD,30/09/2022,367.84
"Communities, Customer & Commercial Services",Sport & Leisure,Supplies & Services,Provisions,BIKOLD,30/09/2022,100.44
"Communities, Customer & Commercial Services",Sport & Leisure,Supplies & Services,Provisions,BIKOLD,30/09/2022,420.68
"Communities, Customer & Commercial Services",Sport & Leisure,Supplies & Services,Provisions,BIKOLD,30/09/2022,153.26
"Communities, Customer & Commercial Services",Sport & Leisure,Supplies & Services,Provisions,BIKOLD,30/09/2022,176.60
"Communities, Customer & Commercial Services",Sport & Leisure,Supplies & Services,Provisions,BIKOLD,30/09/2022,409.07
"Communities, Customer & Commercial Services",Sport & Leisure,Supplies & Services,Provisions,BIKOLD,30/09/2022,130.57
"Communities, Customer & Commercial Services",Sport & Leisure,Supplies & Services,Provisions,BIKOLD,30/09/2022,241.72
"Communities, Customer & Commercial Services",Sport & Leisure,Supplies & Services,Provisions,BIKOLD,30/09/2022,140.32
"Communities, Customer & Commercial Services",Sport & Leisure,Supplies & Services,Provisions,BIKOLD,30/09/2022,170.64
"Communities, Customer & Commercial Services",Sport & Leisure,Supplies & Services,Provisions,BIKOLD,30/09/2022,628.03
"Communities, Customer & Commercial Services",Sport & Leisure,Supplies & Services,Provisions,BIKOLD,30/09/2022,640.63
"Communities, Customer & Commercial Services",Sport & Leisure,Supplies & Services,Provisions,BIKOLD,13/09/2022,238.06
"Communities, Customer & Commercial Services",Sport & Leisure,Supplies & Services,Provisions,BIKOLD,13/09/2022,478.29
"Communities, Customer & Commercial Services",Sport & Leisure,Supplies & Services,Provisions,BIKOLD,13/09/2022,"1,287.73"
"Communities, Customer & Commercial Services",Sport & Leisure,Supplies & Services,Provisions,BIKOLD,13/09/2022,350.72
"Communities, Customer & Commercial Services",Sport & Leisure,Supplies & Services,Provisions,BIKOLD,13/09/2022,161.29
"Communities, Customer & Commercial Services",Sport & Leisure,Supplies & Services,Provisions,BIKOLD,13/09/2022,358.65
"Communities, Customer & Commercial Services",Sport & Leisure,Supplies & Services,Provisions,BIKOLD,13/09/2022,386.56
"Communities, Customer & Commercial Services",Sport & Leisure,Supplies & Services,Provisions,BIKOLD,13/09/2022,123.82
"Communities, Customer & Commercial Services",Sport & Leisure,Supplies & Services,Provisions,BIKOLD,13/09/2022,101.47
"Communities, Customer & Commercial Services",Sport & Leisure,Supplies & Services,Provisions,BIKOLD,13/09/2022,460.33
"Communities, Customer & Commercial Services",Sport & Leisure,Supplies & Services,Provisions,BIKOLD,13/09/2022,175.10
"Communities, Customer & Commercial Services",Sport & Leisure,Supplies & Services,Provisions,BIKOLD,13/09/2022,"1,471.68"
"Communities, Customer & Commercial Services",Sport & Leisure,Supplies & Services,Provisions,BIKOLD,13/09/2022,"1,115.40"
"Communities, Customer & Commercial Services",Sport & Leisure,Supplies & Services,Provisions,BIKOLD,13/09/2022,226.55
"Communities, Customer & Commercial Services",Sport & Leisure,Supplies & Services,Provisions,BIKOLD,13/09/2022,269.92
"Communities, Customer & Commercial Services",Sport & Leisure,Supplies & Services,Provisions,BIKOLD,13/09/2022,399.14
"Communities, Customer & Commercial Services",Sport & Leisure,Supplies & Services,Provisions,BIKOLD,13/09/2022,554.37
"Communities, Customer & Commercial Services",Sport & Leisure,Supplies & Services,Provisions,BIKOLD,13/09/2022,257.77
"Communities, Customer & Commercial Services",Sport & Leisure,Supplies & Services,Provisions,BIKOLD,13/09/2022,112.93
"Communities, Customer & Commercial Services",Sport & Leisure,Supplies & Services,Provisions,PASTA KING (UK) LIMITED,14/09/2022,725.12
"Communities, Customer & Commercial Services",Sport & Leisure,Supplies & Services,Provisions,On A Roll,27/09/2022,178.36
"Communities, Customer & Commercial Services",Sport & Leisure,Supplies & Services,Provisions,On A Roll,27/09/2022,188.92
"Communities, Customer & Commercial Services",Sport & Leisure,Supplies & Services,Provisions,On A Roll,27/09/2022,641.89
"Communities, Customer & Commercial Services",Sport & Leisure,Supplies & Services,Provisions,T FOOD SERVICE LTD,27/09/2022,"1,606.05"
"Communities, Customer & Commercial Services",Sport & Leisure,Supplies & Services,Computer Hardware (Maint),CIVICA UK LIMITED ,27/09/2022,350.00
"Communities, Customer & Commercial Services",Sport & Leisure,Supplies & Services,Provisions,BIKLOLD,23/09/2022,169.56
"Communities, Customer & Commercial Services",Sport & Leisure,Supplies & Services,Provisions,BIKLOLD,23/09/2022,713.81
"Communities, Customer & Commercial Services",Sport & Leisure,Supplies & Services,Provisions,BIKLOLD,23/09/2022,333.67
"Communities, Customer & Commercial Services",Sport & Leisure,Supplies & Services,Provisions,BIKLOLD,23/09/2022,162.34
"Communities, Customer & Commercial Services",Sport & Leisure,Supplies & Services,Provisions,BIKLOLD,23/09/2022,672.25
"Communities, Customer & Commercial Services",Sport & Leisure,Supplies & Services,Provisions,BIKLOLD,23/09/2022,785.04
"Communities, Customer & Commercial Services",Sport & Leisure,Supplies & Services,Provisions,BIKLOLD,23/09/2022,947.34
"Communities, Customer & Commercial Services",Sport & Leisure,Supplies & Services,Provisions,BIKLOLD,23/09/2022,111.54
"Communities, Customer & Commercial Services",Sport & Leisure,Supplies & Services,Provisions,BIKLOLD,23/09/2022,284.25
"Communities, Customer & Commercial Services",Sport & Leisure,Supplies & Services,Provisions,BIKLOLD,23/09/2022,199.29
"Communities, Customer & Commercial Services",Sport & Leisure,Supplies & Services,Provisions,T FOOD SERVICE LTD,27/09/2022,292.75
"Communities, Customer & Commercial Services",Sport & Leisure,Supplies & Services,Provisions,PASTA KING (UK) LIMITED,30/09/2022,527.36
"Communities, Customer & Commercial Services",Sport & Leisure,Supplies & Services,Provisions,PASTA KING (UK) LIMITED,30/09/2022,263.68
"Communities, Customer & Commercial Services",Sport & Leisure,Supplies & Services,Provisions,BIKOLD,16/09/2022,143.15
"Communities, Customer & Commercial Services",Sport & Leisure,Supplies & Services,Provisions,BIKOLD,16/09/2022,160.10
"Communities, Customer & Commercial Services",Sport & Leisure,Supplies & Services,Provisions,On A Roll,06/09/2022,230.47
"Communities, Customer & Commercial Services",Sport & Leisure,Supplies & Services,Provisions,BIKOLD,30/09/2022,104.79
"Communities, Customer & Commercial Services",Sport & Leisure,Supplies & Services,Provisions,BIKOLD,30/09/2022,262.95
"Communities, Customer & Commercial Services",Sport & Leisure,Supplies & Services,Provisions,BIKOLD,13/09/2022,117.25
"Communities, Customer & Commercial Services",Sport & Leisure,Supplies & Services,Provisions,BIKOLD,13/09/2022,130.94
"Communities, Customer & Commercial Services",Sport & Leisure,Supplies & Services,Provisions,BIKOLD,06/09/2022,105.96
"Communities, Customer & Commercial Services",Sport & Leisure,Supplies & Services,Provisions,On A Roll,14/09/2022,140.44
"Communities, Customer & Commercial Services",Sport & Leisure,Supplies & Services,Provisions,On A Roll,27/09/2022,313.02
"Communities, Customer & Commercial Services",Sport & Leisure,Supplies & Services,Provisions,BIKOLD,23/09/2022,123.16
"Communities, Customer & Commercial Services",Sport & Leisure,Supplies & Services,Provisions,BIKOLD,16/09/2022,200.07
"Communities, Customer & Commercial Services",Sport & Leisure,Supplies & Services,Provisions,BIKOLD,16/09/2022,160.30
"Communities, Customer & Commercial Services",Sport & Leisure,Supplies & Services,Provisions,BIKOLD,16/09/2022,315.20
"Communities, Customer & Commercial Services",Sport & Leisure,Supplies & Services,Provisions,BIKOLD,30/09/2022,312.66
"Communities, Customer & Commercial Services",Sport & Leisure,Supplies & Services,Provisions,BIKOLD,30/09/2022,388.28
"Communities, Customer & Commercial Services",Sport & Leisure,Supplies & Services,Provisions,BIKOLD,30/09/2022,111.10
"Communities, Customer & Commercial Services",Sport & Leisure,Supplies & Services,Provisions,BIKOLD,13/09/2022,170.00
"Communities, Customer & Commercial Services",Sport & Leisure,Supplies & Services,Provisions,BIKOLD,13/09/2022,484.81
"Communities, Customer & Commercial Services",Sport & Leisure,Supplies & Services,Provisions,BIKOLD,06/09/2022,221.17
"Communities, Customer & Commercial Services",Sport & Leisure,Supplies & Services,Provisions,BIKOLD,06/09/2022,479.21
"Communities, Customer & Commercial Services",Sport & Leisure,Supplies & Services,Provisions,BIKOLD,06/09/2022,396.40
"Communities, Customer & Commercial Services",Sport & Leisure,Supplies & Services,Provisions,BIKOLD,06/09/2022,172.27
"Communities, Customer & Commercial Services",Sport & Leisure,Supplies & Services,Provisions,TROPICAL ICE,27/09/2022,"1,976.25"
"Communities, Customer & Commercial Services",Sport & Leisure,Supplies & Services,Provisions,BIKOLD,23/09/2022,107.01
"Communities, Customer & Commercial Services",Sport & Leisure,Supplies & Services,Provisions,BIKOLD,23/09/2022,108.33
"Communities, Customer & Commercial Services",Sport & Leisure,Supplies & Services,Provisions,BIKOLD,23/09/2022,276.28
"Communities, Customer & Commercial Services",Sport & Leisure,Supplies & Services,Provisions,BIKOLD,23/09/2022,456.70
"Communities, Customer & Commercial Services",Sport & Leisure,Supplies & Services,Crockery/Hardware/Light Equip,PLANGLOW LTD,27/09/2022,343.92
"Communities, Customer & Commercial Services",Sport & Leisure,Supplies & Services,Flex Charges,GB GROUP PLC,20/09/2022,250.00
"Communities, Customer & Commercial Services",Sport & Leisure,Supplies & Services,Advertising,Council Advertising Network,30/09/2022,"3,000.00"
"Communities, Customer & Commercial Services",Sport & Leisure,Supplies & Services,Flex Charges,Verifone UK Limited,09/09/2022,297.50
"Communities, Customer & Commercial Services",Sport & Leisure,Supplies & Services,Payment Of Income Collected,Telford Tigers Limited,22/09/2022,"5,269.92"
"Communities, Customer & Commercial Services",Sport & Leisure,Supplies & Services,Payment Of Income Collected,Telford Tigers Limited,30/09/2022,"5,923.20"
"Communities, Customer & Commercial Services",Sport & Leisure,Supplies & Services,Payment Of Income Collected,Telford Tigers Limited,26/09/2022,"3,407.52"
"Communities, Customer & Commercial Services",Sport & Leisure,Supplies & Services,Items For Resale,SWIM ENGLAND TRADING LIMITED ,10/09/2022,189.00
"Communities, Customer & Commercial Services",Sport & Leisure,Supplies & Services,Equipment - Purchase,J P L LTD,01/09/2022,191.32
"Communities, Customer & Commercial Services",Sport & Leisure,Supplies & Services,Protective Clothing,J P L LTD,22/09/2022,113.67
"Communities, Customer & Commercial Services",Sport & Leisure,Supplies & Services,Chemicals/Cleaning Products,BRENNTAG UK LIMITED,02/09/2022,390.00
"Communities, Customer & Commercial Services",Sport & Leisure,Supplies & Services,Equipment - Hire,OAKLEYS LTD,21/09/2022,639.98
"Communities, Customer & Commercial Services",Sport & Leisure,Supplies & Services,Equipment - Hire,OAKLEYS LTD,21/09/2022,194.95
"Communities, Customer & Commercial Services",Sport & Leisure,Supplies & Services,Equipment - Purchase,GRANVILLE CONSTRUCTION & MAINTENANCE LTD,23/09/2022,427.50
"Communities, Customer & Commercial Services",Sport & Leisure,Supplies & Services,Payment Of Income Collected,ABRAHAM DARBY ACADEMY ,28/09/2022,"3,947.00"
"Communities, Customer & Commercial Services",Sport & Leisure,Supplies & Services,Com focused ext sch activities,Gymfinity Gymnastics Ltd,22/09/2022,"1,120.00"
"Communities, Customer & Commercial Services",Sport & Leisure,Supplies & Services,Items For Resale,Splash About International Limited,01/09/2022,"2,377.90"
"Communities, Customer & Commercial Services",Sport & Leisure,Supplies & Services,Chemicals/Cleaning Products,MAIN MAN SUPPLIES LTD,02/09/2022,126.99
"Communities, Customer & Commercial Services",Sport & Leisure,Supplies & Services,Telephones,Ghekko LTD,30/09/2022,110.00
"Communities, Customer & Commercial Services",Sport & Leisure,Supplies & Services,Other Materials,RLSS UK,01/09/2022,"1,500.00"
"Communities, Customer & Commercial Services",Sport & Leisure,Supplies & Services,Other Materials,PROVAC CLEANING SUPPLIES LTD,01/09/2022,168.50
"Communities, Customer & Commercial Services",Sport & Leisure,Supplies & Services,Other Materials,PROVAC CLEANING SUPPLIES LTD,01/09/2022,132.00
"Communities, Customer & Commercial Services",Sport & Leisure,Supplies & Services,Sub Contractors,RLSS UK,01/09/2022,336.85
"Communities, Customer & Commercial Services",Sport & Leisure,Supplies & Services,Sub Contractors,SUTCLIFFE PLAY LTD,07/09/2022,121.43
"Communities, Customer & Commercial Services",Sport & Leisure,Supplies & Services,Other Materials,SUTCLIFFE PLAY LTD,07/09/2022,240.12
"Communities, Customer & Commercial Services",Sport & Leisure,Supplies & Services,Other Materials,TECHNICAL SERVICES (SHROPSHIRE) LIMITED,08/09/2022,192.50
"Communities, Customer & Commercial Services",Sport & Leisure,Supplies & Services,Sub Contractors,BUSINESS WATCH GUARDING LIMITED,13/09/2022,273.28
"Communities, Customer & Commercial Services",Sport & Leisure,Supplies & Services,Sub Contractors,BUSINESS WATCH GUARDING LIMITED,13/09/2022,519.52
"Communities, Customer & Commercial Services",Sport & Leisure,Supplies & Services,Equipment - Purchase,RLSS UK Shop,05/09/2022,103.50
"Communities, Customer & Commercial Services",Sport & Leisure,Supplies & Services,Equipment - Purchase,RLSS UK Shop,05/09/2022,125.00
"Communities, Customer & Commercial Services",Sport & Leisure,Supplies & Services,Equipment - Purchase,RLSS UK Shop,05/09/2022,410.00
"Communities, Customer & Commercial Services",Sport & Leisure,Supplies & Services,Fees,Austin Mix Ltd,29/09/2022,215.00
"Communities, Customer & Commercial Services",Sport & Leisure,Transport-Related Expenditure,Travelling - Trainees,C STORES LTD,21/09/2022,283.97
"Communities, Customer & Commercial Services",Sport & Leisure,Transport-Related Expenditure,Servicing & Repairs V&P,Agrovista UK LTD,21/09/2022,594.98
"Communities, Customer & Commercial Services",Sport & Leisure,Transport-Related Expenditure,Servicing & Repairs V&P,C STORES LTD,21/09/2022,238.95
"Communities, Customer & Commercial Services",Sport & Leisure,Transport-Related Expenditure,Servicing & Repairs V&P,Agrovista UK LTD,21/09/2022,332.63
"Communities, Customer & Commercial Services",Sport & Leisure,Transport-Related Expenditure,Servicing & Repairs V&P,CSTORES LTD,09/09/2022,338.83
Corporate Communications,Communications & Marketing,Capital Expenditure,Other Capital Expenditure,SIGNS EXPRESS ,08/09/2022,325.40
Corporate Communications,Communications & Marketing,Capital Expenditure,Other Capital Expenditure,SIGNS EXPRESS ,08/09/2022,310.50
Corporate Communications,Communications & Marketing,Capital Expenditure,Other Capital Expenditure,SIGNS EXPRESS ,08/09/2022,406.60
Corporate Communications,Communications & Marketing,Capital Expenditure,Other Capital Expenditure,SIGNS EXPRESS ,29/09/2022,330.00
Corporate Communications,Communications & Marketing,Capital Expenditure,Other Capital Expenditure,SIGNS EXPRESS ,29/09/2022,389.00
Corporate Communications,Communications & Marketing,Employees,Professional Subs,LGCOMMS,08/09/2022,250.00
Corporate Communications,Communications & Marketing,Employees,Agency Supply Costs,M P international Recruitment Limited,08/09/2022,"6,019.00"
Corporate Communications,Communications & Marketing,Supplies & Services,Marketing & Publicity,Political Lobbying & Media Relations Limited,21/09/2022,"10,330.00"
Corporate Communications,Communications & Marketing,Supplies & Services,Graphic Design Charges,EMERGE DESIGN LTD,21/09/2022,"4,743.57"
Corporate Communications,Communications & Marketing,Supplies & Services,Subscriptions,Granicus-Firmstep Ltd,08/09/2022,"24,912.00"
Corporate Communications,Communications & Marketing,Supplies & Services,Mobile Phones,EE LTD EQUIPMENT,06/09/2022,142.00
Corporate Communications,Communications & Marketing,Supplies & Services,Marketing & Publicity,HUWS GRAY LTD,27/09/2022,"1,060.00"
Corporate Items,Corporate Codes,Capital Financing Costs,Penalty Deductions,INTERSERVE LTD ,06/09/2022,"1,250.00"
Corporate Items,Corporate Codes,Capital Financing Costs,Penalty Deductions,PYRAMID SCHOOLS LTD,14/09/2022,"-1,276.66"
Corporate Items,Corporate Codes,Capital Financing Costs,Unitary Charge,PYRAMID SCHOOLS LTD,14/09/2022,"931,720.82"
Corporate Items,Corporate Codes,Employees,Agency Supply Costs,Matrix SCM,13/09/2022,"31,908.86"
Corporate Items,Corporate Codes,Employees,Agency Supply Costs,Matrix SCM,13/09/2022,"32,582.85"
Corporate Items,Corporate Codes,Employees,Agency Supply Costs,Matrix SCM,13/09/2022,"33,260.75"
Corporate Items,Corporate Codes,Employees,Agency Supply Costs,Matrix SCM,13/09/2022,"31,253.28"
Corporate Items,Corporate Codes,Supplies & Services,Conference Expenses,APSE,30/09/2022,"1,100.00"
Corporate Items,Corporate Codes,Supplies & Services,Subsistence,Event-X Limited,10/09/2022,334.00
Corporate Items,Corporate Codes,Supplies & Services,Other Grants (Expenses),MADELEY PARISH COUNCIL,20/09/2022,"1,133.16"
Corporate Items,Corporate Codes,Supplies & Services,Other Grants (Expenses),NEWPORT TOWN COUNCIL,20/09/2022,397.15
Corporate Items,Corporate Codes,Supplies & Services,Other Grants (Expenses),OAKENGATES TOWN COUNCIL,20/09/2022,"3,645.02"
Corporate Items,Corporate Codes,Supplies & Services,Other Grants (Expenses),ST GEORGES & PRIORSLEE PARISH COUNCIL,20/09/2022,203.13
Corporate Items,Corporate Codes,Supplies & Services,Other Grants (Expenses),WROCKWARDINE WOOD & TRENCH PC,20/09/2022,217.47
Corporate Items,Corporate Codes,Supplies & Services,Other Grants (Expenses),Great Dawley Town Council,20/09/2022,"6,510.02"
Education & Skills,Consultancy & Advisory Services,Employees,Training Exp�s (Facilitators),Telford and Wrekin Interfaith Council,13/09/2022,"1,500.00"
Education & Skills,Consultancy & Advisory Services,Employees,Training Exp�s (Facilitators),Safer: Now LTD,13/09/2022,325.00
Education & Skills,Education & Skills,Capital Expenditure,Payments to Contractor,P (BUILDERS) LTD,16/09/2022,"3,925.00"
Education & Skills,Education & Skills,Capital Expenditure,Payments to Contractor,GRANVILLE CONSTRUCTION & MAINTENANCE LTD,07/09/2022,"10,300.00"
Education & Skills,Education & Skills,Capital Expenditure,Payments to Contractor,GRANVILLE CONSTRUCTION & MAINTENANCE LTD,07/09/2022,"39,700.00"
Education & Skills,Education & Skills,Capital Expenditure,Payments to Contractor,P (BUILDERS) LTD,06/09/2022,"16,000.00"
Education & Skills,Education & Skills,Capital Expenditure,Payments to Contractor,GRANVILLE CONSTRUCTION & MAINTENANCE LTD,27/09/2022,979.01
Education & Skills,Education & Skills,Capital Expenditure,Payments to Contractor,GRANVILLE CONSTRUCTION & MAINTENANCE LTD,27/09/2022,"22,300.00"
Education & Skills,Education & Skills,Capital Expenditure,Payments to Contractor,GRANVILLE CONSTRUCTION & MAINTENANCE LTD,27/09/2022,"68,748.40"
Education & Skills,Education & Skills,Capital Expenditure,Payments to Contractor,ASLES (TOOL HIRE & SALES) LTD,28/09/2022,288.00
Education & Skills,Education & Skills,Capital Expenditure,Payments to Contractor,ASLES (TOOL HIRE & SALES) LTD,28/09/2022,424.00
Education & Skills,Education & Skills,Capital Expenditure,Legal Fees,W H SOLICITORS,23/09/2022,152.00
Education & Skills,Education & Skills,Capital Expenditure,Payments to Contractor,P (BUILDERS) LTD,16/09/2022,"7,315.00"
Education & Skills,Education & Skills,Capital Expenditure,Payments to Contractor,P (BUILDERS) LTD,07/09/2022,"89,413.05"
Education & Skills,Education & Skills,Capital Expenditure,Payments to Contractor,REDACTED PERSONAL INFORMATION,06/09/2022,600.00
Education & Skills,Education & Skills,Capital Expenditure,Payments to Contractor,GRANVILLE CONSTRUCTION & MAINTENANCE LTD,06/09/2022,"1,785.60"
Education & Skills,Education & Skills,Capital Expenditure,Payments to Contractor,GRANVILLE CONSTRUCTION & MAINTENANCE LTD,06/09/2022,"5,600.00"
Education & Skills,Education & Skills,Capital Expenditure,Payments to Contractor,GRANVILLE CONSTRUCTION & MAINTENANCE LTD,06/09/2022,"8,272.82"
Education & Skills,Education & Skills,Capital Expenditure,Payments to Contractor,GRANVILLE CONSTRUCTION & MAINTENANCE LTD,22/09/2022,"1,360.00"
Education & Skills,Education & Skills,Capital Expenditure,Payments to Contractor,GRANVILLE CONSTRUCTION & MAINTENANCE LTD,22/09/2022,"3,506.40"
Education & Skills,Education & Skills,Capital Expenditure,Payments to Contractor,GRANVILLE CONSTRUCTION & MAINTENANCE LTD,28/09/2022,"2,388.00"
Education & Skills,Education & Skills,Capital Expenditure,Payments to Contractor,GRANVILLE CONSTRUCTION & MAINTENANCE LTD,28/09/2022,"5,981.29"
Education & Skills,Education & Skills,Capital Expenditure,Payments to Contractor,Security Wise Ltd,14/09/2022,"43,850.00"
Education & Skills,Education & Skills,Capital Expenditure,Payments to Contractor,GRANVILLE CONSTRUCTION & MAINTENANCE LTD,16/09/2022,"2,720.00"
Education & Skills,Education & Skills,Capital Expenditure,Payments to Contractor,GRANVILLE CONSTRUCTION & MAINTENANCE LTD,16/09/2022,"3,278.00"
Education & Skills,Education & Skills,Capital Expenditure,Payments to Contractor,KN Services Staffordshire Ltd,21/09/2022,"8,000.00"
Education & Skills,Education & Skills,Capital Expenditure,Payments to Contractor,KN Services Staffordshire Ltd,21/09/2022,"5,500.00"
Education & Skills,Education & Skills,Capital Expenditure,Payments to Contractor,TAYLORS MECHANICAL H & P SERVICES LTD,06/09/2022,"7,625.00"
Education & Skills,Education & Skills,Capital Expenditure,Payments to Contractor,Cubic FM Ltd,14/09/2022,"21,000.00"
Education & Skills,Education & Skills,Capital Expenditure,Payments to Contractor,Cubic FM Ltd,02/09/2022,"30,000.00"
Education & Skills,Education & Skills,Capital Expenditure,Payments to Contractor,GRANVILLE CONSTRUCTION & MAINTENANCE LTD,28/09/2022,"15,620.00"
Education & Skills,Education & Skills,Capital Expenditure,Payments to Contractor,GRANVILLE CONSTRUCTION & MAINTENANCE LTD,28/09/2022,"19,687.00"
Education & Skills,Education & Skills,Capital Expenditure,Payments to Contractor,P (BUILDERS) LTD,07/09/2022,"74,833.40"
Education & Skills,Education & Skills,Capital Expenditure,Payments to Contractor,P (BUILDERS) LTD,23/09/2022,"43,589.80"
Education & Skills,Education & Skills,Capital Expenditure,Other Capital Expenditure,Lantern Academy,30/09/2022,"780,000.00"
Education & Skills,Education & Skills,Capital Expenditure,Payments to Contractor,JCE & SONS LTD,06/09/2022,"16,248.23"
Education & Skills,Education & Skills,Capital Expenditure,Payments to Contractor,JCE & SONS LTD,06/09/2022,"17,990.00"
Education & Skills,Education & Skills,Capital Expenditure,Payments to Contractor,ARJO UK LTD,15/09/2022,"1,740.00"
Education & Skills,Education & Skills,Capital Expenditure,Payments to Contractor,ARJO UK LTD,15/09/2022,760.00
Education & Skills,Education & Skills,Capital Expenditure,Payments to Contractor,PP ELECTRICAL SERVICES Ltd,06/09/2022,"9,336.00"
Education & Skills,Education & Skills,Capital Expenditure,Payments to Contractor,GRANVILLE CONSTRUCTION & MAINTENANCE LTD,06/09/2022,"1,639.20"
Education & Skills,Education & Skills,Capital Expenditure,Payments to Contractor,TAYLORS MECHANICAL H & P SERVICES LTD,02/09/2022,"6,000.00"
Education & Skills,Education & Skills,Capital Expenditure,Payments to Contractor,COOPER & WILLIAMS LTD,27/09/2022,544.39
Education & Skills,Education & Skills,Capital Expenditure,Payments to Contractor,GRANVILLE CONSTRUCTION & MAINTENANCE LTD,27/09/2022,852.00
Education & Skills,Education & Skills,Capital Expenditure,Payments to Contractor,C & W LTD,28/09/2022,"42,462.87"
Education & Skills,Education & Skills,Capital Expenditure,Payments to Contractor,G I Sykes Ltd,28/09/2022,"14,309.66"
Education & Skills,Education & Skills,Capital Expenditure,Payments to Contractor,G I Sykes Ltd,28/09/2022,"38,828.82"
Education & Skills,Education & Skills,Capital Expenditure,Payments to Contractor,MERCIAN MASTERPLAN LTD,28/09/2022,124.20
Education & Skills,Education & Skills,Capital Expenditure,Payments to Contractor,ASLES LTD,28/09/2022,636.00
Education & Skills,Education & Skills,Capital Expenditure,Payments to Contractor,ASLES LTD,28/09/2022,424.00
Education & Skills,Education & Skills,Capital Expenditure,Payments to Contractor,ASLES LTD,28/09/2022,954.00
Education & Skills,Education & Skills,Capital Expenditure,Payments to Contractor,Red Kite Network Limited,14/09/2022,267.80
Education & Skills,Education & Skills,Capital Expenditure,Payments to Contractor,Read Construction Holdings Ltd,16/09/2022,"653,435.98"
Education & Skills,Education & Skills,Capital Expenditure,Payments to Contractor,W D Construction Ltd,16/09/2022,"835,705.66"
Education & Skills,Education & Skills,Capital Expenditure,Payments to Contractor,Strive AV Ltd,07/09/2022,"61,541.00"
Education & Skills,Education & Skills,Capital Expenditure,Payments to Contractor,Read Construction Holdings Ltd,30/09/2022,"213,270.18"
Education & Skills,Education & Skills,Capital Expenditure,Payments to Contractor,Strive AV Ltd,06/09/2022,"1,309.00"
Education & Skills,Education & Skills,Capital Expenditure,Payments to Contractor,CCS MEDIA LIMITED,06/09/2022,"2,800.00"
Education & Skills,Education & Skills,Capital Expenditure,Payments to Contractor,TAYLORS MECHANICAL H & P SERVICES LTD,15/09/2022,"12,913.05"
Education & Skills,Education & Skills,Capital Expenditure,Payments to Contractor,CCS MEDIA LIMITED,06/09/2022,"12,245.90"
Education & Skills,Education & Skills,Capital Expenditure,Payments to Contractor,CCS MEDIA LIMITED,06/09/2022,"14,090.02"
Education & Skills,Education & Skills,Capital Expenditure,Payments to Contractor,CCS MEDIA LIMITED,06/09/2022,"11,335.53"
Education & Skills,Education & Skills,Capital Expenditure,Payments to Contractor,CCS MEDIA LIMITED,06/09/2022,175.00
Education & Skills,Education & Skills,Capital Expenditure,Payments to Contractor,SUNDEALA LTD,22/09/2022,531.79
Education & Skills,Education & Skills,Capital Expenditure,Payments to Contractor,SHROPSHIRE BLINDS & AWNINGS LIMITED,22/09/2022,"1,870.00"
Education & Skills,Education & Skills,Capital Expenditure,Payments to Contractor,SHROPSHIRE BLINDS & AWNINGS LIMITED,22/09/2022,"1,340.00"
Education & Skills,Education & Skills,Capital Expenditure,Payments to Contractor,W D Construction Ltd,07/09/2022,"985,713.59"
Education & Skills,Education & Skills,Capital Expenditure,Payments to Contractor,COMMUNITY PRODUCTS (UK) LTD,02/09/2022,"7,123.68"
Education & Skills,Education & Skills,Capital Expenditure,Payments to Contractor,COMMUNITY PRODUCTS (UK) LTD,02/09/2022,"1,416.00"
Education & Skills,Education & Skills,Capital Expenditure,Payments to Contractor,WREKIN REMOVALS,02/09/2022,"2,500.00"
Education & Skills,Education & Skills,Capital Expenditure,Payments to Contractor,COMMUNITY PRODUCTS (UK) LTD,02/09/2022,"-1,728.00"
Education & Skills,Education & Skills,Capital Expenditure,Payments to Contractor,RecycleIT,29/09/2022,"8,750.00"
Education & Skills,Education & Skills,Capital Expenditure,Payments to Contractor,GRANVILLE CONSTRUCTION & MAINTENANCE LTD,23/09/2022,"8,200.00"
Education & Skills,Education & Skills,Capital Expenditure,Payments to Contractor,GRANVILLE CONSTRUCTION & MAINTENANCE LTD,23/09/2022,"31,800.00"
Education & Skills,Education & Skills,Capital Expenditure,Payments to Contractor,Strive AV Ltd,27/09/2022,"3,310.00"
Education & Skills,Education & Skills,Capital Expenditure,Payments to Contractor,Churches Fire Security Ltd,27/09/2022,550.75
Education & Skills,Education & Skills,Capital Expenditure,Payments to Contractor,SUNDEALA LTD,28/09/2022,499.00
Education & Skills,Education & Skills,Capital Expenditure,Payments to Contractor,TAYLORS MECHANICAL H & P SERVICES LTD,28/09/2022,"11,000.00"
Education & Skills,Education & Skills,Capital Expenditure,Payments to Contractor,R G STONES LTD,28/09/2022,"11,540.00"
Education & Skills,Education & Skills,Capital Expenditure,Payments to Contractor,TAYLORS MECHANICAL H & P SERVICES LTD,28/09/2022,"3,050.00"
Education & Skills,Pupil Support Services,Supplies & Services,Other Grants (Expenses),Telford Park School,13/09/2022,"7,000.00"
Education & Skills,Pupil Support Services,Supplies & Services,Other Grants (Expenses),AFC Telford United Foundation CIC,28/09/2022,"10,173.00"
Education & Skills,Pupil Support Services,Supplies & Services,Other Grants (Expenses),THE SMALL WOODS ASSOCIATION,28/09/2022,"6,611.13"
Education & Skills,Pupil Support Services,Third Party Payments,Interpreters Fees,St Dominic�s Grammar School,30/09/2022,"1,600.50"
Education & Skills,SEND (0-25),Supplies & Services,Equipment - Purchase,OTICON LIMITED,21/09/2022,259.00
Education & Skills,SEND (0-25),Supplies & Services,Equipment - Purchase,PURETONE LIMITED,07/09/2022,689.00
Education & Skills,SEND (0-25),Supplies & Services,Mobile Phones,EE LTD EQUIPMENT ,07/09/2022,426.00
Education & Skills,SEND (0-25),Supplies & Services,Aids & Appliances,RNIB ENTERPRISES LTD ,28/09/2022,749.00
Education & Skills,SEND (0-25),Supplies & Services,Mobile Phones,EE LTD EQUIPMENT,07/09/2022,710.00
Education & Skills,SEND (0-25),Supplies & Services,Other Services,Send4Change Ltd,08/09/2022,"8,168.10"
Education & Skills,SEND (0-25),Supplies & Services,Health & Safety Expenses,BERWICK CARE EQUIPMENT LTD,30/09/2022,"1,765.00"
Education & Skills,SEND (0-25),Supplies & Services,Health & Safety Expenses,BERWICK CARE EQUIPMENT LTD,27/09/2022,"1,765.00"
Education & Skills,SEND (0-25),Supplies & Services,Health & Safety Expenses,M A S Associates,26/09/2022,415.00
Education & Skills,SEND (0-25),Supplies & Services,Health & Safety Expenses,M A S Associates,26/09/2022,415.00
Education & Skills,SEND (0-25),Supplies & Services,Health & Safety Expenses,OSPREY HEALTHCARE LTD,26/09/2022,195.00
Education & Skills,SEND (0-25),Supplies & Services,Health & Safety Expenses,OSPREY HEALTHCARE LTD,26/09/2022,190.00
Education & Skills,SEND (0-25),Supplies & Services,Mobile Phones,EE LTD EQUIPMENT,07/09/2022,426.00
Education & Skills,SEND (0-25),Supplies & Services,Mobile Phones,EE LTD EQUIPMENT,07/09/2022,142.00
Education & Skills,SEND (0-25),Supplies & Services,Mobile Phones,EE LTD EQUIPMENT,07/09/2022,142.00
Education & Skills,SEND (0-25),Supplies & Services,Other Services,EDEN BROWN LTD,28/09/2022,"3,300.00"
Education & Skills,SEND (0-25),Supplies & Services,Mobile Phones,EE LTD EQUIPMENT ,02/09/2022,426.00
Education & Skills,SEND (0-25),Third Party Payments,Health Funded Services,SHROPSHIRE COMMUNITY HEALTH NHS TRUST,23/09/2022,"4,000.00"
Education & Skills,SEND (0-25),Third Party Payments,DSG - High Needs Block,LITTLE DRAGONS PRE-SCHOOL,01/09/2022,"3,656.97"
Education & Skills,SEND (0-25),Third Party Payments,DSG - High Needs Block,Twiggys Day Nursery Ltd,01/09/2022,515.27
Education & Skills,SEND (0-25),Third Party Payments,DSG - High Needs Block,Lawley Village Day Nursery,01/09/2022,141.70
Education & Skills,SEND (0-25),Third Party Payments,DSG - High Needs Block,ABC Day Nursery,01/09/2022,"3,412.58"
Education & Skills,SEND (0-25),Third Party Payments,DSG - High Needs Block,Bredon School Ltd,23/09/2022,"13,140.00"
Education & Skills,SEND (0-25),Third Party Payments,DSG - High Needs Block,Bredon School Ltd,23/09/2022,"15,030.00"
Education & Skills,SEND (0-25),Third Party Payments,DSG - High Needs Block,The Girls� Day School Trust,23/09/2022,"4,680.00"
Education & Skills,SEND (0-25),Third Party Payments,DSG - High Needs Block,CHILDCARE SOS,14/09/2022,"3,233.55"
Education & Skills,SEND (0-25),Third Party Payments,DSG - High Needs Block,LITTLE DRAGONS PRE-SCHOOL,14/09/2022,"3,811.55"
Education & Skills,SEND (0-25),Third Party Payments,DSG - High Needs Block,Twiggys Day Nursery Ltd ,14/09/2022,"3,880.26"
Education & Skills,SEND (0-25),Third Party Payments,DSG - High Needs Block,Dawley C of E Primary Academy,28/09/2022,348.28
Education & Skills,SEND (0-25),Third Party Payments,DSG - High Needs Block,Lawley Village Academy,28/09/2022,609.50
Education & Skills,SEND (0-25),Third Party Payments,DSG - High Needs Block,Grange Park Primary School - Community Academies Trust,28/09/2022,"3,744.05"
Education & Skills,SEND (0-25),Third Party Payments,DSG - High Needs Block,Telford Park School,28/09/2022,"7,313.95"
Education & Skills,SEND (0-25),Third Party Payments,DSG - High Needs Block,THOMAS TELFORD SCHOOL ,28/09/2022,348.28
Education & Skills,SEND (0-25),Third Party Payments,DSG - High Needs Block,Hadley Learning Community Academy,28/09/2022,"2,089.70"
Education & Skills,SEND (0-25),Third Party Payments,DSG - High Needs Block,Ercall Wood Academy,28/09/2022,"9,751.94"
Education & Skills,SEND (0-25),Third Party Payments,DSG - High Needs Block,CAT - Telford Priory School,28/09/2022,"5,746.68"
Education & Skills,SEND (0-25),Third Party Payments,DSG - High Needs Block,Grange Park Primary School - Community Academies Trust,28/09/2022,"3,744.05"
Education & Skills,SEND (0-25),Third Party Payments,DSG - High Needs Block,MADELEY ACADEMY TRUST LTD,28/09/2022,"6,094.96"
Education & Skills,SEND (0-25),Third Party Payments,DSG - High Needs Block,Charlton Academy,28/09/2022,"3,744.05"
Education & Skills,SEND (0-25),Third Party Payments,DSG - High Needs Block,Hadley Learning Community Academy,28/09/2022,"14,714.99"
Education & Skills,SEND (0-25),Third Party Payments,DSG - High Needs Block,The Telford Langley School ,28/09/2022,"5,833.75"
Education & Skills,SEND (0-25),Third Party Payments,DSG - High Needs Block,Dawley C of E Primary Academy,28/09/2022,348.28
Education & Skills,SEND (0-25),Third Party Payments,DSG - High Needs Block,Crudgington Primary School,28/09/2022,348.28
Education & Skills,SEND (0-25),Third Party Payments,DSG - High Needs Block,St Peter�s Bratton C of E Academy,28/09/2022,696.57
Education & Skills,SEND (0-25),Third Party Payments,DSG - High Needs Block,Lawley Village Academy,28/09/2022,"1,480.20"
Education & Skills,SEND (0-25),Third Party Payments,DSG - High Needs Block,PRIORSLEE ACADEMY,28/09/2022,"1,915.56"
Education & Skills,SEND (0-25),Third Party Payments,DSG - High Needs Block,Redhill Primary Academy,28/09/2022,"4,614.76"
Education & Skills,SEND (0-25),Third Party Payments,DSG - High Needs Block,Windmill Primary School Academy,28/09/2022,"1,654.35"
Education & Skills,SEND (0-25),Third Party Payments,DSG - High Needs Block,Queensway HLC,28/09/2022,489.87
Education & Skills,SEND (0-25),Third Party Payments,DSG - High Needs Block,ABRAHAM DARBY ACADEMY,28/09/2022,"5,746.67"
Education & Skills,SEND (0-25),Third Party Payments,DSG - High Needs Block,Hadley Learning Community Academy,28/09/2022,"1,741.42"
Education & Skills,SEND (0-25),Third Party Payments,DSG - High Needs Block,MADELEY ACADEMY TRUST LTD,28/09/2022,"4,788.90"
Education & Skills,SEND (0-25),Third Party Payments,DSG - High Needs Block,Acorn Care & Education Ltd,08/09/2022,"4,976.65"
Education & Skills,SEND (0-25),Third Party Payments,DSG - High Needs Block,Kickstart Academy,29/09/2022,"93,218.00"
Education & Skills,SEND (0-25),Third Party Payments,DSG - High Needs Block,Queensway HLC,29/09/2022,"69,903.25"
Education & Skills,SEND (0-25),Third Party Payments,DSG - High Needs Block,Queensway HLC,29/09/2022,"65,010.00"
Education & Skills,SEND (0-25),Third Party Payments,DSG - High Needs Block,St Peter�s Bratton C of E Academy,28/09/2022,783.64
Education & Skills,SEND (0-25),Third Party Payments,DSG - High Needs Block,Redhill Primary Academy,28/09/2022,"3,918.19"
Education & Skills,SEND (0-25),Third Party Payments,DSG - High Needs Block,Wrekin View Primary School,28/09/2022,"4,221.62"
Education & Skills,SEND (0-25),Third Party Payments,DSG - High Needs Block,Windmill Primary School Academy,28/09/2022,"1,218.99"
Education & Skills,SEND (0-25),Third Party Payments,DSG - High Needs Block,Wrekin View Primary School,28/09/2022,"4,831.12"
Education & Skills,SEND (0-25),Third Party Payments,DSG - High Needs Block,Queensway HLC,28/09/2022,360.02
Education & Skills,SEND (0-25),Third Party Payments,DSG - High Needs Block,NEWPORT GIRLS HIGH SCHOOL ACADEMY TRUST,28/09/2022,609.50
Education & Skills,SEND (0-25),Third Party Payments,DSG - High Needs Block,Ercall Wood Academy,28/09/2022,"8,881.23"
Education & Skills,SEND (0-25),Third Party Payments,DSG - High Needs Block,NEWPORT GIRLS HIGH SCHOOL ACADEMY TRUST,28/09/2022,609.50
Education & Skills,SEND (0-25),Third Party Payments,DSG - High Needs Block,THOMAS TELFORD SCHOOL ,28/09/2022,348.28
Education & Skills,SEND (0-25),Third Party Payments,DSG - High Needs Block,CAT - Telford Priory School,28/09/2022,"5,746.68"
Education & Skills,SEND (0-25),Third Party Payments,DSG - High Needs Block,ABRAHAM DARBY ACADEMY ,28/09/2022,"6,443.24"
Education & Skills,SEND (0-25),Third Party Payments,DSG - High Needs Block,PRIORSLEE ACADEMY,28/09/2022,"1,567.28"
Education & Skills,SEND (0-25),Third Party Payments,DSG - High Needs Block,Hadley Learning Community Academy,28/09/2022,"13,844.28"
Education & Skills,SEND (0-25),Third Party Payments,DSG - High Needs Block,Charlton Academy,28/09/2022,"3,221.62"
Education & Skills,SEND (0-25),Third Party Payments,DSG - High Needs Block,Telford Park School,28/09/2022,"5,659.61"
Education & Skills,SEND (0-25),Third Party Payments,DSG - High Needs Block,The Telford Langley School ,28/09/2022,"6,182.04"
Education & Skills,SEND (0-25),Third Party Payments,DSG - High Needs Block,Grange Park Primary School - Community Academies Trust,28/09/2022,"13,104.76"
Education & Skills,SEND (0-25),Third Party Payments,DSG - High Needs Block,PRIORSLEE ACADEMY,28/09/2022,"4,929.63"
Education & Skills,SEND (0-25),Third Party Payments,DSG - High Needs Block,St Peter�s Bratton C of E Academy,28/09/2022,"4,179.40"
Education & Skills,SEND (0-25),Third Party Payments,DSG - High Needs Block,Dawley C of E Primary Academy,28/09/2022,"2,378.11"
Education & Skills,SEND (0-25),Third Party Payments,DSG - High Needs Block,Charlton Academy,28/09/2022,"2,031.97"
Education & Skills,SEND (0-25),Third Party Payments,DSG - High Needs Block,Grange Park Primary School - Community Academies Trust,28/09/2022,"2,701.58"
Education & Skills,SEND (0-25),Third Party Payments,DSG - High Needs Block,Wrekin View Primary School,28/09/2022,"4,327.30"
Education & Skills,SEND (0-25),Third Party Payments,DSG - High Needs Block,Hadley Learning Community Academy,28/09/2022,568.22
Education & Skills,SEND (0-25),Third Party Payments,DSG - High Needs Block,Hadley Learning Community Academy,28/09/2022,158.02
Education & Skills,SEND (0-25),Third Party Payments,DSG - High Needs Block,MADELEY ACADEMY TRUST LTD,28/09/2022,814.51
Education & Skills,SEND (0-25),Third Party Payments,DSG - High Needs Block,Charlton Academy,28/09/2022,174.14
Education & Skills,SEND (0-25),Third Party Payments,DSG - High Needs Block,Ercall Wood Academy,28/09/2022,"1,218.99"
Education & Skills,SEND (0-25),Third Party Payments,DSG - High Needs Block,Charlton Academy,28/09/2022,"10,187.29"
Education & Skills,SEND (0-25),Third Party Payments,DSG - High Needs Block,Hadley Learning Community Academy,28/09/2022,"14,447.32"
Education & Skills,SEND (0-25),Third Party Payments,DSG - High Needs Block,Grange Park Primary School ,28/09/2022,"5,139.81"
Education & Skills,SEND (0-25),Third Party Payments,DSG - High Needs Block,Telford Park School,28/09/2022,112.21
Education & Skills,SEND (0-25),Third Party Payments,DSG - High Needs Block,PRIORSLEE ACADEMY,28/09/2022,353.77
Education & Skills,SEND (0-25),Third Party Payments,DSG - High Needs Block,Hadley Learning Community Academy,28/09/2022,"1,871.67"
Education & Skills,SEND (0-25),Third Party Payments,DSG - High Needs Block,ABRAHAM DARBY ACADEMY,28/09/2022,304.58
Education & Skills,SEND (0-25),Third Party Payments,DSG - High Needs Block,Wrekin View Primary School,28/09/2022,833.78
Education & Skills,SEND (0-25),Third Party Payments,DSG - High Needs Block,Lawley Village Academy,28/09/2022,"1,865.94"
Education & Skills,SEND (0-25),Third Party Payments,DSG - High Needs Block,ABRAHAM DARBY ACADEMY ,28/09/2022,277.44
Education & Skills,SEND (0-25),Third Party Payments,DSG - High Needs Block,Hadley Learning Community Academy,28/09/2022,"1,959.10"
Education & Skills,SEND (0-25),Third Party Payments,DSG - High Needs Block,Windmill Primary School Academy,28/09/2022,"10,837.58"
Education & Skills,SEND (0-25),Third Party Payments,DSG - High Needs Block,Lawley Village Academy,28/09/2022,219.94
Education & Skills,SEND (0-25),Third Party Payments,DSG - High Needs Block,PRIORSLEE ACADEMY,28/09/2022,416.94
Education & Skills,SEND (0-25),Third Party Payments,DSG - High Needs Block,Redhill Primary Academy,28/09/2022,671.33
Education & Skills,SEND (0-25),Third Party Payments,DSG - High Needs Block,Windmill Primary School Academy,28/09/2022,333.92
Education & Skills,SEND (0-25),Third Party Payments,DSG - High Needs Block,Hadley Learning Community Academy,28/09/2022,176.22
Education & Skills,SEND (0-25),Third Party Payments,DSG - High Needs Block,MADELEY ACADEMY TRUST LTD,28/09/2022,145.99
Education & Skills,SEND (0-25),Third Party Payments,DSG - High Needs Block,Crudgington Primary School,28/09/2022,996.19
Education & Skills,SEND (0-25),Third Party Payments,DSG - High Needs Block,ABRAHAM DARBY ACADEMY,28/09/2022,"11,532.72"
Education & Skills,SEND (0-25),Third Party Payments,DSG - High Needs Block,Hadley Learning Community Academy,28/09/2022,"4,539.61"
Education & Skills,SEND (0-25),Third Party Payments,DSG - High Needs Block,Hadley Learning Community Academy,28/09/2022,"2,979.97"
Education & Skills,SEND (0-25),Third Party Payments,DSG - High Needs Block,MADELEY ACADEMY TRUST LTD,28/09/2022,"3,664.13"
Education & Skills,SEND (0-25),Third Party Payments,DSG - High Needs Block,Telford Park School,28/09/2022,"3,989.04"
Education & Skills,SEND (0-25),Third Party Payments,DSG - High Needs Block,Ercall Wood Academy,28/09/2022,"11,879.32"
Education & Skills,SEND (0-25),Third Party Payments,DSG - High Needs Block,MADELEY ACADEMY TRUST LTD,28/09/2022,"7,226.88"
Education & Skills,SEND (0-25),Third Party Payments,DSG - High Needs Block,CAT - Telford Priory School,28/09/2022,"3,047.48"
Education & Skills,SEND (0-25),Third Party Payments,DSG - High Needs Block,Telford Park School,28/09/2022,"4,714.94"
Education & Skills,SEND (0-25),Third Party Payments,DSG - High Needs Block,Wrekin View Primary School,28/09/2022,"14,675.61"
Education & Skills,SEND (0-25),Third Party Payments,DSG - High Needs Block,OAKENGATES UNITED PRE-SCHOOL,01/09/2022,334.24
Education & Skills,SEND (0-25),Third Party Payments,DSG - High Needs Block,TWIGGYS DAY NURSERY MADELEY,23/09/2022,"2,029.45"
Education & Skills,SEND (0-25),Third Party Payments,DSG - High Needs Block,WOODEN TOPS DAY NURSERY ,23/09/2022,"2,333.34"
Education & Skills,SEND (0-25),Third Party Payments,DSG - High Needs Block,HADLEY UNDER 5�S ,23/09/2022,"1,166.66"
Education & Skills,SEND (0-25),Third Party Payments,DSG - High Needs Block,Lawley Village Day Nursery,23/09/2022,"1,166.66"
Education & Skills,SEND (0-25),Third Party Payments,DSG - High Needs Block,Hadley Learning Community Academy,23/09/2022,336.76
Education & Skills,SEND (0-25),Third Party Payments,DSG - High Needs Block,ABC DAY NURSERY HOLLINSWOOD ,23/09/2022,"2,333.33"
Education & Skills,SEND (0-25),Third Party Payments,DSG - High Needs Block,HRP Education,23/09/2022,784.00
Education & Skills,SEND (0-25),Third Party Payments,DSG - High Needs Block,HRP Education,23/09/2022,490.00
Education & Skills,SEND (0-25),Third Party Payments,DSG - High Needs Block,HRP Education,23/09/2022,465.50
Education & Skills,SEND (0-25),Third Party Payments,DSG - High Needs Block,HRP Education,23/09/2022,490.00
Education & Skills,SEND (0-25),Third Party Payments,DSG - High Needs Block,Redhill Primary Academy,23/09/2022,336.76
Education & Skills,SEND (0-25),Third Party Payments,DSG - High Needs Block,Aqueduct Little Learners,23/09/2022,583.33
Education & Skills,SEND (0-25),Third Party Payments,DSG - High Needs Block,Busy Bees Day Nursery Telford,23/09/2022,884.70
Education & Skills,SEND (0-25),Third Party Payments,DSG - High Needs Block,Church Street Day Nursery,23/09/2022,"1,749.99"
Education & Skills,SEND (0-25),Third Party Payments,DSG - High Needs Block,Puddleducks Under Fives Ltd,23/09/2022,583.33
Education & Skills,SEND (0-25),Transport-Related Expenditure,Taxi Costs,24X7 Ltd,01/09/2022,553.55
Education & Skills,SEND (0-25),Transport-Related Expenditure,Taxi Costs,REDACTED PERSONAL INFORMATION,02/09/2022,"2,077.50"
Education & Skills,Skills,Employees,Staff Training,Always Consult Ltd,23/09/2022,"3,100.00"
Education & Skills,Skills,Premises-Related Expenditure,Hire Of Rooms,Brookside Central,01/09/2022,198.00
Education & Skills,Skills,Premises-Related Expenditure,Hire Of Rooms,OAKENGATES TOWN COUNCIL,01/09/2022,150.00
Education & Skills,Skills,Premises-Related Expenditure,Hire Of Rooms,PARK LANE CENTRE,01/09/2022,220.00
Education & Skills,Skills,Premises-Related Expenditure,Hire Of Rooms,PARK LANE CENTRE,01/09/2022,110.00
Education & Skills,Skills,Premises-Related Expenditure,Hire Of Rooms,PARK LANE CENTRE,01/09/2022,220.00
Education & Skills,Skills,Premises-Related Expenditure,Hire Of Rooms,DONNINGTON PARTNERSHIP,22/09/2022,700.00
Education & Skills,Skills,Premises-Related Expenditure,Hire Of Rooms,AFC Telford Holdings Limited,22/09/2022,170.00
Education & Skills,Skills,Premises-Related Expenditure,Hire Of Rooms,Shropshire Youth Support Trust,23/09/2022,"20,000.00"
Education & Skills,Skills,Supplies & Services,Exam Fees,CITY & GUILDS,01/09/2022,"1,132.20"
Education & Skills,Skills,Supplies & Services,Hospitality,HAMMONDS CATERING SERVICES LTD,01/09/2022,223.20
Education & Skills,Skills,Supplies & Services,Advertising,THE MIDLAND NEWS ASSOCIATION LTD,10/09/2022,710.00
Education & Skills,Skills,Supplies & Services,Furniture - Purchase,POSTURITE (UK) LTD,21/09/2022,649.14
Education & Skills,Skills,Supplies & Services,Subscriptions,SHROPSHIRE CHAMBER OF COMMERCE & ENTERPR,23/09/2022,495.00
Finance & Human Resources,Finance,Supplies & Services,Other Services,ALLPAY.NET LIMITED,13/09/2022,"1,632.67"
Finance & Human Resources,Finance,Supplies & Services,Other Services,ALLPAY.NET LIMITED,13/09/2022,220.43
Finance & Human Resources,"Finance Manager (Business, Education & Care)",Employees,Professional Subs,AAT,01/09/2022, 175.00 
Finance & Human Resources,Finance Manager (Corporate & Capital),Employees,Staff Training,Severn Financial Training,20/09/2022,321.00
Finance & Human Resources,Finance Manager (Corporate & Capital),Employees,Staff Training,Severn Financial Training,20/09/2022,185.00
Finance & Human Resources,Finance Manager (Corporate & Capital),Supplies & Services,Comp Software (Purch / Hire),PHOENIX SOFTWARE LTD,02/09/2022,180.00
Finance & Human Resources,Human Resources,Employees,Other Employee Costs,Health Assured Ltd,20/09/2022,"5,760.72"
Finance & Human Resources,Human Resources,Employees,Criminal Records Bureau Checks,Capita Recruitment Vetting Service ,12/09/2022,438.46
Finance & Human Resources,Human Resources,Supplies & Services,Doctors Fees,Health Assured Ltd,20/09/2022,"5,760.72"
Finance & Human Resources,Human Resources,Supplies & Services,Doctors Fees,Ensure Health LTD,15/09/2022,380.00
Finance & Human Resources,Revenues,Employees,Off site processing,NEC Software Solutions UK Ltd,30/09/2022,"2,868.88"
Finance & Human Resources,Revenues,Employees,Off site processing,NEC Software Solutions UK Ltd,30/09/2022,"1,573.96"
Finance & Human Resources,Revenues,Employees,Off site processing,NEC Software Solutions UK Ltd,14/09/2022,"3,796.10"
Finance & Human Resources,Revenues,Supplies & Services,Energy Rebate Payment,Energy Rebate Payments,23/09/2022,150.00
Finance & Human Resources,Revenues,Supplies & Services,Printing - Other,MARKETING AT THE MILL,07/09/2022,199.00
Finance & Human Resources,Revenues,Supplies & Services,Printing - Other,MARKETING AT THE MILL,07/09/2022,265.00
Finance & Human Resources,Revenues,Supplies & Services,Printing - Other,TUDOR PRINT & SIGNS,07/09/2022,198.00
Finance & Human Resources,Revenues,Supplies & Services,Equipment - Repair,DOCU-FINISH SOLUTIONS LTD,07/09/2022,475.00
Finance & Human Resources,Revenues,Supplies & Services,Stationery,VIVID LAMINATING TECHNOLOGIES LTD,21/09/2022,156.36
Finance & Human Resources,Revenues,Supplies & Services,Printing - Other,Visual Print & Design,06/09/2022,525.00
Finance & Human Resources,Revenues,Supplies & Services,Printing - Other,MARKETING AT THE MILL,20/09/2022,815.00
Finance & Human Resources,Revenues,Supplies & Services,IT Services,NEC Software Solutions UK Ltd,06/09/2022,"1,425.00"
Finance & Human Resources,Revenues,Supplies & Services,IT Services,NEC Software Solutions UK Ltd,06/09/2022,450.00
Finance & Human Resources,Revenues,Supplies & Services,Postages,Financial Data Management plc,06/09/2022,643.93
Finance & Human Resources,Revenues,Supplies & Services,Postages,Financial Data Management plc,06/09/2022,624.90
Finance & Human Resources,Revenues,Supplies & Services,Printing - Other,Visual Print & Design,14/09/2022,125.00
Finance & Human Resources,Revenues,Supplies & Services,Printing - Other,Minuteman Press,10/09/2022,120.71
Finance & Human Resources,Revenues,Supplies & Services,Postages,Financial Data Management plc,06/09/2022,455.52
Finance & Human Resources,Revenues,Supplies & Services,Postages,Financial Data Management plc,06/09/2022,150.14
Finance & Human Resources,Revenues,Supplies & Services,Printing - Other,WPG Limited,08/09/2022,440.00
Finance & Human Resources,Revenues,Supplies & Services,Postages,Financial Data Management plc,22/09/2022,"1,150.10"
Finance & Human Resources,Revenues,Supplies & Services,Postages,Financial Data Management plc,22/09/2022,257.11
Finance & Human Resources,Revenues,Supplies & Services,Postages,Financial Data Management plc,22/09/2022,598.15
Finance & Human Resources,Revenues,Supplies & Services,Stationery,TELFORD REPROGRAPHICS LTD,14/09/2022,150.00
Finance & Human Resources,Revenues,Supplies & Services,Printing - Other,PrintCheck Ltd - PCG Media Group,08/09/2022,384.10
Finance & Human Resources,Revenues,Supplies & Services,Printing - Other,MARKETING AT THE MILL,13/09/2022,213.00
Finance & Human Resources,Revenues,Supplies & Services,Printing - Other,MailSolutions,29/09/2022,"1,088.50"
Finance & Human Resources,Revenues,Supplies & Services,Conference Expenses for 3 staff,IRRV,29/09/2022,"1,069.00"
Finance & Human Resources,Revenues,Supplies & Services,Printing - Other,MARKETING AT THE MILL,27/09/2022,735.00
Finance & Human Resources,Revenues,Supplies & Services,Printing - Other,MARKETING AT THE MILL,27/09/2022,215.00
Finance & Human Resources,Revenues,Supplies & Services,Stationery,PREMIER PAPER GROUP LTD,27/09/2022,139.49
Finance & Human Resources,Revenues,Supplies & Services,Postages,G FORCE EXPRESS PARCELS LTD,14/09/2022,223.52
Finance & Human Resources,Revenues,Supplies & Services,Franking Machine Service,FRANCOTYP-POSTALIA LTD ,14/09/2022,"1,000.00"
Finance & Human Resources,Revenues,Supplies & Services,Postages,ROYAL MAIL GROUP PLC,23/09/2022,"1,686.22"
Finance & Human Resources,Revenues,Supplies & Services,Franking Machine Service,Francotyp-Postalia Ltd,21/09/2022,421.95
Finance & Human Resources,Revenues,Supplies & Services,Postages,ROYAL MAIL GROUP PLC ,16/09/2022,137.37
Finance & Human Resources,Revenues,Supplies & Services,Postages,FREELANCE BUSINESS ASSOCIATES,09/09/2022,396.00
Finance & Human Resources,Revenues,Supplies & Services,Postages,ROYAL MAIL GROUP PLC,09/09/2022,"2,220.62"
Finance & Human Resources,Revenues,Supplies & Services,Postages,ROYAL MAIL GROUP PLC ,09/09/2022,"2,701.13"
Health & Wellbeing,Consultant in Public Health,Employees,Staff Training,Stigma Statistics Ltd,26/09/2022,"1,800.00"
Health & Wellbeing,Consultant in Public Health,Employees,Cont Prof Development,INSTITUTE OF LICENSING LTD ,13/09/2022,150.00
Health & Wellbeing,Consultant in Public Health,Premises-Related Expenditure,Other,SHREWSBURY & TELFORD HOSPITAL NHS TRUST,12/09/2022,"6,224.29"
Health & Wellbeing,Consultant in Public Health,Supplies & Services,Sub Contractors,Connexus Group,21/09/2022,"117,804.00"
Health & Wellbeing,Consultant in Public Health,Supplies & Services,Other Services,SHROPSHIRE COMMUNITY HEALTH NHS TRUST,21/09/2022,"701,208.25"
Health & Wellbeing,Consultant in Public Health,Supplies & Services,Other Services,SHROPSHIRE COMMUNITY HEALTH NHS TRUST,21/09/2022,"701,208.25"
Health & Wellbeing,Consultant in Public Health,Supplies & Services,Other Services,SHROPSHIRE COMMUNITY HEALTH NHS TRUST,20/09/2022,"467,472.17"
Health & Wellbeing,Consultant in Public Health,Supplies & Services,Sub Contractors,Midlands Partnership NHS Foundation Trust,09/09/2022,"37,132.56"
Health & Wellbeing,Consultant in Public Health,Supplies & Services,Comp Software (Purch / Hire),SHROPSHIRE COUNCIL ,08/09/2022,"2,530.58"
Health & Wellbeing,Consultant in Public Health,Supplies & Services,Sub Contractors,Midlands Partnership NHS Foundation Trust,29/09/2022,"10,618.00"
Health & Wellbeing,Consultant in Public Health,Supplies & Services,Other Expenses,SHROPSHIRE COUNCIL,26/09/2022,"196,210.00"
Health & Wellbeing,Health Improvement,Premises-Related Expenditure,Hire Of Rooms,DONNINGTON PARTNERSHIP,13/09/2022,196.00
Health & Wellbeing,Health Improvement,Supplies & Services,Equipment - Purchase,Shropshire Wildlife Trading Company Ltd,16/09/2022,107.94
Health & Wellbeing,Health Improvement,Supplies & Services,Libraries Book Fund,W F H LTD,07/09/2022,152.00
Health & Wellbeing,Health Improvement,Supplies & Services,Libraries Book Fund,W F H LTD,07/09/2022,126.40
Health & Wellbeing,Health Improvement,Supplies & Services,Libraries Book Fund,P LTD,12/09/2022,254.25
Health & Wellbeing,Health Improvement,Supplies & Services,Libraries Book Fund,P LTD,06/09/2022,265.85
Health & Wellbeing,Health Improvement,Supplies & Services,Libraries Book Fund,ULVERSCROFT LARGE PRINT BOOKS LIMITED,06/09/2022,299.45
Health & Wellbeing,Health Improvement,Supplies & Services,Libraries Book Fund,ULVERSCROFT LARGE PRINT BOOKS LIMITED,06/09/2022,251.34
Health & Wellbeing,Health Improvement,Supplies & Services,Libraries Book Fund,Bolinda UK Ltd,26/09/2022,269.65
Health & Wellbeing,Health Improvement,Supplies & Services,Libraries Book Fund,W F H LTD,06/09/2022,136.00
Health & Wellbeing,Health Improvement,Supplies & Services,Libraries Book Fund,W F H LTD,06/09/2022,131.20
Health & Wellbeing,Health Improvement,Supplies & Services,Libraries Book Fund,ULVERSCROFT LARGE PRINT BOOKS LIMITED,06/09/2022,305.05
Health & Wellbeing,Health Improvement,Supplies & Services,Libraries Book Fund,Bolinda UK Ltd,06/09/2022,269.65
Health & Wellbeing,Health Improvement,Supplies & Services,Libraries Book Fund,W F HOWES LTD,06/09/2022,114.40
Health & Wellbeing,Health Improvement,Supplies & Services,Libraries Book Fund,ULVERSCROFT LARGE PRINT BOOKS LIMITED,08/09/2022,251.34
Health & Wellbeing,Health Improvement,Supplies & Services,Libraries Book Fund,P LTD,08/09/2022,179.65
Health & Wellbeing,Health Improvement,Supplies & Services,Libraries Book Fund,Overdrive Marketplace,08/09/2022,309.66
Health & Wellbeing,Health Improvement,Supplies & Services,Libraries Book Fund,Overdrive Marketplace,08/09/2022,"1,000.00"
Health & Wellbeing,Health Improvement,Supplies & Services,Libraries Book Fund,Overdrive Marketplace,20/09/2022,133.01
Health & Wellbeing,Health Improvement,Supplies & Services,Libraries Book Fund,P  LTD,27/09/2022,206.87
Health & Wellbeing,Health Improvement,Supplies & Services,Libraries Book Fund,P  LTD,28/09/2022,198.57
Health & Wellbeing,Health Improvement,Supplies & Services,Mobile Phones,EE LTD EQUIPMENT,02/09/2022,284.00
Health & Wellbeing,Health Improvement,Supplies & Services,Mobile Phones,EE LTD EQUIPMENT,02/09/2022,142.00
Health & Wellbeing,Health Improvement,Supplies & Services,Equipment - Purchase,Medisave (UK) Ltd,27/09/2022,"1,691.98"
Health & Wellbeing,Health Improvement,Third Party Payments,Interpreters Fees,VISS Sign Language Interpreting Service,20/09/2022,115.00
Health & Wellbeing,Health Protection,Supplies & Services,Other Grants (Expenses),West Mercia Police & Crime Commissioner,08/09/2022,"3,765.77"
Health & Wellbeing,Health Protection,Supplies & Services,Consultancy,Vivid Resourcing,08/09/2022,"1,978.40"
Health & Wellbeing,Health Protection,Supplies & Services,Mobile Phones,EE LTD EQUIPMENT,06/09/2022,142.00
Health & Wellbeing,Health Protection,Supplies & Services,Other Services,ALS ENVIRONMENTAL LIMITED,09/09/2022,125.00
Health & Wellbeing,Health Protection,Supplies & Services,Other Services,ALS ENVIRONMENTAL LIMITED,09/09/2022,125.00
Health & Wellbeing,Health Protection,Supplies & Services,Other Services,ALS ENVIRONMENTAL LIMITED,22/09/2022,125.00
"Housing, Employment & Infrastructure",Inward Investment & Business Support,Capital Expenditure,Other Capital Expenditure,SIGNS EXPRESS (TELFORD),08/09/2022,784.00
"Housing, Employment & Infrastructure",Inward Investment & Business Support,Capital Expenditure,Other Capital Expenditure,SIGNS EXPRESS (TELFORD),20/09/2022,887.36
"Housing, Employment & Infrastructure",Inward Investment & Business Support,Capital Expenditure,Other Capital Expenditure,SIGNS EXPRESS (TELFORD),20/09/2022,"1,808.75"
"Housing, Employment & Infrastructure",Inward Investment & Business Support,Employees,Training Expenses,AFC Telford Holdings Limited,05/09/2022,334.00
"Housing, Employment & Infrastructure",Inward Investment & Business Support,Supplies & Services,Other Grants (Expenses),Good2Great Ltd,02/09/2022,"9,059.25"
"Housing, Employment & Infrastructure",Inward Investment & Business Support,Supplies & Services,Mobile Phones,EE LTD EQUIPMENT ,02/09/2022,284.00
"Housing, Employment & Infrastructure",Inward Investment & Business Support,Supplies & Services,Marketing & Publicity,R F PHOTOGRAPHY,02/09/2022,180.00
"Housing, Employment & Infrastructure",Inward Investment & Business Support,Supplies & Services,Security Services,Castlepoint WM Limited,02/09/2022,"2,175.93"
"Housing, Employment & Infrastructure",Inward Investment & Business Support,Supplies & Services,Consultancy,The Marches Local Enterprise Partnership,22/09/2022,"23,323.00"
Neighbourhood & Enforcement Services,"Highways, Engineering & Project Delivery",Capital Expenditure,Payments to Contractor,Amey OW Ltd,08/09/2022,297.94
Neighbourhood & Enforcement Services,"Highways, Engineering & Project Delivery",Capital Expenditure,Payments to Contractor,Amey OW Ltd,08/09/2022,"2,506.83"
Neighbourhood & Enforcement Services,"Highways, Engineering & Project Delivery",Capital Expenditure,Other Capital Expenditure,Vanwise Group Ltd,15/09/2022,"28,450.00"
Neighbourhood & Enforcement Services,"Highways, Engineering & Project Delivery",Capital Expenditure,Payments to Contractor,Conservation Building Services Ltd,21/09/2022,"4,462.73"
Neighbourhood & Enforcement Services,"Highways, Engineering & Project Delivery",Capital Expenditure,External Professional Fees,Amey OW Ltd,08/09/2022,"9,955.93"
Neighbourhood & Enforcement Services,"Highways, Engineering & Project Delivery",Capital Expenditure,External Professional Fees,The Tree Man,14/09/2022,"1,345.00"
Neighbourhood & Enforcement Services,"Highways, Engineering & Project Delivery",Premises-Related Expenditure,Electricity,West Mercia Energy (WME),26/09/2022,333.92
Neighbourhood & Enforcement Services,"Highways, Engineering & Project Delivery",Premises-Related Expenditure,Electricity,West Mercia Energy (WME),26/09/2022,"55,563.31"
Neighbourhood & Enforcement Services,"Highways, Engineering & Project Delivery",Premises-Related Expenditure,Lift Maintenance,STANNAH LIFT SERVICES LTD,21/09/2022,292.47
Neighbourhood & Enforcement Services,"Highways, Engineering & Project Delivery",Premises-Related Expenditure,Lift Maintenance,STANNAH LIFT SERVICES LTD,14/09/2022,"1,739.52"
Neighbourhood & Enforcement Services,"Highways, Engineering & Project Delivery",Premises-Related Expenditure,Electricity,West Mercia Energy (WME),26/09/2022,395.23
Neighbourhood & Enforcement Services,"Highways, Engineering & Project Delivery",Supplies & Services,Materials,Compass Minerals UK Ltd,08/09/2022,"-1,207.57"
Neighbourhood & Enforcement Services,"Highways, Engineering & Project Delivery",Supplies & Services,Materials,Compass Minerals UK Ltd,02/09/2022,"10,770.96"
Neighbourhood & Enforcement Services,"Highways, Engineering & Project Delivery",Supplies & Services,Materials,Compass Minerals UK Ltd,05/09/2022,"8,283.38"
Neighbourhood & Enforcement Services,"Highways, Engineering & Project Delivery",Supplies & Services,Other Services,ENVIRONMENT AGENCY,08/09/2022,"16,436.47"
Neighbourhood & Enforcement Services,"Highways, Engineering & Project Delivery",Supplies & Services,Other Services,VEOLIA ES (UK) LTD,14/09/2022,"2,025.00"
Neighbourhood & Enforcement Services,"Highways, Engineering & Project Delivery",Supplies & Services,Other Services,VEOLIA ES (UK) LTD,14/09/2022,"2,685.00"
Neighbourhood & Enforcement Services,"Highways, Engineering & Project Delivery",Supplies & Services,Consultancy,Power Data Associates Ltd,08/09/2022,"6,700.00"
Neighbourhood & Enforcement Services,"Highways, Engineering & Project Delivery",Supplies & Services,Consultancy,W Aspen,14/09/2022,"3,312.00"
Neighbourhood & Enforcement Services,"Highways, Engineering & Project Delivery",Supplies & Services,Consultancy,W Aspen,14/09/2022,"3,891.20"
Neighbourhood & Enforcement Services,"Highways, Engineering & Project Delivery",Supplies & Services,Consultancy,W Aspen,14/09/2022,"1,037.17"
Neighbourhood & Enforcement Services,"Highways, Engineering & Project Delivery",Supplies & Services,Equipment - Hire,STANFORD MARSH FINANCE LTD,14/09/2022,277.48
Neighbourhood & Enforcement Services,"Highways, Engineering & Project Delivery",Supplies & Services,Consultancy,W Aspen,14/09/2022,"4,142.00"
Neighbourhood & Enforcement Services,"Highways, Engineering & Project Delivery",Supplies & Services,Consultancy,W Aspen,14/09/2022,"6,467.06"
Neighbourhood & Enforcement Services,"Highways, Engineering & Project Delivery",Supplies & Services,Consultancy,W Aspen,14/09/2022,"6,398.42"
Neighbourhood & Enforcement Services,"Highways, Engineering & Project Delivery",Supplies & Services,Fees,W Aspen,14/09/2022,"5,078.72"
Neighbourhood & Enforcement Services,"Highways, Engineering & Project Delivery",Supplies & Services,Consultancy,W Aspen,15/09/2022,"4,142.00"
Neighbourhood & Enforcement Services,"Highways, Engineering & Project Delivery",Supplies & Services,Consultancy,W Aspen,15/09/2022,"6,241.60"
Neighbourhood & Enforcement Services,"Highways, Engineering & Project Delivery",Supplies & Services,Comp Software (Purch / Hire),PHOENIX SOFTWARE LTD,20/09/2022,360.00
Neighbourhood & Enforcement Services,"Highways, Engineering & Project Delivery",Third Party Payments,Highways Contract - BBLP,Balfour Beatty Civils Limited,23/09/2022,"2,316,613.91"
Neighbourhood & Enforcement Services,"Highways, Engineering & Project Delivery",Third Party Payments,Highways Contract - BBLP,DMC Products and Marketing,08/09/2022,168.64
Neighbourhood & Enforcement Services,"Highways, Engineering & Project Delivery",Third Party Payments,Highways Contract - BBLP,GW MARINE SYSTEMS LTD,02/09/2022,"1,145.00"
Neighbourhood & Enforcement Services,"Highways, Engineering & Project Delivery",Third Party Payments,Private Contractors,Vortex Cleaning Ltd,14/09/2022,430.00
Neighbourhood & Enforcement Services,"Highways, Engineering & Project Delivery",Third Party Payments,Private Contractors,Vortex Cleaning Ltd,14/09/2022,430.00
Neighbourhood & Enforcement Services,Neighbourhood & Environmental Services,Premises-Related Expenditure,Grounds Maintenance - Other,J L & SONS LTD,23/09/2022,109.65
Neighbourhood & Enforcement Services,Neighbourhood & Environmental Services,Premises-Related Expenditure,Grounds Maintenance - Other,MARMAX PRODUCTS LTD,15/09/2022,357.00
Neighbourhood & Enforcement Services,Neighbourhood & Environmental Services,Premises-Related Expenditure,Contract Cleaning,Vortex Cleaning Ltd,05/09/2022,225.00
Neighbourhood & Enforcement Services,Neighbourhood & Environmental Services,Premises-Related Expenditure,Grounds Maintenance - Other,MSM Hire Ltd,14/09/2022,695.00
Neighbourhood & Enforcement Services,Neighbourhood & Environmental Services,Premises-Related Expenditure,Grounds Maintenance - Other,J L & SONS LTD,28/09/2022,179.79
Neighbourhood & Enforcement Services,Neighbourhood & Environmental Services,Premises-Related Expenditure,Grounds Maintenance - Other,MSM Hire Ltd,23/09/2022,"1,509.40"
Neighbourhood & Enforcement Services,Neighbourhood & Environmental Services,Premises-Related Expenditure,Grounds Maintenance - Misc,HOLLINSWOOD & RANDLAY PARISH COUNCIL,23/09/2022,332.75
Neighbourhood & Enforcement Services,Neighbourhood & Environmental Services,Supplies & Services,Other Services,HILBRAE PETS HOTEL,14/09/2022,"1,888.55"
Neighbourhood & Enforcement Services,Neighbourhood & Environmental Services,Supplies & Services,Other Services,HILBRAE PETS HOTEL,14/09/2022,-380.00
Neighbourhood & Enforcement Services,Neighbourhood & Environmental Services,Supplies & Services,Sport Equip - Purchase,Broxap Ltd,14/09/2022,556.00
Neighbourhood & Enforcement Services,Neighbourhood & Environmental Services,Supplies & Services,Materials,EMERGE DESIGN LTD,29/09/2022,423.50
Neighbourhood & Enforcement Services,Neighbourhood & Environmental Services,Supplies & Services,Sport Equip - Purchase,Broxap Ltd,12/09/2022,630.00
Neighbourhood & Enforcement Services,Neighbourhood & Environmental Services,Supplies & Services,Sport Equip - Purchase,Broxap Ltd,12/09/2022,494.00
Neighbourhood & Enforcement Services,Neighbourhood & Environmental Services,Supplies & Services,Carriage/Delivery Charge,Broxap Ltd,12/09/2022,205.00
Neighbourhood & Enforcement Services,Neighbourhood & Environmental Services,Supplies & Services,Asbestos Waste,WELLINGTON INSULATION CO. LTD,05/09/2022,750.00
Neighbourhood & Enforcement Services,Neighbourhood & Environmental Services,Supplies & Services,Other Materials,PUMP & PLANT SERVICES LTD,28/09/2022,884.00
Neighbourhood & Enforcement Services,Neighbourhood & Environmental Services,Third Party Payments,Contractor Recharge,Id verde,13/09/2022,"537,277.88"
Neighbourhood & Enforcement Services,Neighbourhood & Environmental Services,Third Party Payments,Contractor Recharge,Id verde,23/09/2022,"1,842.64"
Neighbourhood & Enforcement Services,Public Protection,Employees,Staff Training,Chartered Trading Standards Institute,05/09/2022,"1,040.00"
Neighbourhood & Enforcement Services,Public Protection,Employees,Cont Prof Development,INSTITUTE OF LICENSING LTD ,05/09/2022,165.00
Neighbourhood & Enforcement Services,Public Protection,Employees,Staff Training,MEETING POINT TRUST LTD,05/09/2022,130.00
Neighbourhood & Enforcement Services,Public Protection,Employees,Staff Training,Alpha Parking,25/09/2022,725.00
Neighbourhood & Enforcement Services,Public Protection,Premises-Related Expenditure,Sewage Charges,WATER PLUS FORMERLY SEVERN TRENT WATER LTD,25/09/2022,171.41
Neighbourhood & Enforcement Services,Public Protection,Premises-Related Expenditure,Sewage Charges,WATER PLUS FORMERLY SEVERN TRENT WATER LTD,25/09/2022,330.49
Neighbourhood & Enforcement Services,Public Protection,Premises-Related Expenditure,Sewage Charges,WATER PLUS FORMERLY SEVERN TRENT WATER LTD,25/09/2022,171.41
Neighbourhood & Enforcement Services,Public Protection,Premises-Related Expenditure,Sewage Charges,WATER PLUS FORMERLY SEVERN TRENT WATER LTD,25/09/2022,171.41
Neighbourhood & Enforcement Services,Public Protection,Supplies & Services,Consultancy,Vivid Resourcing,01/09/2022,535.00
Neighbourhood & Enforcement Services,Public Protection,Supplies & Services,Consultancy,Vivid Resourcing,12/09/2022,447.50
Neighbourhood & Enforcement Services,Public Protection,Supplies & Services,Consultancy,Vivid Resourcing,20/09/2022,376.85
Neighbourhood & Enforcement Services,Public Protection,Supplies & Services,Sampling & Analysis,BWY Canine Limited,22/09/2022,400.00
Neighbourhood & Enforcement Services,Public Protection,Supplies & Services,Consultancy,Vivid Resourcing,02/09/2022,495.50
Neighbourhood & Enforcement Services,Public Protection,Supplies & Services,Other Services,Trebla Security Ltd,01/09/2022,"1,369.00"
Neighbourhood & Enforcement Services,Public Protection,Supplies & Services,Other Services,ALS ENVIRONMENTAL LIMITED,21/09/2022,185.00
Neighbourhood & Enforcement Services,Public Protection,Supplies & Services,Sub Contractors,O R Ltd,07/09/2022,"1,692.45"
Neighbourhood & Enforcement Services,Public Protection,Supplies & Services,Sub Contractors,O R Ltd,14/09/2022,"1,501.65"
Neighbourhood & Enforcement Services,Public Protection,Supplies & Services,Sub Contractors,O R Ltd,14/09/2022,"1,665.00"
Neighbourhood & Enforcement Services,Public Protection,Supplies & Services,Sub Contractors,O R Ltd,05/09/2022,"1,226.25"
Neighbourhood & Enforcement Services,Public Protection,Supplies & Services,Sub Contractors,O R Ltd,05/09/2022,"1,665.00"
Neighbourhood & Enforcement Services,Public Protection,Supplies & Services,Security Services,SOLON SECURITY LTD,22/09/2022,722.50
Neighbourhood & Enforcement Services,Public Protection,Supplies & Services,Security Services,Security Wise Ltd,21/09/2022,"5,410.00"
Neighbourhood & Enforcement Services,Public Protection,Supplies & Services,Security Services,BUSINESS WATCH GUARDING LIMITED,15/09/2022,255.00
Neighbourhood & Enforcement Services,Public Protection,Supplies & Services,Sub Contractors,METRIC GROUP LTD,15/09/2022,"2,093.85"
Neighbourhood & Enforcement Services,Public Protection,Supplies & Services,Security Services,Security Wise Ltd,15/09/2022,"5,410.00"
Neighbourhood & Enforcement Services,Public Protection,Supplies & Services,Security Services,Security Wise Ltd,15/09/2022,"2,530.00"
Neighbourhood & Enforcement Services,Public Protection,Supplies & Services,Security Services,Security Wise Ltd,13/09/2022,"4,246.00"
Neighbourhood & Enforcement Services,Public Protection,Supplies & Services,Security Services,Security Wise Ltd,25/09/2022,120.00
Neighbourhood & Enforcement Services,Public Protection,Supplies & Services,Security Services,Traffic Enforcement Centre,07/09/2022,"2,000.00"
Neighbourhood & Enforcement Services,Public Protection,Supplies & Services,Security Services,BemroseBooth Paragon,21/09/2022,233.00
Neighbourhood & Enforcement Services,Public Protection,Supplies & Services,Security Services,KEEP BRITAIN TIDY,06/09/2022,345.00
Neighbourhood & Enforcement Services,Public Protection,Supplies & Services,Security Services,Safe Apps Limited,14/09/2022,383.00
Neighbourhood & Enforcement Services,Public Protection,Supplies & Services,Mobile Phones,EE LTD EQUIPMENT ,02/09/2022,284.00
Neighbourhood & Enforcement Services,Public Protection,Supplies & Services,Comp Hardware (Purch / Hire),CCS MEDIA LIMITED,02/09/2022,360.00
Neighbourhood & Enforcement Services,Public Protection,Supplies & Services,Security Services,SMARTWATER TECHNOLOGY LTD,13/09/2022,600.00
